Workbook

Sheet Main
B10: 2020-07-06
B12: Sheet No. | C12: Template Name | D12: Summary
B13: 1 | C13: Future Intra | D13: For Intraday trading in F&O segment
B14: 2 | C14: Cash Intra | D14: For Intraday trading in cash market segment
B15: 3 | C15: Mid-cap Intra | D15: For Intraday trading in Mid-cap stocks
B16: 4 | C16: Bulk Deals | D16: Reveals Bulk Deals carried on NSE & BSE
B17: 5 | C17: Call Tracker
K27: `

Sheet Future Intra
M5: Back to Main Page
A6: FOR INTRA DAY TRADING | L6: =Main!B10 -> 2020-07-06
A9: Sr.no | B9: Sector | C9: Scrip | D9: CLOSE RATE | E9: Pivot Point | F9: Supports | I9: Resistances
B10: Sector | D10: Point | E10: Point | F10: S1 | G10: S2 | H10: S3 | I10: R1 | J10: R2 | K10: R3 | L10: HIGH | M10: LOW | N10: OI | O10: % Change in OI
A11: 1 | B11: Index | C11: BANKNIFTY | D11: 21843.90 | E11: 21918.65 | F11: 21675.25 | G11: 21506.60 | H11: 21263.20 | I11: 22087.30 | J11: 22330.70 | K11: 22499.35 | L11: 22162.05 | M11: 21750 | N11: 1473600 | O11: 1.35%
A12: 2 | B12: Index | C12: NIFTY | D12: 10572.45 | E12: 10570.38 | F12: 10535.07 | G12: 10497.68 | H12: 10462.37 | I12: 10607.77 | J12: 10643.08 | K12: 10680.47 | L12: 10605.7 | M12: 10533 | N12: 12073275 | O12: 2.36%
A13: 3 | B13: Cement | C13: ACC | D13: 1318.90 | E13: 1322.10 | F13: 1306.15 | G13: 1293.40 | H13: 1277.45 | I13: 1334.85 | J13: 1350.80 | K13: 1363.55 | L13: 1338.05 | M13: 1309.35 | N13: 2310500 | O13: 1.96%
A14: 4 | B14: Others | C14: ADANIENT | D14: 160.25 | E14: 160.77 | F14: 157.18 | G14: 154.12 | H14: 150.53 | I14: 163.83 | J14: 167.42 | K14: 170.48 | L14: 164.35 | M14: 157.7 | N14: 19048000 | O14: 0.80%
A15: 5 | B15: Others | C15: ADANIPORTS | D15: 361.25 | E15: 358.92 | F15: 350.53 | G15: 339.82 | H15: 331.43 | I15: 369.63 | J15: 378.02 | K15: 388.73 | L15: 367.3 | M15: 348.2 | N15: 29607500 | O15: 0.14%
A16: 6 | B16: Automobile | C16: AMARAJABAT | D16: 691.20 | E16: 694.07 | F16: 685.13 | G16: 679.07 | H16: 670.13 | I16: 700.13 | J16: 709.07 | K16: 715.13 | L16: 703 | M16: 688 | N16: 1719000 | O16: -3.32%
A17: 7 | B17: Cement | C17: AMBUJACEM | D17: 195.75 | E17: 194.95 | F17: 193.50 | G17: 191.25 | H17: 189.80 | I17: 197.20 | J17: 198.65 | K17: 200.90 | L17: 196.4 | M17: 192.7 | N17: 18834000 | O17: -0.66%
A18: 8 | B18: Others | C18: APOLLOHOSP | D18: 1383.20 | E18: 1383.72 | F18: 1362.53 | G18: 1341.87 | H18: 1320.68 | I18: 1404.38 | J18: 1425.57 | K18: 1446.23 | L18: 1404.9 | M18: 1363.05 | N18: 1055500 | O18: -17.18%
A19: 9 | B19: Automobile | C19: APOLLOTYRE | D19: 114.60 | E19: 113.92 | F19: 112.58 | G19: 110.57 | H19: 109.23 | I19: 115.93 | J19: 117.27 | K19: 119.28 | L19: 115.25 | M19: 111.9 | N19: 10845000 | O19: 5.19%
A20: 10 | B20: Automobile | C20: ASHOKLEY | D20: 49.20 | E20: 49.12 | F20: 48.48 | G20: 47.77 | H20: 47.13 | I20: 49.83 | J20: 50.47 | K20: 51.18 | L20: 49.75 | M20: 48.4 | N20: 45864000 | O20: -0.76%
A21: 11 | B21: FMCG | C21: ASIANPAINT | D21: 1698.25 | E21: 1704.72 | F21: 1686.53 | G21: 1674.82 | H21: 1656.63 | I21: 1716.43 | J21: 1734.62 | K21: 1746.33 | L21: 1722.9 | M21: 1693 | N21: 5330100 | O21: 1.12%
A22: 12 | B22: Pharma | C22: AUROPHARMA | D22: 780.10 | E22: 783.37 | F22: 774.98 | G22: 769.87 | H22: 761.48 | I22: 788.48 | J22: 796.87 | K22: 801.98 | L22: 791.75 | M22: 778.25 | N22: 12253800 | O22: 0.75%
A23: 13 | B23: Banking | C23: AXISBANK | D23: 428.25 | E23: 427.78 | F23: 423.97 | G23: 419.68 | H23: 415.87 | I23: 432.07 | J23: 435.88 | K23: 440.17 | L23: 431.6 | M23: 423.5 | N23: 63384000 | O23: -2.69%
A24: 14 | B24: Automobile | C24: BAJAJ-AUTO | D24: 2931.45 | E24: 2926.68 | F24: 2893.72 | G24: 2855.98 | H24: 2823.02 | I24: 2964.42 | J24: 2997.38 | K24: 3035.12 | L24: 2959.65 | M24: 2888.95 | N24: 1737750 | O24: -1.79%
A25: 15 | B25: Finance | C25: BAJAJFINSV | D25: 6152.00 | E25: 6173.12 | F25: 6102.38 | G25: 6052.77 | H25: 5982.03 | I25: 6222.73 | J25: 6293.47 | K25: 6343.08 | L25: 6243.85 | M25: 6123.5 | N25: 774375 | O25: -3.43%
A26: 16 | B26: Finance | C26: BAJFINANCE | D26: 2927.70 | E26: 2943.55 | F26: 2899.85 | G26: 2872.00 | H26: 2828.30 | I26: 2971.40 | J26: 3015.10 | K26: 3042.95 | L26: 2987.25 | M26: 2915.7 | N26: 6263500 | O26: 0.59%
A27: 17 | B27: Automobile | C27: BALKRISIND | D27: 1317.50 | E27: 1304.48 | F27: 1288.02 | G27: 1258.53 | H27: 1242.07 | I27: 1333.97 | J27: 1350.43 | K27: 1379.92 | L27: 1320.95 | M27: 1275 | N27: 1115200 | O27: 23.04%
A28: 18 | B28: Banking | C28: BANDHANBNK | D28: 348.15 | E28: 345.55 | F28: 339.10 | G28: 330.05 | H28: 323.60 | I28: 354.60 | J28: 361.05 | K28: 370.10 | L28: 352 | M28: 336.5 | N28: 11151000 | O28: 9.16%
A29: 19 | B29: Banking | C29: BANKBARODA | D29: 50.90 | E29: 51.13 | F29: 50.37 | G29: 49.83 | H29: 49.07 | I29: 51.67 | J29: 52.43 | K29: 52.97 | L29: 51.9 | M29: 50.6 | N29: 42959800 | O29: 0.79%
A30: 20 | B30: FMCG | C30: BATAINDIA | D30: 1300.40 | E30: 1296.05 | F30: 1285.35 | G30: 1270.30 | H30: 1259.60 | I30: 1311.10 | J30: 1321.80 | K30: 1336.85 | L30: 1306.75 | M30: 1281 | N30: 2003650 | O30: 32.28%
A31: 21 | B31: Capital_Goods | C31: BEL | D31: 97.15 | E31: 95.02 | F31: 92.53 | G31: 87.92 | H31: 85.43 | I31: 99.63 | J31: 102.12 | K31: 106.73 | L31: 97.5 | M31: 90.4 | N31: 23826000 | O31: 3.29%
A32: 22 | B32: FMCG | C32: BERGEPAINT | D32: 505.00 | E32: 503.08 | F32: 498.22 | G32: 491.43 | H32: 486.57 | I32: 509.87 | J32: 514.73 | K32: 521.52 | L32: 507.95 | M32: 496.3 | N32: 4480300 | O32: -2.89%
A33: 23 | B33: Automobile | C33: BHARATFORG | D33: 359.15 | E33: 352.77 | F33: 344.73 | G33: 330.32 | H33: 322.28 | I33: 367.18 | J33: 375.22 | K33: 389.63 | L33: 360.8 | M33: 338.35 | N33: 6367500 | O33: 0.90%
A34: 24 | B34: Telecom | C34: BHARTIARTL | D34: 582.25 | E34: 576.03 | F34: 568.07 | G34: 553.88 | H34: 545.92 | I34: 590.22 | J34: 598.18 | K34: 612.37 | L34: 584 | M34: 561.85 | N34: 83535630 | O34: -0.66%
A35: 25 | B35: Capital_Goods | C35: BHEL | D35: 38.80 | E35: 38.23 | F35: 37.27 | G35: 35.73 | H35: 34.77 | I35: 39.77 | J35: 40.73 | K35: 42.27 | L35: 39.2 | M35: 36.7 | N35: 63987000 | O35: 23.41%
A36: 26 | B36: Pharma | C36: BIOCON | D36: 397.05 | E36: 395.68 | F36: 392.67 | G36: 388.28 | H36: 385.27 | I36: 400.07 | J36: 403.08 | K36: 407.47 | L36: 398.7 | M36: 391.3 | N36: 14933900 | O36: -0.58%
A37: 27 | B37: Automobile | C37: BOSCHLTD | D37: 11779.00 | E37: 11826.60 | F37: 11603.40 | G37: 11427.80 | H37: 11204.60 | I37: 12002.20 | J37: 12225.40 | K37: 12401.00 | L37: 12049.8 | M37: 11651 | N37: 140200 | O37: -2.81%
A38: 28 | B38: Oil_Gas | C38: BPCL | D38: 384.85 | E38: 386.28 | F38: 381.77 | G38: 378.68 | H38: 374.17 | I38: 389.37 | J38: 393.88 | K38: 396.97 | L38: 390.8 | M38: 383.2 | N38: 17973000 | O38: -2.18%
A39: 29 | B39: FMCG | C39: BRITANNIA | D39: 3547.95 | E39: 3550.37 | F39: 3514.58 | G39: 3481.22 | H39: 3445.43 | I39: 3583.73 | J39: 3619.52 | K39: 3652.88 | L39: 3586.15 | M39: 3517 | N39: 1607000 | O39: -0.61%
A40: 30 | B40: Pharma | C40: CADILAHC | D40: 366.45 | E40: 369.35 | F40: 359.80 | G40: 353.15 | H40: 343.60 | I40: 376.00 | J40: 385.55 | K40: 392.20 | L40: 378.9 | M40: 362.7 | N40: 6509800 | O40: -3.99%
A41: 31 | B41: Banking | C41: CANBK | D41: 103.10 | E41: 103.63 | F41: 101.87 | G41: 100.63 | H41: 98.87 | I41: 104.87 | J41: 106.63 | K41: 107.87 | L41: 105.4 | M41: 102.4 | N41: 10215000 | O41: -0.58%
A42: 32 | B42: Textile | C42: CENTURYTEX | D42: 306.60 | E42: 305.23 | F42: 298.97 | G42: 291.33 | H42: 285.07 | I42: 312.87 | J42: 319.13 | K42: 326.77 | L42: 311.5 | M42: 297.6 | N42: 2373000 | O42: 4.44%
A43: 33 | B43: Finance | C43: CHOLAFIN | D43: 196.00 | E43: 197.92 | F43: 191.13 | G43: 186.27 | H43: 179.48 | I43: 202.78 | J43: 209.57 | K43: 214.43 | L43: 204.7 | M43: 193.05 | N43: 7772500 | O43: -1.49%
A44: 34 | B44: Pharma | C44: CIPLA | D44: 640.35 | E44: 642.77 | F44: 632.58 | G44: 624.82 | H44: 614.63 | I44: 650.53 | J44: 660.72 | K44: 668.48 | L44: 652.95 | M44: 635 | N44: 11572600 | O44: -0.51%
A45: 35 | B45: Others | C45: COALINDIA | D45: 135.65 | E45: 134.97 | F45: 133.68 | G45: 131.72 | H45: 130.43 | I45: 136.93 | J45: 138.22 | K45: 140.18 | L45: 136.25 | M45: 133 | N45: 34439600 | O45: 1.65%
A46: 36 | B46: FMCG | C46: COLPAL | D46: 1387.15 | E46: 1388.68 | F46: 1377.87 | G46: 1368.58 | H46: 1357.77 | I46: 1397.97 | J46: 1408.78 | K46: 1418.07 | L46: 1399.5 | M46: 1379.4 | N46: 2739100 | O46: 2.62%
A47: 37 | B47: Others | C47: CONCOR | D47: 430.25 | E47: 428.85 | F47: 424.50 | G47: 418.75 | H47: 414.40 | I47: 434.60 | J47: 438.95 | K47: 444.70 | L47: 433.2 | M47: 423.1 | N47: 5017230 | O47: -1.44%
A48: 38 | B48: Capital_Goods | C48: CUMMINSIND | D48: 411.90 | E48: 408.08 | F48: 402.47 | G48: 393.03 | H48: 387.42 | I48: 417.52 | J48: 423.13 | K48: 432.57 | L48: 413.7 | M48: 398.65 | N48: 1664400 | O48: 7.69%
A49: 39 | B49: FMCG | C49: DABUR | D49: 468.55 | E49: 468.72 | F49: 465.68 | G49: 462.82 | H49: 459.78 | I49: 471.58 | J49: 474.62 | K49: 477.48 | L49: 471.75 | M49: 465.85 | N49: 13692500 | O49: 2.14%
A50: 40 | B50: Pharma | C50: DIVISLAB | D50: 2197.75 | E50: 2213.28 | F50: 2174.57 | G50: 2151.38 | H50: 2112.67 | I50: 2236.47 | J50: 2275.18 | K50: 2298.37 | L50: 2252 | M50: 2190.1 | N50: 4466800 | O50: 7.58%
A51: 41 | B51: Realty | C51: DLF | D51: 151.70 | E51: 152.03 | F51: 149.27 | G51: 146.83 | H51: 144.07 | I51: 154.47 | J51: 157.23 | K51: 159.67 | L51: 154.8 | M51: 149.6 | N51: 28228200 | O51: 1.03%
A52: 42 | B52: Pharma | C52: DRREDDY | D52: 3909.35 | E52: 3917.08 | F52: 3882.32 | G52: 3855.28 | H52: 3820.52 | I52: 3944.12 | J52: 3978.88 | K52: 4005.92 | L52: 3951.85 | M52: 3890.05 | N52: 3426250 | O52: 1.45%
A53: 43 | B53: Automobile | C53: EICHERMOT | D53: 19039.40 | E53: 18871.03 | F53: 18544.07 | G53: 18048.73 | H53: 17721.77 | I53: 19366.37 | J53: 19693.33 | K53: 20188.67 | L53: 19198 | M53: 18375.7 | N53: 290710 | O53: 0.37%
A54: 44 | B54: Finance | C54: EQUITAS | D54: 53.45 | E54: 53.92 | F54: 52.33 | G54: 51.22 | H54: 49.63 | I54: 55.03 | J54: 56.62 | K54: 57.73 | L54: 55.5 | M54: 52.8 | N54: 13087200 | O54: -5.70%
A55: 45 | B55: Automobile | C55: ESCORTS | D55: 1063.05 | E55: 1056.70 | F55: 1046.40 | G55: 1029.75 | H55: 1019.45 | I55: 1073.35 | J55: 1083.65 | K55: 1100.30 | L55: 1067 | M55: 1040.05 | N55: 2828100 | O55: 8.80%
A56: 46 | B56: Automobile | C56: EXIDEIND | D56: 153.75 | E56: 154.37 | F56: 152.23 | G56: 150.72 | H56: 148.58 | I56: 155.88 | J56: 158.02 | K56: 159.53 | L56: 156.5 | M56: 152.85 | N56: 12625200 | O56: 2.66%
A57: 47 | B57: Banking | C57: FEDERALBNK | D57: 53.15 | E57: 53.23 | F57: 52.52 | G57: 51.88 | H57: 51.17 | I57: 53.87 | J57: 54.58 | K57: 55.22 | L57: 53.95 | M57: 52.6 | N57: 55768500 | O57: 1.13%
A58: 48 | B58: Oil_Gas | C58: GAIL | D58: 105.20 | E58: 104.80 | F58: 103.60 | G58: 102.00 | H58: 100.80 | I58: 106.40 | J58: 107.60 | K58: 109.20 | L58: 106 | M58: 103.2 | N58: 32397100 | O58: 2.15%
A59: 49 | B59: Pharma | C59: GLENMARK | D59: 435.05 | E59: 435.03 | F59: 431.47 | G59: 427.88 | H59: 424.32 | I59: 438.62 | J59: 442.18 | K59: 445.77 | L59: 438.6 | M59: 431.45 | N59: 6092700 | O59: -3.50%
A60: 50 | B60: Infrastructure | C60: GMRINFRA | D60: 21.65 | E60: 21.40 | F60: 21.05 | G60: 20.45 | H60: 20.10 | I60: 22.00 | J60: 22.35 | K60: 22.95 | L60: 21.75 | M60: 20.8 | N60: 95805000 | O60: 5.14%
A61: 51 | B61: FMCG | C61: GODREJCP | D61: 718.20 | E61: 712.38 | F61: 703.47 | G61: 688.73 | H61: 679.82 | I61: 727.12 | J61: 736.03 | K61: 750.77 | L61: 721.3 | M61: 697.65 | N61: 7403000 | O61: 10.69%
A62: 52 | B62: Others | C62: GODREJPROP | D62: 897.90 | E62: 888.93 | F62: 876.42 | G62: 854.93 | H62: 842.42 | I62: 910.42 | J62: 922.93 | K62: 944.42 | L62: 901.45 | M62: 867.45 | N62: 443300 | O62: 8.25%
A63: 53 | B63: Cement | C63: GRASIM | D63: 628.15 | E63: 624.05 | F63: 618.10 | G63: 608.05 | H63: 602.10 | I63: 634.10 | J63: 640.05 | K63: 650.10 | L63: 630 | M63: 614 | N63: 18756800 | O63: -1.49%
A64: 54 | B64: Others | C64: HAVELLS | D64: 581.85 | E64: 583.57 | F64: 577.53 | G64: 573.22 | H64: 567.18 | I64: 587.88 | J64: 593.92 | K64: 598.23 | L64: 589.6 | M64: 579.25 | N64: 5426000 | O64: 2.71%
A65: 55 | B65: Technology | C65: HCLTECH | D65: 576.55 | E65: 575.12 | F65: 571.53 | G65: 566.52 | H65: 562.93 | I65: 580.13 | J65: 583.72 | K65: 588.73 | L65: 578.7 | M65: 570.1 | N65: 20878200 | O65: -1.38%
A66: 56 | B66: Finance | C66: HDFC | D66: 1863.20 | E66: 1865.82 | F66: 1843.73 | G66: 1824.27 | H66: 1802.18 | I66: 1885.28 | J66: 1907.37 | K66: 1926.83 | L66: 1887.9 | M66: 1846.35 | N66: 29914500 | O66: -1.13%
A67: 57 | B67: Banking | C67: HDFCBANK | D67: 1073.95 | E67: 1078.25 | F67: 1065.00 | G67: 1056.05 | H67: 1042.80 | I67: 1087.20 | J67: 1100.45 | K67: 1109.40 | L67: 1091.5 | M67: 1069.3 | N67: 42593100 | O67: -3.66%
A68: 58 | B68: Finance | C68: HDFCLIFE | D68: 572.50 | E68: 572.97 | F68: 556.93 | G68: 541.37 | H68: 525.33 | I68: 588.53 | J68: 604.57 | K68: 620.13 | L68: 589 | M68: 557.4 | N68: 13388100 | O68: -8.30%
A69: 59 | B69: Automobile | C69: HEROMOTOCO | D69: 2703.40 | E69: 2687.77 | F69: 2662.63 | G69: 2621.87 | H69: 2596.73 | I69: 2728.53 | J69: 2753.67 | K69: 2794.43 | L69: 2712.9 | M69: 2647 | N69: 2709600 | O69: -0.55%
A70: 60 | B70: Metals | C70: HINDALCO | D70: 146.25 | E70: 146.85 | F70: 144.00 | G70: 141.75 | H70: 138.90 | I70: 149.10 | J70: 151.95 | K70: 154.20 | L70: 149.7 | M70: 144.6 | N70: 34799900 | O70: 3.54%
A71: 61 | B71: Oil_Gas | C71: HINDPETRO | D71: 216.60 | E71: 215.90 | F71: 213.75 | G71: 210.90 | H71: 208.75 | I71: 218.75 | J71: 220.90 | K71: 223.75 | L71: 218.05 | M71: 213.05 | N71: 23109300 | O71: 0.18%
A72: 62 | B72: FMCG | C72: HINDUNILVR | D72: 2175.90 | E72: 2177.38 | F72: 2159.77 | G72: 2143.63 | H72: 2126.02 | I72: 2193.52 | J72: 2211.13 | K72: 2227.27 | L72: 2195 | M72: 2161.25 | N72: 16915500 | O72: 0.50%
A73: 63 | B73: Finance | C73: IBULHSGFIN | D73: 230.75 | E73: 226.47 | F73: 217.93 | G73: 205.12 | H73: 196.58 | I73: 239.28 | J73: 247.82 | K73: 260.63 | L73: 235 | M73: 213.65 | N73: 17152300 | O73: 24.81%
A74: 64 | B74: Banking | C74: ICICIBANK | D74: 361.20 | E74: 362.72 | F74: 358.23 | G74: 355.27 | H74: 350.78 | I74: 365.68 | J74: 370.17 | K74: 373.13 | L74: 367.2 | M74: 359.75 | N74: 107010750 | O74: -1.68%
A75: 65 | B75: Finance | C75: ICICIPRULI | D75: 433.10 | E75: 434.23 | F75: 424.87 | G75: 416.63 | H75: 407.27 | I75: 442.47 | J75: 451.83 | K75: 460.07 | L75: 443.6 | M75: 426 | N75: 7405500 | O75: 3.65%
A76: 66 | B76: Telecom | C76: IDEA | D76: 10.10 | E76: 10.10 | F76: 9.95 | G76: 9.80 | H76: 9.65 | I76: 10.25 | J76: 10.40 | K76: 10.55 | L76: 10.25 | M76: 9.95 | N76: 351400000 | O76: -1.14%
A77: 67 | B77: Banking | C77: IDFCFIRSTB | D77: 26.85 | E77: 26.82 | F77: 26.58 | G77: 26.32 | H77: 26.08 | I77: 27.08 | J77: 27.32 | K77: 27.58 | L77: 27.05 | M77: 26.55 | N77: 114361000 | O77: 5.60%
A78: 68 | B78: Oil_Gas | C78: IGL | D78: 448.55 | E78: 448.70 | F78: 443.20 | G78: 437.85 | H78: 432.35 | I78: 454.05 | J78: 459.55 | K78: 464.90 | L78: 454.2 | M78: 443.35 | N78: 7181625 | O78: -0.80%
A79: 69 | B79: Others | C79: INDIGO | D79: 1014.40 | E79: 1012.28 | F79: 1003.57 | G79: 992.73 | H79: 984.02 | I79: 1023.12 | J79: 1031.83 | K79: 1042.67 | L79: 1021 | M79: 1001.45 | N79: 2702000 | O79: -2.56%
A80: 70 | B80: Banking | C80: INDUSINDBK | D80: 488.25 | E80: 491.43 | F80: 481.87 | G80: 475.48 | H80: 465.92 | I80: 497.82 | J80: 507.38 | K80: 513.77 | L80: 501 | M80: 485.05 | N80: 31541600 | O80: -3.32%
A81: 71 | B81: Telecom | C81: INFRATEL | D81: 226.35 | E81: 225.43 | F81: 222.47 | G81: 218.58 | H81: 215.62 | I81: 229.32 | J81: 232.28 | K81: 236.17 | L81: 228.4 | M81: 221.55 | N81: 10169600 | O81: -1.84%
A82: 72 | B82: Technology | C82: INFY | D82: 761.85 | E82: 758.92 | F82: 754.53 | G82: 747.22 | H82: 742.83 | I82: 766.23 | J82: 770.62 | K82: 777.93 | L82: 763.3 | M82: 751.6 | N82: 51548400 | O82: -0.14%
A83: 73 | B83: Oil_Gas | C83: IOC | D83: 88.00 | E83: 88.13 | F83: 87.07 | G83: 86.13 | H83: 85.07 | I83: 89.07 | J83: 90.13 | K83: 91.07 | L83: 89.2 | M83: 87.2 | N83: 56202000 | O83: -0.49%
A84: 74 | B84: FMCG | C84: ITC | D84: 207.30 | E84: 207.20 | F84: 205.90 | G84: 204.50 | H84: 203.20 | I84: 208.60 | J84: 209.90 | K84: 211.30 | L84: 208.5 | M84: 205.8 | N84: 85686400 | O84: -3.26%
A85: 75 | B85: Metals | C85: JINDALSTEL | D85: 153.80 | E85: 154.58 | F85: 152.02 | G85: 150.23 | H85: 147.67 | I85: 156.37 | J85: 158.93 | K85: 160.72 | L85: 157.15 | M85: 152.8 | N85: 17810000 | O85: -0.70%
A86: 76 | B86: Metals | C86: JSWSTEEL | D86: 188.95 | E86: 190.78 | F86: 186.67 | G86: 184.38 | H86: 180.27 | I86: 193.07 | J86: 197.18 | K86: 199.47 | L86: 194.9 | M86: 188.5 | N86: 43831800 | O86: 1.79%
A87: 77 | B87: Others | C87: JUBLFOOD | D87: 1737.30 | E87: 1741.58 | F87: 1725.77 | G87: 1714.23 | H87: 1698.42 | I87: 1753.12 | J87: 1768.93 | K87: 1780.47 | L87: 1757.4 | M87: 1730.05 | N87: 2352000 | O87: 0.99%
A88: 78 | B88: Others | C88: JUSTDIAL | D88: 383.25 | E88: 385.78 | F88: 379.02 | G88: 374.78 | H88: 368.02 | I88: 390.02 | J88: 396.78 | K88: 401.02 | L88: 392.55 | M88: 381.55 | N88: 1436400 | O88: -3.30%
A89: 79 | B89: Banking | C89: KOTAKBANK | D89: 1352.30 | E89: 1355.50 | F89: 1343.25 | G89: 1334.20 | H89: 1321.95 | I89: 1364.55 | J89: 1376.80 | K89: 1385.85 | L89: 1367.75 | M89: 1346.45 | N89: 8338400 | O89: -2.74%
A90: 80 | B90: Finance | C90: L&TFH | D90: 67.65 | E90: 68.10 | F90: 66.25 | G90: 64.85 | H90: 63.00 | I90: 69.50 | J90: 71.35 | K90: 72.75 | L90: 69.95 | M90: 66.7 | N90: 22535200 | O90: 3.76%
A91: 81 | B91: Finance | C91: LICHSGFIN | D91: 273.30 | E91: 275.73 | F91: 267.67 | G91: 262.03 | H91: 253.97 | I91: 281.37 | J91: 289.43 | K91: 295.07 | L91: 283.8 | M91: 270.1 | N91: 7516000 | O91: 12.55%
A92: 82 | B92: Capital_Goods | C92: LT | D92: 943.80 | E92: 946.57 | F92: 938.23 | G92: 932.67 | H92: 924.33 | I92: 952.13 | J92: 960.47 | K92: 966.03 | L92: 954.9 | M92: 941 | N92: 9123950 | O92: 0.35%
A93: 83 | B93: Pharma | C93: LUPIN | D93: 894.95 | E93: 895.70 | F93: 888.40 | G93: 881.85 | H93: 874.55 | I93: 902.25 | J93: 909.55 | K93: 916.10 | L93: 903 | M93: 889.15 | N93: 8207600 | O93: 3.91%
A94: 84 | B94: Automobile | C94: M&M | D94: 528.10 | E94: 527.45 | F94: 522.20 | G94: 516.30 | H94: 511.05 | I94: 533.35 | J94: 538.60 | K94: 544.50 | L94: 532.7 | M94: 521.55 | N94: 19360600 | O94: -3.15%
A95: 85 | B95: Finance | C95: M&MFIN | D95: 182.90 | E95: 183.80 | F95: 179.50 | G95: 176.10 | H95: 171.80 | I95: 187.20 | J95: 191.50 | K95: 194.90 | L95: 188.1 | M95: 180.4 | N95: 13437900 | O95: -3.03%
A96: 86 | B96: Finance | C96: MANAPPURAM | D96: 161.60 | E96: 161.50 | F96: 159.15 | G96: 156.70 | H96: 154.35 | I96: 163.95 | J96: 166.30 | K96: 168.75 | L96: 163.85 | M96: 159.05 | N96: 15126000 | O96: 3.32%
A97: 87 | B97: FMCG | C97: MARICO | D97: 359.55 | E97: 358.72 | F97: 356.48 | G97: 353.42 | H97: 351.18 | I97: 361.78 | J97: 364.02 | K97: 367.08 | L97: 360.95 | M97: 355.65 | N97: 13876000 | O97: 4.54%
A98: 88 | B98: Automobile | C98: MARUTI | D98: 5931.20 | E98: 5938.17 | F98: 5880.43 | G98: 5829.67 | H98: 5771.93 | I98: 5988.93 | J98: 6046.67 | K98: 6097.43 | L98: 5995.9 | M98: 5887.4 | N98: 2978000 | O98: -0.48%
A99: 89 | B99: FMCG | C99: MCDOWELL-N | D99: 590.55 | E99: 593.53 | F99: 585.57 | G99: 580.58 | H99: 572.62 | I99: 598.52 | J99: 606.48 | K99: 611.47 | L99: 601.5 | M99: 588.55 | N99: 15180000 | O99: 4.94%
A100: 90 | B100: Finance | C100: MFSL | D100: 553.50 | E100: 548.65 | F100: 538.65 | G100: 523.80 | H100: 513.80 | I100: 563.50 | J100: 573.50 | K100: 588.35 | L100: 558.65 | M100: 533.8 | N100: 1713400 | O100: 2.25%
A101: 91 | B101: Oil_Gas | C101: MGL | D101: 1073.15 | E101: 1068.37 | F101: 1056.28 | G101: 1039.42 | H101: 1027.33 | I101: 1085.23 | J101: 1097.32 | K101: 1114.18 | L101: 1080.45 | M101: 1051.5 | N101: 682200 | O101: -1.13%
A102: 92 | B102: Technology | C102: MINDTREE | D102: 938.00 | E102: 940.57 | F102: 924.78 | G102: 911.57 | H102: 895.78 | I102: 953.78 | J102: 969.57 | K102: 982.78 | L102: 956.35 | M102: 927.35 | N102: 1910400 | O102: 8.59%
A103: 93 | B103: Automobile | C103: MOTHERSUMI | D103: 97.85 | E103: 97.43 | F103: 94.42 | G103: 90.98 | H103: 87.97 | I103: 100.87 | J103: 103.88 | K103: 107.32 | L103: 100.45 | M103: 94 | N103: 32823000 | O103: -14.06%
A104: 94 | B104: Automobile | C104: MRF | D104: 66338.00 | E104: 66309.30 | F104: 65838.70 | G104: 65339.40 | H104: 64868.80 | I104: 66808.60 | J104: 67279.20 | K104: 67778.50 | L104: 66779.9 | M104: 65810 | N104: 15700 | O104: 4.67%
A105: 95 | B105: Finance | C105: MUTHOOTFIN | D105: 1149.90 | E105: 1140.20 | F105: 1125.75 | G105: 1101.60 | H105: 1087.15 | I105: 1164.35 | J105: 1178.80 | K105: 1202.95 | L105: 1154.65 | M105: 1116.05 | N105: 3293250 | O105: 5.00%
A106: 96 | B106: Metals | C106: NATIONALUM | D106: 32.50 | E106: 32.72 | F106: 32.08 | G106: 31.67 | H106: 31.03 | I106: 33.13 | J106: 33.77 | K106: 34.18 | L106: 33.35 | M106: 32.3 | N106: 37689000 | O106: 1.00%
A107: 97 | B107: Others | C107: NAUKRI | D107: 2778.05 | E107: 2793.48 | F107: 2756.97 | G107: 2735.88 | H107: 2699.37 | I107: 2814.57 | J107: 2851.08 | K107: 2872.17 | L107: 2830 | M107: 2772.4 | N107: 732750 | O107: -0.58%
A108: 98 | B108: Infrastructure | C108: NCC | D108: 30.50 | E108: 30.68 | F108: 30.17 | G108: 29.83 | H108: 29.32 | I108: 31.02 | J108: 31.53 | K108: 31.87 | L108: 31.2 | M108: 30.35 | N108: 19908000 | O108: -1.35%
A109: 99 | B109: FMCG | C109: NESTLEIND | D109: 16749.70 | E109: 16834.90 | F109: 16624.80 | G109: 16499.90 | H109: 16289.80 | I109: 16959.80 | J109: 17169.90 | K109: 17294.80 | L109: 17045 | M109: 16710 | N109: 566950 | O109: 3.35%
A110: 100 | B110: Technology | C110: NIITTECH | D110: 1425.90 | E110: 1428.28 | F110: 1411.57 | G110: 1397.23 | H110: 1380.52 | I110: 1442.62 | J110: 1459.33 | K110: 1473.67 | L110: 1445 | M110: 1413.95 | N110: 586500 | O110: 0.71%
A111: 101 | B111: Metals | C111: NMDC | D111: 82.85 | E111: 82.57 | F111: 81.88 | G111: 80.92 | H111: 80.23 | I111: 83.53 | J111: 84.22 | K111: 85.18 | L111: 83.25 | M111: 81.6 | N111: 29526900 | O111: 5.38%
A112: 102 | B112: Power | C112: NTPC | D112: 94.85 | E112: 94.37 | F112: 93.23 | G112: 91.62 | H112: 90.48 | I112: 95.98 | J112: 97.12 | K112: 98.73 | L112: 95.5 | M112: 92.75 | N112: 64586700 | O112: 3.08%
A113: 103 | B113: Oil_Gas | C113: ONGC | D113: 82.70 | E113: 82.70 | F113: 81.80 | G113: 80.90 | H113: 80.00 | I113: 83.60 | J113: 84.50 | K113: 85.40 | L113: 83.6 | M113: 81.8 | N113: 61630800 | O113: -3.11%
A114: 104 | B114: Textile | C114: PAGEIND | D114: 20618.45 | E114: 20553.83 | F114: 20391.87 | G114: 20165.28 | H114: 20003.32 | I114: 20780.42 | J114: 20942.38 | K114: 21168.97 | L114: 20715.8 | M114: 20327.25 | N114: 113160 | O114: -0.95%
A115: 105 | B115: Pharma | C115: PEL | D115: 1401.75 | E115: 1399.85 | F115: 1376.85 | G115: 1351.95 | H115: 1328.95 | I115: 1424.75 | J115: 1447.75 | K115: 1472.65 | L115: 1422.85 | M115: 1374.95 | N115: 3644850 | O115: -1.09%
A116: 106 | B116: Oil_Gas | C116: PETRONET | D116: 266.60 | E116: 265.22 | F116: 262.58 | G116: 258.57 | H116: 255.93 | I116: 269.23 | J116: 271.87 | K116: 275.88 | L116: 267.85 | M116: 261.2 | N116: 15633000 | O116: -20.13%
A117: 107 | B117: Finance | C117: PFC | D117: 84.25 | E117: 84.68 | F117: 83.37 | G117: 82.48 | H117: 81.17 | I117: 85.57 | J117: 86.88 | K117: 87.77 | L117: 86 | M117: 83.8 | N117: 49110200 | O117: 0.20%
A118: 108 | B118: FMCG | C118: PIDILITIND | D118: 1390.15 | E118: 1391.98 | F118: 1381.62 | G118: 1373.08 | H118: 1362.72 | I118: 1400.52 | J118: 1410.88 | K118: 1419.42 | L118: 1402.35 | M118: 1383.45 | N118: 3240000 | O118: -0.46%
A119: 109 | B119: Banking | C119: PNB | D119: 36.00 | E119: 36.12 | F119: 35.68 | G119: 35.37 | H119: 34.93 | I119: 36.43 | J119: 36.87 | K119: 37.18 | L119: 36.55 | M119: 35.8 | N119: 51310000 | O119: 1.83%
A120: 110 | B120: Power | C120: POWERGRID | D120: 177.60 | E120: 177.83 | F120: 176.12 | G120: 174.63 | H120: 172.92 | I120: 179.32 | J120: 181.03 | K120: 182.52 | L120: 179.55 | M120: 176.35 | N120: 31972000 | O120: -1.02%
A121: 111 | B121: Media | C121: PVR | D121: 1018.90 | E121: 1011.98 | F121: 1000.57 | G121: 982.23 | H121: 970.82 | I121: 1030.32 | J121: 1041.73 | K121: 1060.07 | L121: 1023.4 | M121: 993.65 | N121: 1461600 | O121: 1.36%
A122: 112 | B122: Cement | C122: RAMCOCEM | D122: 640.05 | E122: 643.07 | F122: 634.98 | G122: 629.92 | H122: 621.83 | I122: 648.13 | J122: 656.22 | K122: 661.28 | L122: 651.15 | M122: 638 | N122: 1008950 | O122: -5.34%
A123: 113 | B123: Banking | C123: RBLBANK | D123: 173.00 | E123: 174.47 | F123: 168.18 | G123: 163.37 | H123: 157.08 | I123: 179.28 | J123: 185.57 | K123: 190.38 | L123: 180.75 | M123: 169.65 | N123: 21091200 | O123: 4.19%
A124: 114 | B124: Power | C124: RECLTD | D124: 108.60 | E124: 108.90 | F124: 107.50 | G124: 106.40 | H124: 105.00 | I124: 110.00 | J124: 111.40 | K124: 112.50 | L124: 110.3 | M124: 107.8 | N124: 16686000 | O124: 0.76%
A125: 115 | B125: Oil_Gas | C125: RELIANCE | D125: 1786.70 | E125: 1782.75 | F125: 1772.15 | G125: 1757.60 | H125: 1747.00 | I125: 1797.30 | J125: 1807.90 | K125: 1822.45 | L125: 1793.35 | M125: 1768.2 | N125: 40115685 | O125: -1.29%
A126: 116 | B126: Metals | C126: SAIL | D126: 30.85 | E126: 31.23 | F126: 30.22 | G126: 29.58 | H126: 28.57 | I126: 31.87 | J126: 32.88 | K126: 33.52 | L126: 32.25 | M126: 30.6 | N126: 54872000 | O126: -12.48%
A127: 117 | B127: Finance | C127: SBILIFE | D127: 846.25 | E127: 838.00 | F127: 828.00 | G127: 809.75 | H127: 799.75 | I127: 856.25 | J127: 866.25 | K127: 884.50 | L127: 848 | M127: 819.75 | N127: 6033000 | O127: 2.73%
A128: 118 | B128: Banking | C128: SBIN | D128: 184.95 | E128: 185.28 | F128: 183.17 | G128: 181.38 | H128: 179.27 | I128: 187.07 | J128: 189.18 | K128: 190.97 | L128: 187.4 | M128: 183.5 | N128: 104292000 | O128: -1.33%
A129: 119 | B129: Cement | C129: SHREECEM | D129: 22913.00 | E129: 22882.98 | F129: 22780.32 | G129: 22647.63 | H129: 22544.97 | I129: 23015.67 | J129: 23118.33 | K129: 23251.02 | L129: 22985.65 | M129: 22750.3 | N129: 146250 | O129: 0.79%
A130: 120 | B130: Capital_Goods | C130: SIEMENS | D130: 1152.85 | E130: 1136.60 | F130: 1116.30 | G130: 1079.75 | H130: 1059.45 | I130: 1173.15 | J130: 1193.45 | K130: 1230.00 | L130: 1156.9 | M130: 1100.05 | N130: 2670250 | O130: 15.35%
A131: 121 | B131: Textile | C131: SRF | D131: 3649.40 | E131: 3656.32 | F131: 3623.63 | G131: 3597.87 | H131: 3565.18 | I131: 3682.08 | J131: 3714.77 | K131: 3740.53 | L131: 3689 | M131: 3630.55 | N131: 528500 | O131: -3.51%
A132: 122 | B132: Finance | C132: SRTRANSFIN | D132: 696.70 | E132: 698.25 | F132: 686.45 | G132: 676.20 | H132: 664.40 | I132: 708.50 | J132: 720.30 | K132: 730.55 | L132: 710.05 | M132: 688 | N132: 2938650 | O132: 7.57%
A133: 123 | B133: Pharma | C133: SUNPHARMA | D133: 476.40 | E133: 475.67 | F133: 472.78 | G133: 469.17 | H133: 466.28 | I133: 479.28 | J133: 482.17 | K133: 485.78 | L133: 478.55 | M133: 472.05 | N133: 30361800 | O133: -1.70%
A134: 124 | B134: Media | C134: SUNTV | D134: 401.00 | E134: 402.63 | F134: 396.77 | G134: 392.53 | H134: 386.67 | I134: 406.87 | J134: 412.73 | K134: 416.97 | L134: 408.5 | M134: 398.4 | N134: 4812000 | O134: -0.96%
A135: 125 | B135: Fertilisers | C135: TATACHEM | D135: 308.50 | E135: 309.37 | F135: 305.38 | G135: 302.27 | H135: 298.28 | I135: 312.48 | J135: 316.47 | K135: 319.58 | L135: 313.35 | M135: 306.25 | N135: 1758000 | O135: 1.74%
A136: 126 | B136: Others | C136: TATACONSUM | D136: 397.65 | E136: 398.37 | F136: 393.73 | G136: 389.82 | H136: 385.18 | I136: 402.28 | J136: 406.92 | K136: 410.83 | L136: 403 | M136: 394.45 | N136: 14212800 | O136: 2.79%
A137: 127 | B137: Automobile | C137: TATAMOTORS | D137: 103.80 | E137: 104.27 | F137: 101.83 | G137: 99.87 | H137: 97.43 | I137: 106.23 | J137: 108.67 | K137: 110.63 | L137: 106.7 | M137: 102.3 | N137: 85676700 | O137: 4.72%
A138: 128 | B138: Power | C138: TATAPOWER | D138: 48.50 | E138: 48.73 | F138: 47.77 | G138: 47.03 | H138: 46.07 | I138: 49.47 | J138: 50.43 | K138: 51.17 | L138: 49.7 | M138: 48 | N138: 52866000 | O138: -11.26%
A139: 129 | B139: Metals | C139: TATASTEEL | D139: 323.80 | E139: 326.72 | F139: 319.73 | G139: 315.67 | H139: 308.68 | I139: 330.78 | J139: 337.77 | K139: 341.83 | L139: 333.7 | M139: 322.65 | N139: 17810900 | O139: 3.28%
A140: 130 | B140: Technology | C140: TCS | D140: 2183.70 | E140: 2175.15 | F140: 2161.80 | G140: 2139.90 | H140: 2126.55 | I140: 2197.05 | J140: 2210.40 | K140: 2232.30 | L140: 2188.5 | M140: 2153.25 | N140: 8915700 | O140: 5.23%
A141: 131 | B141: Technology | C141: TECHM | D141: 561.85 | E141: 561.45 | F141: 555.90 | G141: 549.95 | H141: 544.40 | I141: 567.40 | J141: 572.95 | K141: 578.90 | L141: 567 | M141: 555.5 | N141: 18184800 | O141: -4.14%
A142: 132 | B142: FMCG | C142: TITAN | D142: 1004.60 | E142: 999.80 | F142: 990.80 | G142: 977.00 | H142: 968.00 | I142: 1013.60 | J142: 1022.60 | K142: 1036.40 | L142: 1008.8 | M142: 986 | N142: 7176750 | O142: -1.29%
A143: 133 | B143: Pharma | C143: TORNTPHARM | D143: 2401.80 | E143: 2389.22 | F143: 2370.63 | G143: 2339.47 | H143: 2320.88 | I143: 2420.38 | J143: 2438.97 | K143: 2470.13 | L143: 2407.8 | M143: 2358.05 | N143: 1420500 | O143: 2.86%
A144: 134 | B144: Power | C144: TORNTPOWER | D144: 329.25 | E144: 328.45 | F144: 324.90 | G144: 320.55 | H144: 317.00 | I144: 332.80 | J144: 336.35 | K144: 340.70 | L144: 332 | M144: 324.1 | N144: 1662000 | O144: 4.14%
A145: 135 | B145: Automobile | C145: TVSMOTOR | D145: 392.80 | E145: 390.63 | F145: 384.67 | G145: 376.53 | H145: 370.57 | I145: 398.77 | J145: 404.73 | K145: 412.87 | L145: 396.6 | M145: 382.5 | N145: 4152400 | O145: -1.00%
A146: 136 | B146: FMCG | C146: UBL | D146: 1034.35 | E146: 1040.60 | F146: 1024.25 | G146: 1014.15 | H146: 997.80 | I146: 1050.70 | J146: 1067.05 | K146: 1077.15 | L146: 1056.95 | M146: 1030.5 | N146: 1005900 | O146: -0.96%
A147: 137 | B147: Finance | C147: UJJIVAN | D147: 238.80 | E147: 241.42 | F147: 233.03 | G147: 227.27 | H147: 218.88 | I147: 247.18 | J147: 255.57 | K147: 261.33 | L147: 249.8 | M147: 235.65 | N147: 3374800 | O147: 7.12%
A148: 138 | B148: Cement | C148: ULTRACEMCO | D148: 3887.15 | E148: 3908.22 | F148: 3854.18 | G148: 3821.22 | H148: 3767.18 | I148: 3941.18 | J148: 3995.22 | K148: 4028.18 | L148: 3962.25 | M148: 3875.25 | N148: 2261200 | O148: -0.95%
A149: 139 | B149: Fertilisers | C149: UPL | D149: 439.80 | E149: 442.82 | F149: 435.58 | G149: 431.37 | H149: 424.13 | I149: 447.03 | J149: 454.27 | K149: 458.48 | L149: 450.05 | M149: 438.6 | N149: 9180600 | O149: -0.21%
A150: 140 | B150: Metals | C150: VEDL | D150: 106.55 | E150: 106.02 | F150: 104.28 | G150: 102.02 | H150: 100.28 | I150: 108.28 | J150: 110.02 | K150: 112.28 | L150: 107.75 | M150: 103.75 | N150: 107489400 | O150: 1.13%
A151: 141 | B151: Capital_Goods | C151: VOLTAS | D151: 560.50 | E151: 560.53 | F151: 552.52 | G151: 544.53 | H151: 536.52 | I151: 568.52 | J151: 576.53 | K151: 584.52 | L151: 568.55 | M151: 552.55 | N151: 3431000 | O151: -0.52%
A152: 142 | B152: Technology | C152: WIPRO | D152: 225.40 | E152: 225.73 | F152: 222.57 | G152: 219.73 | H152: 216.57 | I152: 228.57 | J152: 231.73 | K152: 234.57 | L152: 228.9 | M152: 222.9 | N152: 24835200 | O152: -1.95%
A153: 143 | B153: Media | C153: ZEEL | D153: 171.55 | E153: 173.05 | F153: 169.15 | G153: 166.75 | H153: 162.85 | I153: 175.45 | J153: 179.35 | K153: 181.75 | L153: 176.95 | M153: 170.65 | N153: 20868000 | O153: -5.18%
A154: 144
A155: 145
A156: 146
A157: 147
A175: Pivot Point: This is trigger point for intra day buy/sell based on the price range of the previous day
A176: As per the tool,the trader should take BUY position just above Pivot and keep the stop loss of pivot point and the first target would be Resistance 1(R1)
A177: If R1 is crossed then R2 becomes the next target with stop loss of at R1
A178: Similarly if price goes below pivot point then the trader should sell and keep a stop loss of pivot point and the first target would be S1
A179: If S1 is crossed then S2 becomes the next target with stop loss of at S1
A181: Disclaimer:
A182: This document has been prepared by the Retail Research Desk of Asit C Mehta
A183: Investment Intermediates Ltd. and is meant for use of the recipient only
A184: and is not for circulation. This document is not to be reported or
A185: copied or made available to others. It should not be considered to be
A186: taken as an offer to sell or a solicitation to buy any security. The
A187: information contained herein is from sources believed reliable. We do
A188: not represent that it is accurate or complete and it should not be
A189: relied upon as such. We may from time to time have positions in and buy
A190: and sell securities referred to herein

Sheet Cash Intra
M5: Back to Main Page
A6: FOR INTRA DAY TRADING | K6: =Main!B10 -> 2020-07-06
A8: Sr.no | B8: Scrip | C8: CLOSE RATE | D8: Pivot Point | E8: Supports | H8: Resistances
C9: Point | E9: S1 | F9: S2 | G9: S3 | H9: R1 | I9: R2 | J9: R3 | K9: HIGH | L9: LOW | M9: Total Trade Quanity in Lakhs
A10: 1 | B10: Nifty 50 | C10: 10607.35 | D10: 10600.43 | E10: 10569.57 | F10: 10531.78 | G10: 10500.92 | H10: 10638.22 | I10: 10669.08 | J10: 10706.87 | K10: 10631.3 | L10: 10562.65
A11: 2 | B11: Nifty Bank | C11: 21852.4 | D11: 21916.90 | E11: 21703.50 | F11: 21554.60 | G11: 21341.20 | H11: 22065.80 | I11: 22279.20 | J11: 22428.10 | K11: 22130.3 | L11: 21768
A12: 3 | B12: Nifty CPSE | C12: 1464.75 | D12: 1458.08 | E12: 1448.87 | F12: 1432.98 | G12: 1423.77 | H12: 1473.97 | I12: 1483.18 | J12: 1499.07 | K12: 1467.3 | L12: 1442.2
A13: 4 | B13: Nifty Infra | C13: 3106.1 | D13: 3096.20 | E13: 3082.80 | F13: 3059.50 | G13: 3046.10 | H13: 3119.50 | I13: 3132.90 | J13: 3156.20 | K13: 3109.6 | L13: 3072.9
A14: 5 | B14: Nifty IT | C14: 15285.9 | D14: 15257.08 | E14: 15177.32 | F14: 15068.73 | G14: 14988.97 | H14: 15365.67 | I14: 15445.43 | J14: 15554.02 | K14: 15336.85 | L14: 15148.5
A15: 6 | B15: Nifty PSE | C15: 2537.6 | D15: 2529.40 | E15: 2517.50 | F15: 2497.40 | G15: 2485.50 | H15: 2549.50 | I15: 2561.40 | J15: 2581.50 | K15: 2541.3 | L15: 2509.3
A16: 7 | B16: Nifty Midcap 50 | C16: 4208.75 | D16: 4199.08 | E16: 4179.27 | F16: 4149.78 | G16: 4129.97 | H16: 4228.57 | I16: 4248.38 | J16: 4277.87 | K16: 4218.9 | L16: 4169.6
A17: 8 | B17: ACC | C17: 1314.95 | D17: 1319.50 | E17: 1301.45 | F17: 1287.95 | G17: 1269.90 | H17: 1333.00 | I17: 1351.05 | J17: 1364.55 | K17: 1337.55 | L17: 1306 | M17: 10.19896
A18: 9 | B18: AUBANK | C18: 566.95 | D18: 569.43 | E18: 550.87 | F18: 534.78 | G18: 516.22 | H18: 585.52 | I18: 604.08 | J18: 620.17 | K18: 588 | L18: 553.35 | M18: 2.53264
A19: 10 | B19: ADANIPORTS | C19: 360.4 | D19: 358.62 | E19: 350.43 | F19: 340.47 | G19: 332.28 | H19: 368.58 | I19: 376.77 | J19: 386.73 | K19: 366.8 | L19: 348.65 | M19: 93.00948
A20: 11 | B20: ADANIPOWER | C20: 35.9 | D20: 35.93 | E20: 35.77 | F20: 35.63 | G20: 35.47 | H20: 36.07 | I20: 36.23 | J20: 36.37 | K20: 36.1 | L20: 35.8 | M20: 26.4323
A21: 12 | B21: ABCAPITAL | C21: 65.6 | D21: 66.23 | E21: 64.47 | F21: 63.33 | G21: 61.57 | H21: 67.37 | I21: 69.13 | J21: 70.27 | K21: 68 | L21: 65.1 | M21: 30.29402
A22: 13 | B22: ABFRL | C22: 120.6 | D22: 121.45 | E22: 119.15 | F22: 117.70 | G22: 115.40 | H22: 122.90 | I22: 125.20 | J22: 126.65 | K22: 123.75 | L22: 120 | M22: 12.52747
A23: 14 | B23: AJANTPHARM | C23: 1409.95 | D23: 1417.85 | E23: 1400.10 | F23: 1390.25 | G23: 1372.50 | H23: 1427.70 | I23: 1445.45 | J23: 1455.30 | K23: 1435.6 | L23: 1408 | M23: 1.08962
A24: 15 | B24: ALKEM | C24: 2350.8 | D24: 2351.93 | E24: 2338.87 | F24: 2326.93 | G24: 2313.87 | H24: 2363.87 | I24: 2376.93 | J24: 2388.87 | K24: 2365 | L24: 2340 | M24: 1.3318
A25: 16 | B25: AMARAJABAT | C25: 690.6 | D25: 693.08 | E25: 683.67 | F25: 676.73 | G25: 667.32 | H25: 700.02 | I25: 709.43 | J25: 716.37 | K25: 702.5 | L25: 686.15 | M25: 28.82466
A26: 17 | B26: AMBUJACEM | C26: 195.8 | D26: 194.70 | E26: 193.15 | F26: 190.50 | G26: 188.95 | H26: 197.35 | I26: 198.90 | J26: 201.55 | K26: 196.25 | L26: 192.05 | M26: 41.68369
A27: 18 | B27: APOLLOHOSP | C27: 1379.8 | D27: 1382.27 | E27: 1363.53 | F27: 1347.27 | G27: 1328.53 | H27: 1398.53 | I27: 1417.27 | J27: 1433.53 | K27: 1401 | L27: 1366 | M27: 10.34372
A28: 19 | B28: APOLLOTYRE | C28: 114.25 | D28: 113.53 | E28: 112.22 | F28: 110.18 | G28: 108.87 | H28: 115.57 | I28: 116.88 | J28: 118.92 | K28: 114.85 | L28: 111.5 | M28: 90.1168
A29: 20 | B29: ASHOKLEY | C29: 49.1 | D29: 49.05 | E29: 48.50 | F29: 47.90 | G29: 47.35 | H29: 49.65 | I29: 50.20 | J29: 50.80 | K29: 49.6 | L29: 48.45 | M29: 269.48876
A30: 21 | B30: ASIANPAINT | C30: 1695.65 | D30: 1701.88 | E30: 1683.77 | F30: 1671.88 | G30: 1653.77 | H30: 1713.77 | I30: 1731.88 | J30: 1743.77 | K30: 1720 | L30: 1690 | M30: 19.88941
A31: 22 | B31: AUROPHARMA | C31: 777.85 | D31: 781.28 | E31: 772.27 | F31: 766.68 | G31: 757.67 | H31: 786.87 | I31: 795.88 | J31: 801.47 | K31: 790.3 | L31: 775.7 | M31: 14.15552
A32: 23 | B32: DMART | C32: 2290.15 | D32: 2292.05 | E32: 2274.15 | F32: 2258.15 | G32: 2240.25 | H32: 2308.05 | I32: 2325.95 | J32: 2341.95 | K32: 2309.95 | L32: 2276.05 | M32: 3.69961
A33: 24 | B33: AXISBANK | C33: 428.45 | D33: 427.90 | E33: 424.20 | F33: 419.95 | G33: 416.25 | H33: 432.15 | I33: 435.85 | J33: 440.10 | K33: 431.6 | L33: 423.65 | M33: 310.4447
A34: 25 | B34: BAJAJ-AUTO | C34: 2932.4 | D34: 2926.67 | E34: 2893.33 | F34: 2854.27 | G34: 2820.93 | H34: 2965.73 | I34: 2999.07 | J34: 3038.13 | K34: 2960 | L34: 2887.6 | M34: 13.94994
A35: 26 | B35: BAJFINANCE | C35: 2931.5 | D35: 2947.32 | E35: 2905.18 | F35: 2878.87 | G35: 2836.73 | H35: 2973.63 | I35: 3015.77 | J35: 3042.08 | K35: 2989.45 | L35: 2921 | M35: 85.43799
A36: 27 | B36: BAJAJFINSV | C36: 6149.4 | D36: 6171.90 | E36: 6105.50 | F36: 6061.60 | G36: 5995.20 | H36: 6215.80 | I36: 6282.20 | J36: 6326.10 | K36: 6238.3 | L36: 6128 | M36: 8.33077
A37: 28 | B37: BAJAJHLDNG | C37: 2546.5 | D37: 2566.82 | E37: 2515.68 | F37: 2484.87 | G37: 2433.73 | H37: 2597.63 | I37: 2648.77 | J37: 2679.58 | K37: 2617.95 | L37: 2536 | M37: 0.64135
A38: 29 | B38: BALKRISIND | C38: 1314.1 | D38: 1301.52 | E38: 1284.13 | F38: 1254.17 | G38: 1236.78 | H38: 1331.48 | I38: 1348.87 | J38: 1378.83 | K38: 1318.9 | L38: 1271.55 | M38: 8.60881
A39: 30 | B39: BANDHANBNK | C39: 347.15 | D39: 345.13 | E39: 338.52 | F39: 329.88 | G39: 323.27 | H39: 353.77 | I39: 360.38 | J39: 369.02 | K39: 351.75 | L39: 336.5 | M39: 151.32955
A40: 31 | B40: BANKBARODA | C40: 50.75 | D40: 51.05 | E40: 50.25 | F40: 49.75 | G40: 48.95 | H40: 51.55 | I40: 52.35 | J40: 52.85 | K40: 51.85 | L40: 50.55 | M40: 266.26325
A41: 32 | B41: BANKINDIA | C41: 50.55 | D41: 50.82 | E41: 48.93 | F41: 47.32 | G41: 45.43 | H41: 52.43 | I41: 54.32 | J41: 55.93 | K41: 52.7 | L41: 49.2 | M41: 48.85261
A42: 33 | B42: BATAINDIA | C42: 1298.65 | D42: 1295.75 | E42: 1286.50 | F42: 1274.35 | G42: 1265.10 | H42: 1307.90 | I42: 1317.15 | J42: 1329.30 | K42: 1305 | L42: 1283.6 | M42: 20.70221
A43: 34 | B43: BERGEPAINT | C43: 503.6 | D43: 501.77 | E43: 496.53 | F43: 489.47 | G43: 484.23 | H43: 508.83 | I43: 514.07 | J43: 521.13 | K43: 507 | L43: 494.7 | M43: 16.6233
A44: 35 | B44: BEL | C44: 97.2 | D44: 95.22 | E44: 92.48 | F44: 87.77 | G44: 85.03 | H44: 99.93 | I44: 102.67 | J44: 107.38 | K44: 97.95 | L44: 90.5 | M44: 684.46245
A45: 36 | B45: BHARATFORG | C45: 358.8 | D45: 352.75 | E45: 344.10 | F45: 329.40 | G45: 320.75 | H45: 367.45 | I45: 376.10 | J45: 390.80 | K45: 361.4 | L45: 338.05 | M45: 85.21915
A46: 37 | B46: BHEL | C46: 38.65 | D46: 38.10 | E46: 37.20 | F46: 35.75 | G46: 34.85 | H46: 39.55 | I46: 40.45 | J46: 41.90 | K46: 39 | L46: 36.65 | M46: 1442.96168
A47: 38 | B47: BPCL | C47: 385.4 | D47: 386.42 | E47: 382.28 | F47: 379.17 | G47: 375.03 | H47: 389.53 | I47: 393.67 | J47: 396.78 | K47: 390.55 | L47: 383.3 | M47: 34.81053
A48: 39 | B48: BHARTIARTL | C48: 581.45 | D48: 575.17 | E48: 566.88 | F48: 552.32 | G48: 544.03 | H48: 589.73 | I48: 598.02 | J48: 612.58 | K48: 583.45 | L48: 560.6 | M48: 206.20014
A49: 40 | B49: INFRATEL | C49: 226.7 | D49: 225.45 | E49: 222.40 | F49: 218.10 | G49: 215.05 | H49: 229.75 | I49: 232.80 | J49: 237.10 | K49: 228.5 | L49: 221.15 | M49: 59.44142
A50: 41 | B50: BIOCON | C50: 395.6 | D50: 394.60 | E50: 391.30 | F50: 387.00 | G50: 383.70 | H50: 398.90 | I50: 402.20 | J50: 406.50 | K50: 397.9 | L50: 390.3 | M50: 30.47932
A51: 42 | B51: BBTC | C51: 1029.9 | D51: 1031.00 | E51: 1019.00 | F51: 1008.10 | G51: 996.10 | H51: 1041.90 | I51: 1053.90 | J51: 1064.80 | K51: 1043 | L51: 1020.1 | M51: 0.48425
A52: 43 | B52: BOSCHLTD | C52: 11777.05 | D52: 11833.13 | E52: 11592.92 | F52: 11408.78 | G52: 11168.57 | H52: 12017.27 | I52: 12257.48 | J52: 12441.62 | K52: 12073.35 | L52: 11649 | M52: 0.47869
A53: 44 | B53: BRITANNIA | C53: 3538.35 | D53: 3544.43 | E53: 3508.92 | F53: 3479.48 | G53: 3443.97 | H53: 3573.87 | I53: 3609.38 | J53: 3638.82 | K53: 3579.95 | L53: 3515 | M53: 3.23231
A54: 45 | B54: CESC | C54: 629.2 | D54: 631.78 | E54: 622.72 | F54: 616.23 | G54: 607.17 | H54: 638.27 | I54: 647.33 | J54: 653.82 | K54: 640.85 | L54: 625.3 | M54: 1.26529
A55: 46 | B55: CADILAHC | C55: 366.35 | D55: 369.62 | E55: 359.23 | F55: 352.12 | G55: 341.73 | H55: 376.73 | I55: 387.12 | J55: 394.23 | K55: 380 | L55: 362.5 | M55: 88.34396
A56: 47 | B56: CANBK | C56: 103 | D56: 103.57 | E56: 101.73 | F56: 100.47 | G56: 98.63 | H56: 104.83 | I56: 106.67 | J56: 107.93 | K56: 105.4 | L56: 102.3 | M56: 90.25626
A57: 48 | B57: CASTROLIND | C57: 121.15 | D57: 122.45 | E57: 119.20 | F57: 117.25 | G57: 114.00 | H57: 124.40 | I57: 127.65 | J57: 129.60 | K57: 125.7 | L57: 120.5 | M57: 15.20877
A58: 49 | B58: CHOLAFIN | C58: 196.7 | D58: 198.60 | E58: 192.50 | F58: 188.30 | G58: 182.20 | H58: 202.80 | I58: 208.90 | J58: 213.10 | K58: 204.7 | L58: 194.4 | M58: 230.43297
A59: 50 | B59: CIPLA | C59: 638.8 | D59: 642.42 | E59: 631.88 | F59: 624.97 | G59: 614.43 | H59: 649.33 | I59: 659.87 | J59: 666.78 | K59: 652.95 | L59: 635.5 | M59: 53.80124
A60: 51 | B60: CUB | C60: 123.6 | D60: 123.77 | E60: 122.58 | F60: 121.57 | G60: 120.38 | H60: 124.78 | I60: 125.97 | J60: 126.98 | K60: 124.95 | L60: 122.75 | M60: 10.51169
A61: 52 | B61: COALINDIA | C61: 135.25 | D61: 134.73 | E61: 133.57 | F61: 131.88 | G61: 130.72 | H61: 136.42 | I61: 137.58 | J61: 139.27 | K61: 135.9 | L61: 133.05 | M61: 90.93435
A62: 53 | B62: COLPAL | C62: 1382.65 | D62: 1385.22 | E62: 1374.43 | F62: 1366.22 | G62: 1355.43 | H62: 1393.43 | I62: 1404.22 | J62: 1412.43 | K62: 1396 | L62: 1377 | M62: 5.04435
A63: 54 | B63: CONCOR | C63: 429.95 | D63: 428.32 | E63: 424.73 | F63: 419.52 | G63: 415.93 | H63: 433.53 | I63: 437.12 | J63: 442.33 | K63: 431.9 | L63: 423.1 | M63: 9.23889
A64: 55 | B64: COROMANDEL | C64: 749.25 | D64: 752.33 | E64: 741.92 | F64: 734.58 | G64: 724.17 | H64: 759.67 | I64: 770.08 | J64: 777.42 | K64: 762.75 | L64: 745 | M64: 3.92553
A65: 56 | B65: CROMPTON | C65: 236.4 | D65: 238.58 | E65: 233.17 | F65: 229.93 | G65: 224.52 | H65: 241.82 | I65: 247.23 | J65: 250.47 | K65: 244 | L65: 235.35 | M65: 2.15062
A66: 57 | B66: CUMMINSIND | C66: 410.75 | D66: 407.02 | E66: 401.53 | F66: 392.32 | G66: 386.83 | H66: 416.23 | I66: 421.72 | J66: 430.93 | K66: 412.5 | L66: 397.8 | M66: 9.79346
A67: 58 | B67: DLF | C67: 151.25 | D67: 151.83 | E67: 148.92 | F67: 146.58 | G67: 143.67 | H67: 154.17 | I67: 157.08 | J67: 159.42 | K67: 154.75 | L67: 149.5 | M67: 66.98888
A68: 59 | B68: DABUR | C68: 467.05 | D68: 467.50 | E68: 464.25 | F68: 461.45 | G68: 458.20 | H68: 470.30 | I68: 473.55 | J68: 476.35 | K68: 470.75 | L68: 464.7 | M68: 23.23284
A69: 60 | B69: DALBHARAT | C69: 715.85 | D69: 715.60 | E69: 691.35 | F69: 666.85 | G69: 642.60 | H69: 740.10 | I69: 764.35 | J69: 788.85 | K69: 739.85 | L69: 691.1 | M69: 1.20117
A70: 61 | B70: DIVISLAB | C70: 2190.45 | D70: 2206.68 | E70: 2164.87 | F70: 2139.28 | G70: 2097.47 | H70: 2232.27 | I70: 2274.08 | J70: 2299.67 | K70: 2248.5 | L70: 2181.1 | M70: 15.16429
A71: 62 | B71: DRREDDY | C71: 3921.45 | D71: 3933.13 | E71: 3898.32 | F71: 3875.18 | G71: 3840.37 | H71: 3956.27 | I71: 3991.08 | J71: 4014.22 | K71: 3967.95 | L71: 3910 | M71: 4.56078
A72: 63 | B72: EDELWEISS | C72: 60.6 | D72: 61.03 | E72: 59.57 | F72: 58.53 | G72: 57.07 | H72: 62.07 | I72: 63.53 | J72: 64.57 | K72: 62.5 | L72: 60 | M72: 17.10059
A73: 64 | B73: EICHERMOT | C73: 18983.5 | D73: 18862.03 | E73: 18475.07 | F73: 17966.63 | G73: 17579.67 | H73: 19370.47 | I73: 19757.43 | J73: 20265.87 | K73: 19249 | L73: 18353.6 | M73: 2.50716
A74: 65 | B74: EMAMILTD | C74: 229.9 | D74: 228.62 | E74: 225.28 | F74: 220.67 | G74: 217.33 | H74: 233.23 | I74: 236.57 | J74: 241.18 | K74: 231.95 | L74: 224 | M74: 22.19574
A75: 66 | B75: ENDURANCE | C75: 877.45 | D75: 874.08 | E75: 868.37 | F75: 859.28 | G75: 853.57 | H75: 883.17 | I75: 888.88 | J75: 897.97 | K75: 879.8 | L75: 865 | M75: 0.5334
A76: 67 | B76: ENGINERSIN | C76: 74.95 | D76: 75.82 | E76: 73.63 | F76: 72.32 | G76: 70.13 | H76: 77.13 | I76: 79.32 | J76: 80.63 | K76: 78 | L76: 74.5 | M76: 28.82429
A77: 68 | B77: ESCORTS | C77: 1059.9 | D77: 1054.52 | E77: 1044.53 | F77: 1029.17 | G77: 1019.18 | H77: 1069.88 | I77: 1079.87 | J77: 1095.23 | K77: 1064.5 | L77: 1039.15 | M77: 15.49109
A78: 69 | B78: EXIDEIND | C78: 153.3 | D78: 153.85 | E78: 151.80 | F78: 150.30 | G78: 148.25 | H78: 155.35 | I78: 157.40 | J78: 158.90 | K78: 155.9 | L78: 152.35 | M78: 40.14054
A79: 70 | B79: FEDERALBNK | C79: 53 | D79: 53.17 | E79: 52.38 | F79: 51.77 | G79: 50.98 | H79: 53.78 | I79: 54.57 | J79: 55.18 | K79: 53.95 | L79: 52.55 | M79: 163.04999
A80: 71 | B80: FORTIS | C80: 126.75 | D80: 128.03 | E80: 124.82 | F80: 122.88 | G80: 119.67 | H80: 129.97 | I80: 133.18 | J80: 135.12 | K80: 131.25 | L80: 126.1 | M80: 22.49177
A81: 72 | B81: FCONSUMER | C81: 14.3 | D81: 14.30 | E81: 14.30 | F81: 14.30 | G81: 14.30 | H81: 14.30 | I81: 14.30 | J81: 14.30 | K81: 14.3 | L81: 14.3 | M81: 31.56047
A82: 73 | B82: FRETAIL | C82: 136.6 | D82: 140.40 | E82: 131.70 | F82: 126.80 | G82: 118.10 | H82: 145.30 | I82: 154.00 | J82: 158.90 | K82: 149.1 | L82: 135.5 | M82: 124.35273
A83: 74 | B83: GAIL | C83: 104.9 | D83: 104.57 | E83: 103.33 | F83: 101.77 | G83: 100.53 | H83: 106.13 | I83: 107.37 | J83: 108.93 | K83: 105.8 | L83: 103 | M83: 107.04732
A84: 75 | B84: GMRINFRA | C84: 21.5 | D84: 21.30 | E84: 20.95 | F84: 20.40 | G84: 20.05 | H84: 21.85 | I84: 22.20 | J84: 22.75 | K84: 21.65 | L84: 20.75 | M84: 187.3733
A85: 76 | B85: GICRE | C85: 153.75 | D85: 153.57 | E85: 150.68 | F85: 147.62 | G85: 144.73 | H85: 156.63 | I85: 159.52 | J85: 162.58 | K85: 156.45 | L85: 150.5 | M85: 4.39497
A86: 77 | B86: GLENMARK | C86: 432.7 | D86: 434.23 | E86: 428.97 | F86: 425.23 | G86: 419.97 | H86: 437.97 | I86: 443.23 | J86: 446.97 | K86: 439.5 | L86: 430.5 | M86: 33.20448
A87: 78 | B87: GODREJAGRO | C87: 433.65 | D87: 434.43 | E87: 430.37 | F87: 427.08 | G87: 423.02 | H87: 437.72 | I87: 441.78 | J87: 445.07 | K87: 438.5 | L87: 431.15 | M87: 0.6984
A88: 79 | B88: GODREJCP | C88: 717.3 | D88: 710.45 | E88: 702.00 | F88: 686.70 | G88: 678.25 | H88: 725.75 | I88: 734.20 | J88: 749.50 | K88: 718.9 | L88: 695.15 | M88: 22.86821
A89: 80 | B89: GODREJIND | C89: 393.75 | D89: 396.43 | E89: 388.92 | F89: 384.08 | G89: 376.57 | H89: 401.27 | I89: 408.78 | J89: 413.62 | K89: 403.95 | L89: 391.6 | M89: 0.90651
A90: 81 | B90: GODREJPROP | C90: 894.2 | D90: 886.17 | E90: 874.63 | F90: 855.07 | G90: 843.53 | H90: 905.73 | I90: 917.27 | J90: 936.83 | K90: 897.7 | L90: 866.6 | M90: 6.08015
A91: 82 | B91: GRAPHITE | C91: 189.6 | D91: 190.72 | E91: 187.03 | F91: 184.47 | G91: 180.78 | H91: 193.28 | I91: 196.97 | J91: 199.53 | K91: 194.4 | L91: 188.15 | M91: 5.37831
A92: 83 | B92: GRASIM | C92: 628.15 | D92: 623.88 | E92: 617.77 | F92: 607.38 | G92: 601.27 | H92: 634.27 | I92: 640.38 | J92: 650.77 | K92: 630 | L92: 613.5 | M92: 20.66551
A93: 84 | B93: GSPL | C93: 221.6 | D93: 222.20 | E93: 218.60 | F93: 215.60 | G93: 212.00 | H93: 225.20 | I93: 228.80 | J93: 231.80 | K93: 225.8 | L93: 219.2 | M93: 6.3326
A94: 85 | B94: HEG | C94: 856.15 | D94: 860.98 | E94: 843.17 | F94: 830.18 | G94: 812.37 | H94: 873.97 | I94: 891.78 | J94: 904.77 | K94: 878.8 | L94: 848 | M94: 3.49628
A95: 86 | B95: HCLTECH | C95: 579.15 | D95: 576.77 | E95: 572.98 | F95: 566.82 | G95: 563.03 | H95: 582.93 | I95: 586.72 | J95: 592.88 | K95: 580.55 | L95: 570.6 | M95: 37.356
A96: 87 | B96: HDFCAMC | C96: 2543.95 | D96: 2534.98 | E96: 2508.97 | F96: 2473.98 | G96: 2447.97 | H96: 2569.97 | I96: 2595.98 | J96: 2630.97 | K96: 2561 | L96: 2500 | M96: 4.28028
A97: 88 | B97: HDFCBANK | C97: 1073.95 | D97: 1079.92 | E97: 1064.03 | F97: 1054.12 | G97: 1038.23 | H97: 1089.83 | I97: 1105.72 | J97: 1115.63 | K97: 1095.8 | L97: 1070 | M97: 137.98879
A98: 89 | B98: HDFCLIFE | C98: 572.15 | D98: 573.25 | E98: 556.90 | F98: 541.65 | G98: 525.30 | H98: 588.50 | I98: 604.85 | J98: 620.10 | K98: 589.6 | L98: 558 | M98: 156.63762
A99: 90 | B99: HAVELLS | C99: 580.05 | D99: 582.37 | E99: 575.78 | F99: 571.52 | G99: 564.93 | H99: 586.63 | I99: 593.22 | J99: 597.48 | K99: 588.95 | L99: 578.1 | M99: 12.07054
A100: 91 | B100: HEROMOTOCO | C100: 2738.25 | D100: 2721.95 | E100: 2693.90 | F100: 2649.55 | G100: 2621.50 | H100: 2766.30 | I100: 2794.35 | J100: 2838.70 | K100: 2750 | L100: 2677.6 | M100: 26.37811
A101: 92 | B101: HEXAWARE | C101: 334 | D101: 334.37 | E101: 331.73 | F101: 329.47 | G101: 326.83 | H101: 336.63 | I101: 339.27 | J101: 341.53 | K101: 337 | L101: 332.1 | M101: 5.51587
A102: 93 | B102: HINDALCO | C102: 146.4 | D102: 146.80 | E102: 144.15 | F102: 141.90 | G102: 139.25 | H102: 149.05 | I102: 151.70 | J102: 153.95 | K102: 149.45 | L102: 144.55 | M102: 107.80269
A103: 94 | B103: HINDPETRO | C103: 215.85 | D103: 215.55 | E103: 213.30 | F103: 210.75 | G103: 208.50 | H103: 218.10 | I103: 220.35 | J103: 222.90 | K103: 217.8 | L103: 213 | M103: 39.84647
A104: 95 | B104: HINDUNILVR | C104: 2173.7 | D104: 2172.68 | E104: 2157.37 | F104: 2141.03 | G104: 2125.72 | H104: 2189.02 | I104: 2204.33 | J104: 2220.67 | K104: 2188 | L104: 2156.35 | M104: 19.46326
A105: 96 | B105: HINDZINC | C105: 195.15 | D105: 195.88 | E105: 194.27 | F105: 193.38 | G105: 191.77 | H105: 196.77 | I105: 198.38 | J105: 199.27 | K105: 197.5 | L105: 195 | M105: 3.66876
A106: 97 | B106: HUDCO | C106: 34 | D106: 33.88 | E106: 32.92 | F106: 31.83 | G106: 30.87 | H106: 34.97 | I106: 35.93 | J106: 37.02 | K106: 34.85 | L106: 32.8 | M106: 57.439
A107: 98 | B107: HDFC | C107: 1885.2 | D107: 1886.83 | E107: 1865.67 | F107: 1846.13 | G107: 1824.97 | H107: 1906.37 | I107: 1927.53 | J107: 1947.07 | K107: 1908 | L107: 1867.3 | M107: 44.30264
A108: 99 | B108: ICICIBANK | C108: 361 | D108: 362.65 | E108: 358.15 | F108: 355.30 | G108: 350.80 | H108: 365.50 | I108: 370.00 | J108: 372.85 | K108: 367.15 | L108: 359.8 | M108: 287.79331
A109: 100 | B109: ICICIGI | C109: 1279.3 | D109: 1284.83 | E109: 1269.67 | F109: 1260.03 | G109: 1244.87 | H109: 1294.47 | I109: 1309.63 | J109: 1319.27 | K109: 1300 | L109: 1275.2 | M109: 1.94878
A110: 101 | B110: ICICIPRULI | C110: 433.5 | D110: 434.68 | E110: 425.82 | F110: 418.13 | G110: 409.27 | H110: 442.37 | I110: 451.23 | J110: 458.92 | K110: 443.55 | L110: 427 | M110: 38.31136
A111: 102 | B111: IDBI | C111: 51 | D111: 51.00 | E111: 51.00 | F111: 51.00 | G111: 51.00 | H111: 51.00 | I111: 51.00 | J111: 51.00 | K111: 51 | L111: 51 | M111: 16.81925
A112: 103 | B112: IDFCFIRSTB | C112: 26.75 | D112: 26.80 | E112: 26.50 | F112: 26.25 | G112: 25.95 | H112: 27.05 | I112: 27.35 | J112: 27.60 | K112: 27.1 | L112: 26.55 | M112: 191.19529
A113: 104 | B113: ITC | C113: 207.55 | D113: 207.35 | E113: 206.20 | F113: 204.85 | G113: 203.70 | H113: 208.70 | I113: 209.85 | J113: 211.20 | K113: 208.5 | L113: 206 | M113: 378.96333
A114: 105 | B114: IBULHSGFIN | C114: 231.05 | D114: 226.90 | E114: 218.90 | F114: 206.75 | G114: 198.75 | H114: 239.05 | I114: 247.05 | J114: 259.20 | K114: 234.9 | L114: 214.75 | M114: 642.21613
A115: 106 | B115: IBVENTURES | C115: 113.7 | D115: 115.63 | E115: 111.02 | F115: 108.33 | G115: 103.72 | H115: 118.32 | I115: 122.93 | J115: 125.62 | K115: 120.25 | L115: 112.95 | M115: 32.68805
A116: 107 | B116: INDIANB | C116: 64.55 | D116: 65.03 | E116: 63.57 | F116: 62.58 | G116: 61.12 | H116: 66.02 | I116: 67.48 | J116: 68.47 | K116: 66.5 | L116: 64.05 | M116: 17.79928
A117: 108 | B117: INDHOTEL | C117: 80.3 | D117: 80.03 | E117: 79.27 | F117: 78.23 | G117: 77.47 | H117: 81.07 | I117: 81.83 | J117: 82.87 | K117: 80.8 | L117: 79 | M117: 11.093
A118: 109 | B118: IOC | C118: 87.85 | D118: 88.05 | E118: 87.00 | F118: 86.15 | G118: 85.10 | H118: 88.90 | I118: 89.95 | J118: 90.80 | K118: 89.1 | L118: 87.2 | M118: 99.8979
A119: 110 | B119: IGL | C119: 447.5 | D119: 448.25 | E119: 443.25 | F119: 439.00 | G119: 434.00 | H119: 452.50 | I119: 457.50 | J119: 461.75 | K119: 453.25 | L119: 444 | M119: 23.68537
A120: 111 | B120: INDUSINDBK | C120: 487.2 | D120: 490.52 | E120: 481.03 | F120: 474.87 | G120: 465.38 | H120: 496.68 | I120: 506.17 | J120: 512.33 | K120: 500 | L120: 484.35 | M120: 156.33607
A121: 112 | B121: NAUKRI | C121: 2768.9 | D121: 2786.42 | E121: 2743.88 | F121: 2718.87 | G121: 2676.33 | H121: 2811.43 | I121: 2853.97 | J121: 2878.98 | K121: 2828.95 | L121: 2761.4 | M121: 1.2388
A122: 113 | B122: INFY | C122: 762.7 | D122: 759.73 | E122: 755.47 | F122: 748.23 | G122: 743.97 | H122: 766.97 | I122: 771.23 | J122: 778.47 | K122: 764 | L122: 752.5 | M122: 77.96573
A123: 114 | B123: INDIGO | C123: 1012.15 | D123: 1010.47 | E123: 1002.93 | F123: 993.72 | G123: 986.18 | H123: 1019.68 | I123: 1027.22 | J123: 1036.43 | K123: 1018 | L123: 1001.25 | M123: 7.57674
A124: 115 | B124: IPCALAB | C124: 1662.7 | D124: 1667.23 | E124: 1645.47 | F124: 1628.23 | G124: 1606.47 | H124: 1684.47 | I124: 1706.23 | J124: 1723.47 | K124: 1689 | L124: 1650 | M124: 1.30171
A125: 116 | B125: JSWENERGY | C125: 48.95 | D125: 49.47 | E125: 48.18 | F125: 47.42 | G125: 46.13 | H125: 50.23 | I125: 51.52 | J125: 52.28 | K125: 50.75 | L125: 48.7 | M125: 10.54729
A126: 117 | B126: JSWSTEEL | C126: 190.95 | D126: 192.65 | E126: 188.80 | F126: 186.65 | G126: 182.80 | H126: 194.80 | I126: 198.65 | J126: 200.80 | K126: 196.5 | L126: 190.5 | M126: 66.10649
A127: 118 | B127: JINDALSTEL | C127: 153.7 | D127: 154.48 | E127: 152.07 | F127: 150.43 | G127: 148.02 | H127: 156.12 | I127: 158.53 | J127: 160.17 | K127: 156.9 | L127: 152.85 | M127: 84.17786
A128: 119 | B128: JUBLFOOD | C128: 1737.05 | D128: 1740.30 | E128: 1725.65 | F128: 1714.25 | G128: 1699.60 | H128: 1751.70 | I128: 1766.35 | J128: 1777.75 | K128: 1754.95 | L128: 1728.9 | M128: 3.67896
A129: 120 | B129: JUBILANT | C129: 683.8 | D129: 680.87 | E129: 672.93 | F129: 662.07 | G129: 654.13 | H129: 691.73 | I129: 699.67 | J129: 710.53 | K129: 688.8 | L129: 670 | M129: 2.33383
A130: 121 | B130: KOTAKBANK | C130: 1353.8 | D130: 1357.52 | E130: 1346.33 | F130: 1338.87 | G130: 1327.68 | H130: 1364.98 | I130: 1376.17 | J130: 1383.63 | K130: 1368.7 | L130: 1350.05 | M130: 27.68223
A131: 122 | B131: L&TFH | C131: 67.65 | D131: 68.17 | E131: 66.38 | F131: 65.12 | G131: 63.33 | H131: 69.43 | I131: 71.22 | J131: 72.48 | K131: 69.95 | L131: 66.9 | M131: 136.03643
A132: 123 | B132: LTTS | C132: 1295.1 | D132: 1297.07 | E132: 1288.13 | F132: 1281.17 | G132: 1272.23 | H132: 1304.03 | I132: 1312.97 | J132: 1319.93 | K132: 1306 | L132: 1290.1 | M132: 0.64345
A133: 124 | B133: LICHSGFIN | C133: 274.35 | D133: 276.65 | E133: 269.30 | F133: 264.25 | G133: 256.90 | H133: 281.70 | I133: 289.05 | J133: 294.10 | K133: 284 | L133: 271.6 | M133: 46.88154
A134: 125 | B134: LTI | C134: 1978.25 | D134: 1978.02 | E134: 1957.28 | F134: 1936.32 | G134: 1915.58 | H134: 1998.98 | I134: 2019.72 | J134: 2040.68 | K134: 1998.75 | L134: 1957.05 | M134: 2.03541
A135: 126 | B135: LT | C135: 944.25 | D135: 947.08 | E135: 938.77 | F135: 933.28 | G135: 924.97 | H135: 952.57 | I135: 960.88 | J135: 966.37 | K135: 955.4 | L135: 941.6 | M135: 39.28373
A136: 127 | B136: LUPIN | C136: 900.05 | D136: 898.08 | E136: 891.97 | F136: 883.88 | G136: 877.77 | H136: 906.17 | I136: 912.28 | J136: 920.37 | K136: 904.2 | L136: 890 | M136: 21.03099
A137: 128 | B137: MRF | C137: 66140.25 | D137: 66185.22 | E137: 65770.48 | F137: 65400.72 | G137: 64985.98 | H137: 66554.98 | I137: 66969.72 | J137: 67339.48 | K137: 66599.95 | L137: 65815.45 | M137: 0.08136
A138: 129 | B138: MGL | C138: 1071.25 | D138: 1066.68 | E138: 1053.62 | F138: 1035.98 | G138: 1022.92 | H138: 1084.32 | I138: 1097.38 | J138: 1115.02 | K138: 1079.75 | L138: 1049.05 | M138: 7.96618
A139: 130 | B139: M&MFIN | C139: 182.75 | D139: 183.53 | E139: 179.57 | F139: 176.38 | G139: 172.42 | H139: 186.72 | I139: 190.68 | J139: 193.87 | K139: 187.5 | L139: 180.35 | M139: 118.6839
A140: 131 | B140: M&M | C140: 530.5 | D140: 530.07 | E140: 524.63 | F140: 518.77 | G140: 513.33 | H140: 535.93 | I140: 541.37 | J140: 547.23 | K140: 535.5 | L140: 524.2 | M140: 79.82336
A141: 132 | B141: MANAPPURAM | C141: 161.3 | D141: 161.23 | E141: 159.07 | F141: 156.83 | G141: 154.67 | H141: 163.47 | I141: 165.63 | J141: 167.87 | K141: 163.4 | L141: 159 | M141: 73.424
A142: 133 | B142: MRPL | C142: 36.8 | D142: 37.25 | E142: 36.05 | F142: 35.30 | G142: 34.10 | H142: 38.00 | I142: 39.20 | J142: 39.95 | K142: 38.45 | L142: 36.5 | M142: 10.6063
A143: 134 | B143: MARICO | C143: 358.5 | D143: 357.55 | E143: 355.25 | F143: 352.00 | G143: 349.70 | H143: 360.80 | I143: 363.10 | J143: 366.35 | K143: 359.85 | L143: 354.3 | M143: 23.19392
A144: 135 | B144: MARUTI | C144: 5932.1 | D144: 5934.58 | E144: 5880.57 | F144: 5829.03 | G144: 5775.02 | H144: 5986.12 | I144: 6040.13 | J144: 6091.67 | K144: 5988.6 | L144: 5883.05 | M144: 10.59779
A145: 136 | B145: MFSL | C145: 554.95 | D145: 550.97 | E145: 539.58 | F145: 524.22 | G145: 512.83 | H145: 566.33 | I145: 577.72 | J145: 593.08 | K145: 562.35 | L145: 535.6 | M145: 9.3173
A146: 137 | B146: MINDTREE | C146: 945.15 | D146: 948.15 | E146: 931.80 | F146: 918.45 | G146: 902.10 | H146: 961.50 | I146: 977.85 | J146: 991.20 | K146: 964.5 | L146: 934.8 | M146: 12.84587
A147: 138 | B147: MOTHERSUMI | C147: 98.1 | D147: 97.63 | E147: 94.67 | F147: 91.23 | G147: 88.27 | H147: 101.07 | I147: 104.03 | J147: 107.47 | K147: 100.6 | L147: 94.2 | M147: 899.56108
A148: 139 | B148: MPHASIS | C148: 886.6 | D148: 881.45 | E148: 872.15 | F148: 857.70 | G148: 848.40 | H148: 895.90 | I148: 905.20 | J148: 919.65 | K148: 890.75 | L148: 867 | M148: 1.34569
A149: 140 | B149: MUTHOOTFIN | C149: 1146.35 | D149: 1137.70 | E149: 1123.95 | F149: 1101.55 | G149: 1087.80 | H149: 1160.10 | I149: 1173.85 | J149: 1196.25 | K149: 1151.45 | L149: 1115.3 | M149: 25.37057
A150: 141 | B150: NATCOPHARM | C150: 663.1 | D150: 655.43 | E150: 640.87 | F150: 618.63 | G150: 604.07 | H150: 677.67 | I150: 692.23 | J150: 714.47 | K150: 670 | L150: 633.2 | M150: 3.69766
A151: 142 | B151: NBCC | C151: 24.4 | D151: 24.63 | E151: 24.07 | F151: 23.73 | G151: 23.17 | H151: 24.97 | I151: 25.53 | J151: 25.87 | K151: 25.2 | L151: 24.3 | M151: 87.49772
A152: 143 | B152: NHPC | C152: 20.7 | D152: 20.60 | E152: 20.45 | F152: 20.20 | G152: 20.05 | H152: 20.85 | I152: 21.00 | J152: 21.25 | K152: 20.75 | L152: 20.35 | M152: 66.64116
A153: 144 | B153: NMDC | C153: 82.55 | D153: 82.30 | E153: 81.60 | F153: 80.65 | G153: 79.95 | H153: 83.25 | I153: 83.95 | J153: 84.90 | K153: 83 | L153: 81.35 | M153: 45.07875
A154: 145 | B154: NTPC | C154: 94.5 | D154: 94.20 | E154: 93.05 | F154: 91.60 | G154: 90.45 | H154: 95.65 | I154: 96.80 | J154: 98.25 | K154: 95.35 | L154: 92.75 | M154: 152.74892
A155: 146 | B155: NATIONALUM | C155: 32.45 | D155: 32.68 | E155: 32.02 | F155: 31.58 | G155: 30.92 | H155: 33.12 | I155: 33.78 | J155: 34.22 | K155: 33.35 | L155: 32.25 | M155: 94.285
A156: 147 | B156: NESTLEIND | C156: 16695.6 | D156: 16778.53 | E156: 16567.07 | F156: 16438.53 | G156: 16227.07 | H156: 16907.07 | I156: 17118.53 | J156: 17247.07 | K156: 16990 | L156: 16650 | M156: 1.81658
A157: 148 | B157: NAM-INDIA | C157: 313.8 | D157: 315.25 | E157: 310.60 | F157: 307.40 | G157: 302.75 | H157: 318.45 | I157: 323.10 | J157: 326.30 | K157: 319.9 | L157: 312.05 | M157: 8.72868
A158: 149 | B158: OBEROIRLTY | C158: 359.55 | D158: 360.85 | E158: 356.70 | F158: 353.85 | G158: 349.70 | H158: 363.70 | I158: 367.85 | J158: 370.70 | K158: 365 | L158: 358 | M158: 1.44318
A159: 150 | B159: ONGC | C159: 82.4 | D159: 82.45 | E159: 81.55 | F159: 80.70 | G159: 79.80 | H159: 83.30 | I159: 84.20 | J159: 85.05 | K159: 83.35 | L159: 81.6 | M159: 167.93161
A160: 151 | B160: OIL | C160: 97.3 | D160: 96.63 | E160: 95.62 | F160: 93.93 | G160: 92.92 | H160: 98.32 | I160: 99.33 | J160: 101.02 | K160: 97.65 | L160: 94.95 | M160: 14.20286
A161: 152 | B161: OFSS | C161: 2864.95 | D161: 2869.32 | E161: 2823.63 | F161: 2782.32 | G161: 2736.63 | H161: 2910.63 | I161: 2956.32 | J161: 2997.63 | K161: 2915 | L161: 2828 | M161: 0.22903
A162: 153 | B162: PIIND | C162: 1576.3 | D162: 1584.27 | E162: 1559.63 | F162: 1542.97 | G162: 1518.33 | H162: 1600.93 | I162: 1625.57 | J162: 1642.23 | K162: 1608.9 | L162: 1567.6 | M162: 3.21437
A163: 154 | B163: PNBHOUSING | C163: 210.05 | D163: 211.18 | E163: 207.07 | F163: 204.08 | G163: 199.97 | H163: 214.17 | I163: 218.28 | J163: 221.27 | K163: 215.3 | L163: 208.2 | M163: 5.21545
A164: 155 | B164: PAGEIND | C164: 20621.7 | D164: 20547.40 | E164: 20375.30 | F164: 20128.90 | G164: 19956.80 | H164: 20793.80 | I164: 20965.90 | J164: 21212.30 | K164: 20719.5 | L164: 20301 | M164: 0.20787
A165: 156 | B165: PETRONET | C165: 272.75 | D165: 269.75 | E165: 265.30 | F165: 257.85 | G165: 253.40 | H165: 277.20 | I165: 281.65 | J165: 289.10 | K165: 274.2 | L165: 262.3 | M165: 118.52877
A166: 157 | B166: PFIZER | C166: 4122.85 | D166: 4151.43 | E166: 4088.87 | F166: 4054.88 | G166: 3992.32 | H166: 4185.42 | I166: 4247.98 | J166: 4281.97 | K166: 4214 | L166: 4117.45 | M166: 0.49958
A167: 158 | B167: PIDILITIND | C167: 1389.45 | D167: 1391.68 | E167: 1379.37 | F167: 1369.28 | G167: 1356.97 | H167: 1401.77 | I167: 1414.08 | J167: 1424.17 | K167: 1404 | L167: 1381.6 | M167: 5.21034
A168: 159 | B168: PEL | C168: 1411.05 | D168: 1410.15 | E168: 1389.00 | F168: 1366.95 | G168: 1345.80 | H168: 1432.20 | I168: 1453.35 | J168: 1475.40 | K168: 1431.3 | L168: 1388.1 | M168: 16.60477
A169: 160 | B169: PFC | C169: 84.2 | D169: 84.63 | E169: 83.42 | F169: 82.63 | G169: 81.42 | H169: 85.42 | I169: 86.63 | J169: 87.42 | K169: 85.85 | L169: 83.85 | M169: 45.68669
A170: 161 | B170: POWERGRID | C170: 177.6 | D170: 177.37 | E170: 175.33 | F170: 173.07 | G170: 171.03 | H170: 179.63 | I170: 181.67 | J170: 183.93 | K170: 179.4 | L170: 175.1 | M170: 127.80027
A171: 162 | B171: PRESTIGE | C171: 204.9 | D171: 204.67 | E171: 201.33 | F171: 197.77 | G171: 194.43 | H171: 208.23 | I171: 211.57 | J171: 215.13 | K171: 208 | L171: 201.1 | M171: 7.63656
A172: 163 | B172: PGHH | C172: 10348.2 | D172: 10303.50 | E172: 10230.30 | F172: 10112.40 | G172: 10039.20 | H172: 10421.40 | I172: 10494.60 | J172: 10612.50 | K172: 10376.7 | L172: 10185.6 | M172: 0.02758
A173: 164 | B173: PNB | C173: 35.95 | D173: 36.10 | E173: 35.65 | F173: 35.35 | G173: 34.90 | H173: 36.40 | I173: 36.85 | J173: 37.15 | K173: 36.55 | L173: 35.8 | M173: 194.74835
A174: 165 | B174: QUESS | C174: 346.5 | D174: 350.08 | E174: 340.42 | F174: 334.33 | G174: 324.67 | H174: 356.17 | I174: 365.83 | J174: 371.92 | K174: 359.75 | L174: 344 | M174: 2.68144
A175: 166 | B175: RBLBANK | C175: 173.6 | D175: 175.22 | E175: 169.18 | F175: 164.77 | G175: 158.73 | H175: 179.63 | I175: 185.67 | J175: 190.08 | K175: 181.25 | L175: 170.8 | M175: 294.45808
A176: 167 | B176: RECLTD | C176: 108.3 | D176: 108.65 | E176: 107.15 | F176: 106.00 | G176: 104.50 | H176: 109.80 | I176: 111.30 | J176: 112.45 | K176: 110.15 | L176: 107.5 | M176: 45.14898
A177: 168 | B177: RAJESHEXPO | C177: 483.75 | D177: 480.05 | E177: 472.85 | F177: 461.95 | G177: 454.75 | H177: 490.95 | I177: 498.15 | J177: 509.05 | K177: 487.25 | L177: 469.15 | M177: 2.27345
A178: 169 | B178: RELIANCE | C178: 1787.9 | D178: 1782.97 | E178: 1772.93 | F178: 1757.97 | G178: 1747.93 | H178: 1797.93 | I178: 1807.97 | J178: 1822.93 | K178: 1793 | L178: 1768 | M178: 135.84004
A179: 170 | B179: SBILIFE | C179: 844.05 | D179: 836.47 | E179: 826.93 | F179: 809.82 | G179: 800.28 | H179: 853.58 | I179: 863.12 | J179: 880.23 | K179: 846 | L179: 819.35 | M179: 20.85481
A180: 171 | B180: SRF | C180: 3643.4 | D180: 3652.92 | E180: 3620.48 | F180: 3597.57 | G180: 3565.13 | H180: 3675.83 | I180: 3708.27 | J180: 3731.18 | K180: 3685.35 | L180: 3630 | M180: 0.63209
A181: 172 | B181: SHREECEM | C181: 22872.65 | D181: 22865.92 | E181: 22744.28 | F181: 22615.92 | G181: 22494.28 | H181: 22994.28 | I181: 23115.92 | J181: 23244.28 | K181: 22987.55 | L181: 22737.55 | M181: 0.31513
A182: 173 | B182: SRTRANSFIN | C182: 696 | D182: 697.68 | E182: 687.37 | F182: 678.73 | G182: 668.42 | H182: 706.32 | I182: 716.63 | J182: 725.27 | K182: 708 | L182: 689.05 | M182: 27.63971
A183: 174 | B183: SIEMENS | C183: 1149.2 | D183: 1133.10 | E183: 1112.50 | F183: 1075.80 | G183: 1055.20 | H183: 1169.80 | I183: 1190.40 | J183: 1227.10 | K183: 1153.7 | L183: 1096.4 | M183: 19.0024
A184: 175 | B184: SBIN | C184: 184.7 | D184: 184.98 | E184: 183.12 | F184: 181.53 | G184: 179.67 | H184: 186.57 | I184: 188.43 | J184: 190.02 | K184: 186.85 | L184: 183.4 | M184: 380.50996
A185: 176 | B185: SAIL | C185: 30.85 | D185: 31.28 | E185: 30.17 | F185: 29.48 | G185: 28.37 | H185: 31.97 | I185: 33.08 | J185: 33.77 | K185: 32.4 | L185: 30.6 | M185: 381.54944
A186: 177 | B186: STRTECH | C186: 127.85 | D186: 127.45 | E186: 123.90 | F186: 119.95 | G186: 116.40 | H186: 131.40 | I186: 134.95 | J186: 138.90 | K186: 131 | L186: 123.5 | M186: 32.0749
A187: 178 | B187: SUNPHARMA | C187: 476.85 | D187: 476.07 | E187: 472.78 | F187: 468.72 | G187: 465.43 | H187: 480.13 | I187: 483.42 | J187: 487.48 | K187: 479.35 | L187: 472 | M187: 46.66366
A188: 179 | B188: SUNTV | C188: 399.75 | D188: 401.67 | E188: 395.78 | F188: 391.82 | G188: 385.93 | H188: 405.63 | I188: 411.52 | J188: 415.48 | K188: 407.55 | L188: 397.7 | M188: 13.38846
A189: 180 | B189: SYNGENE | C189: 437.35 | D189: 429.08 | E189: 414.42 | F189: 391.48 | G189: 376.82 | H189: 452.02 | I189: 466.68 | J189: 489.62 | K189: 443.75 | L189: 406.15 | M189: 16.26423
A190: 181 | B190: TVSMOTOR | C190: 395.5 | D190: 392.75 | E190: 387.80 | F190: 380.10 | G190: 375.15 | H190: 400.45 | I190: 405.40 | J190: 413.10 | K190: 397.7 | L190: 385.05 | M190: 31.71494
A191: 182 | B191: TCS | C191: 2199.65 | D191: 2188.30 | E191: 2171.60 | F191: 2143.55 | G191: 2126.85 | H191: 2216.35 | I191: 2233.05 | J191: 2261.10 | K191: 2205 | L191: 2160.25 | M191: 41.85215
A192: 183 | B192: TATACONSUM | C192: 396.45 | D192: 397.13 | E192: 391.97 | F192: 387.48 | G192: 382.32 | H192: 401.62 | I192: 406.78 | J192: 411.27 | K192: 402.3 | L192: 392.65 | M192: 32.23338
A193: 184 | B193: TATAMTRDVR | C193: 41.45 | D193: 41.72 | E193: 40.78 | F193: 40.12 | G193: 39.18 | H193: 42.38 | I193: 43.32 | J193: 43.98 | K193: 42.65 | L193: 41.05 | M193: 58.48885
A194: 185 | B194: TATAMOTORS | C194: 103.45 | D194: 103.97 | E194: 101.58 | F194: 99.72 | G194: 97.33 | H194: 105.83 | I194: 108.22 | J194: 110.08 | K194: 106.35 | L194: 102.1 | M194: 873.12581
A195: 186 | B195: TATAPOWER | C195: 49.9 | D195: 50.15 | E195: 49.10 | F195: 48.30 | G195: 47.25 | H195: 50.95 | I195: 52.00 | J195: 52.80 | K195: 51.2 | L195: 49.35 | M195: 627.0208
A196: 187 | B196: TATASTEEL | C196: 329.9 | D196: 331.42 | E196: 325.83 | F196: 321.77 | G196: 316.18 | H196: 335.48 | I196: 341.07 | J196: 345.13 | K196: 337 | L196: 327.35 | M196: 106.1273
A197: 188 | B197: TECHM | C197: 567.2 | D197: 566.83 | E197: 561.42 | F197: 555.63 | G197: 550.22 | H197: 572.62 | I197: 578.03 | J197: 583.82 | K197: 572.25 | L197: 561.05 | M197: 40.07492
A198: 189 | B198: NIACL | C198: 119.1 | D198: 119.93 | E198: 117.87 | F198: 116.63 | G198: 114.57 | H198: 121.17 | I198: 123.23 | J198: 124.47 | K198: 122 | L198: 118.7 | M198: 4.29868
A199: 190 | B199: RAMCOCEM | C199: 640.65 | D199: 644.57 | E199: 635.13 | F199: 629.62 | G199: 620.18 | H199: 650.08 | I199: 659.52 | J199: 665.03 | K199: 654 | L199: 639.05 | M199: 5.98591
A200: 191 | B200: TITAN | C200: 1003.5 | D200: 999.27 | E200: 990.53 | F200: 977.57 | G200: 968.83 | H200: 1012.23 | I200: 1020.97 | J200: 1033.93 | K200: 1008 | L200: 986.3 | M200: 30.73826
A201: 192 | B201: TORNTPHARM | C201: 2395.2 | D201: 2383.03 | E201: 2365.42 | F201: 2335.63 | G201: 2318.02 | H201: 2412.82 | I201: 2430.43 | J201: 2460.22 | K201: 2400.65 | L201: 2353.25 | M201: 3.14301
A202: 193 | B202: TORNTPOWER | C202: 328.3 | D202: 328.13 | E202: 324.47 | F202: 320.63 | G202: 316.97 | H202: 331.97 | I202: 335.63 | J202: 339.47 | K202: 331.8 | L202: 324.3 | M202: 16.255
A203: 194 | B203: UPL | C203: 444.2 | D203: 446.52 | E203: 440.08 | F203: 435.97 | G203: 429.53 | H203: 450.63 | I203: 457.07 | J203: 461.18 | K203: 452.95 | L203: 442.4 | M203: 38.12085
A204: 195 | B204: ULTRACEMCO | C204: 3889.6 | D204: 3908.20 | E204: 3856.40 | F204: 3823.20 | G204: 3771.40 | H204: 3941.40 | I204: 3993.20 | J204: 4026.40 | K204: 3960 | L204: 3875 | M204: 2.57664
A205: 196 | B205: UNIONBANK | C205: 32.05 | D205: 32.27 | E205: 31.78 | F205: 31.52 | G205: 31.03 | H205: 32.53 | I205: 33.02 | J205: 33.28 | K205: 32.75 | L205: 32 | M205: 27.58761
... 30 more rows

Sheet MidCap Intra
L5: Back To Main Page
A6: FOR INTRA DAY TRADING | K6: =Main!B10 -> 2020-07-06
A9: Sr.no | B9: Scrip | C9: CLOSE RATE | D9: Pivot Point | E9: Supports | H9: Resistances
C10: Point | E10: S1 | F10: S2 | G10: S3 | H10: R1 | I10: R2 | J10: R3 | K10: HIGH | L10: LOW | M10: Total Trade Quanity in Lakhs
A11: 1 | B11: 3MINDIA | C11: 18440.4 | D11: 18593.47 | E11: 18196.93 | F11: 17953.47 | G11: 17556.93 | H11: 18836.93 | I11: 19233.47 | J11: 19476.93 | K11: 18990 | L11: 18350 | M11: 0.03354
A12: 2 | B12: AARTIIND | C12: 926.4 | D12: 928.48 | E12: 921.97 | F12: 917.53 | G12: 911.02 | H12: 932.92 | I12: 939.43 | J12: 943.87 | K12: 935 | L12: 924.05 | M12: 1.59579
A13: 3 | B13: AAVAS | C13: 1343.9 | D13: 1339.63 | E13: 1314.37 | F13: 1284.83 | G13: 1259.57 | H13: 1369.17 | I13: 1394.43 | J13: 1423.97 | K13: 1364.9 | L13: 1310.1 | M13: 0.25764
A14: 4 | B14: ABBOTINDIA | C14: 15657.45 | D14: 15711.48 | E14: 15538.97 | F14: 15420.48 | G14: 15247.97 | H14: 15829.97 | I14: 16002.48 | J14: 16120.97 | K14: 15884 | L14: 15593 | M14: 0.09165
A15: 5 | B15: ABCAPITAL | C15: 65.6 | D15: 66.23 | E15: 64.47 | F15: 63.33 | G15: 61.57 | H15: 67.37 | I15: 69.13 | J15: 70.27 | K15: 68 | L15: 65.1 | M15: 30.29402
A16: 6 | B16: ABFRL | C16: 120.6 | D16: 121.45 | E16: 119.15 | F16: 117.70 | G16: 115.40 | H16: 122.90 | I16: 125.20 | J16: 126.65 | K16: 123.75 | L16: 120 | M16: 12.52747
A17: 7 | B17: ACC | C17: 1314.95 | D17: 1319.50 | E17: 1301.45 | F17: 1287.95 | G17: 1269.90 | H17: 1333.00 | I17: 1351.05 | J17: 1364.55 | K17: 1337.55 | L17: 1306 | M17: 10.19896
A18: 8 | B18: ADANIGAS | C18: 161.35 | D18: 162.68 | E18: 158.82 | F18: 156.28 | G18: 152.42 | H18: 165.22 | I18: 169.08 | J18: 171.62 | K18: 166.55 | L18: 160.15 | M18: 16.75589
A19: 9 | B19: ADANIGREEN | C19: 375.8 | D19: 375.80 | E19: 375.80 | F19: 375.80 | G19: 375.80 | H19: 375.80 | I19: 375.80 | J19: 375.80 | K19: 375.8 | L19: 375.8 | M19: 1.27962
A20: 10 | B20: ADANIPORTS | C20: 360.4 | D20: 358.62 | E20: 350.43 | F20: 340.47 | G20: 332.28 | H20: 368.58 | I20: 376.77 | J20: 386.73 | K20: 366.8 | L20: 348.65 | M20: 93.00948
A21: 11 | B21: ADANIPOWER | C21: 35.9 | D21: 35.93 | E21: 35.77 | F21: 35.63 | G21: 35.47 | H21: 36.07 | I21: 36.23 | J21: 36.37 | K21: 36.1 | L21: 35.8 | M21: 26.4323
A22: 12 | B22: ADANITRANS | C22: 261.5 | D22: 262.98 | E22: 257.52 | F22: 253.53 | G22: 248.07 | H22: 266.97 | I22: 272.43 | J22: 276.42 | K22: 268.45 | L22: 259 | M22: 2.47878
A23: 13 | B23: ADVENZYMES | C23: 171.15 | D23: 172.28 | E23: 169.57 | F23: 167.98 | G23: 165.27 | H23: 173.87 | I23: 176.58 | J23: 178.17 | K23: 175 | L23: 170.7 | M23: 0.52113
A24: 14 | B24: AEGISCHEM | C24: 173.15 | D24: 173.58 | E24: 170.87 | F24: 168.58 | G24: 165.87 | H24: 175.87 | I24: 178.58 | J24: 180.87 | K24: 176.3 | L24: 171.3 | M24: 7.32274
A25: 15 | B25: AFFLE | C25: 1524.3 | D25: 1516.88 | E25: 1509.47 | F25: 1494.63 | G25: 1487.22 | H25: 1531.72 | I25: 1539.13 | J25: 1553.97 | K25: 1524.3 | L25: 1502.05 | M25: 0.48055
A26: 16 | B26: AIAENG | C26: 1608.6 | D26: 1618.37 | E26: 1588.73 | F26: 1568.87 | G26: 1539.23 | H26: 1638.23 | I26: 1667.87 | J26: 1687.73 | K26: 1648 | L26: 1598.5 | M26: 0.15467
A27: 17 | B27: AJANTPHARM | C27: 1409.95 | D27: 1417.85 | E27: 1400.10 | F27: 1390.25 | G27: 1372.50 | H27: 1427.70 | I27: 1445.45 | J27: 1455.30 | K27: 1435.6 | L27: 1408 | M27: 1.08962
A28: 18 | B28: AKZOINDIA | C28: 1800.35 | D28: 1806.78 | E28: 1788.57 | F28: 1776.78 | G28: 1758.57 | H28: 1818.57 | I28: 1836.78 | J28: 1848.57 | K28: 1825 | L28: 1795 | M28: 0.12405
A29: 19 | B29: ALKEM | C29: 2350.8 | D29: 2351.93 | E29: 2338.87 | F29: 2326.93 | G29: 2313.87 | H29: 2363.87 | I29: 2376.93 | J29: 2388.87 | K29: 2365 | L29: 2340 | M29: 1.3318
A30: 20 | B30: ALLCARGO | C30: 84.7 | D30: 83.57 | E30: 81.83 | F30: 78.97 | G30: 77.23 | H30: 86.43 | I30: 88.17 | J30: 91.03 | K30: 85.3 | L30: 80.7 | M30: 2.76227
A31: 21 | B31: AMARAJABAT | C31: 690.6 | D31: 693.08 | E31: 683.67 | F31: 676.73 | G31: 667.32 | H31: 700.02 | I31: 709.43 | J31: 716.37 | K31: 702.5 | L31: 686.15 | M31: 28.82466
A32: 22 | B32: AMBER | C32: 1481.55 | D32: 1470.55 | E32: 1455.00 | F32: 1428.45 | G32: 1412.90 | H32: 1497.10 | I32: 1512.65 | J32: 1539.20 | K32: 1486.1 | L32: 1444 | M32: 0.48751
A33: 23 | B33: AMBUJACEM | C33: 195.8 | D33: 194.70 | E33: 193.15 | F33: 190.50 | G33: 188.95 | H33: 197.35 | I33: 198.90 | J33: 201.55 | K33: 196.25 | L33: 192.05 | M33: 41.68369
A34: 24 | B34: APLAPOLLO | C34: 1784.75 | D34: 1785.90 | E34: 1751.85 | F34: 1718.95 | G34: 1684.90 | H34: 1818.80 | I34: 1852.85 | J34: 1885.75 | K34: 1819.95 | L34: 1753 | M34: 0.92053
A35: 25 | B35: APLLTD | C35: 897.2 | D35: 899.73 | E35: 892.47 | F35: 887.73 | G35: 880.47 | H35: 904.47 | I35: 911.73 | J35: 916.47 | K35: 907 | L35: 895 | M35: 1.15782
A36: 26 | B36: APOLLOHOSP | C36: 1379.8 | D36: 1382.27 | E36: 1363.53 | F36: 1347.27 | G36: 1328.53 | H36: 1398.53 | I36: 1417.27 | J36: 1433.53 | K36: 1401 | L36: 1366 | M36: 10.34372
A37: 27 | B37: APOLLOTYRE | C37: 114.25 | D37: 113.53 | E37: 112.22 | F37: 110.18 | G37: 108.87 | H37: 115.57 | I37: 116.88 | J37: 118.92 | K37: 114.85 | L37: 111.5 | M37: 90.1168
A38: 28 | B38: ARVINDFASN | C38: 164.6 | D38: 162.67 | E38: 159.93 | F38: 155.27 | G38: 152.53 | H38: 167.33 | I38: 170.07 | J38: 174.73 | K38: 165.4 | L38: 158 | M38: 1.1191
A39: 29 | B39: ASAHIINDIA | C39: 174.1 | D39: 174.40 | E39: 171.85 | F39: 169.60 | G39: 167.05 | H39: 176.65 | I39: 179.20 | J39: 181.45 | K39: 176.95 | L39: 172.15 | M39: 0.41558
A40: 30 | B40: ASHOKA | C40: 62.25 | D40: 62.37 | E40: 61.58 | F40: 60.92 | G40: 60.13 | H40: 63.03 | I40: 63.82 | J40: 64.48 | K40: 63.15 | L40: 61.7 | M40: 9.38959
A41: 31 | B41: ASHOKLEY | C41: 49.1 | D41: 49.05 | E41: 48.50 | F41: 47.90 | G41: 47.35 | H41: 49.65 | I41: 50.20 | J41: 50.80 | K41: 49.6 | L41: 48.45 | M41: 269.48876
A42: 32 | B42: ASIANPAINT | C42: 1695.65 | D42: 1701.88 | E42: 1683.77 | F42: 1671.88 | G42: 1653.77 | H42: 1713.77 | I42: 1731.88 | J42: 1743.77 | K42: 1720 | L42: 1690 | M42: 19.88941
A43: 33 | B43: ASTERDM | C43: 121.45 | D43: 121.73 | E43: 120.72 | F43: 119.98 | G43: 118.97 | H43: 122.47 | I43: 123.48 | J43: 124.22 | K43: 122.75 | L43: 121 | M43: 4.51572
A44: 34 | B44: ASTRAL | C44: 981.55 | D44: 981.52 | E44: 968.58 | F44: 955.62 | G44: 942.68 | H44: 994.48 | I44: 1007.42 | J44: 1020.38 | K44: 994.45 | L44: 968.55 | M44: 8.02707
A45: 35 | B45: ASTRAZEN | C45: 3513.65 | D45: 3523.70 | E45: 3478.40 | F45: 3443.15 | G45: 3397.85 | H45: 3558.95 | I45: 3604.25 | J45: 3639.50 | K45: 3569 | L45: 3488.45 | M45: 0.29334
A46: 36 | B46: ATUL | C46: 4537.45 | D46: 4534.15 | E46: 4513.30 | F46: 4489.15 | G46: 4468.30 | H46: 4558.30 | I46: 4579.15 | J46: 4603.30 | K46: 4555 | L46: 4510 | M46: 0.07346
A47: 37 | B47: AUBANK | C47: 566.95 | D47: 569.43 | E47: 550.87 | F47: 534.78 | G47: 516.22 | H47: 585.52 | I47: 604.08 | J47: 620.17 | K47: 588 | L47: 553.35 | M47: 2.53264
A48: 38 | B48: AUROPHARMA | C48: 777.85 | D48: 781.28 | E48: 772.27 | F48: 766.68 | G48: 757.67 | H48: 786.87 | I48: 795.88 | J48: 801.47 | K48: 790.3 | L48: 775.7 | M48: 14.15552
A49: 39 | B49: AVANTIFEED | C49: 491.55 | D49: 494.58 | E49: 486.97 | F49: 482.38 | G49: 474.77 | H49: 499.17 | I49: 506.78 | J49: 511.37 | K49: 502.2 | L49: 490 | M49: 4.24103
A50: 40 | B50: AXISBANK | C50: 428.45 | D50: 427.90 | E50: 424.20 | F50: 419.95 | G50: 416.25 | H50: 432.15 | I50: 435.85 | J50: 440.10 | K50: 431.6 | L50: 423.65 | M50: 310.4447
A51: 41 | B51: BAJAJ-AUTO | C51: 2932.4 | D51: 2926.67 | E51: 2893.33 | F51: 2854.27 | G51: 2820.93 | H51: 2965.73 | I51: 2999.07 | J51: 3038.13 | K51: 2960 | L51: 2887.6 | M51: 13.94994
A52: 42 | B52: BAJAJCON | C52: 145.2 | D52: 145.98 | E52: 143.72 | F52: 142.23 | G52: 139.97 | H52: 147.47 | I52: 149.73 | J52: 151.22 | K52: 148.25 | L52: 144.5 | M52: 4.29867
A53: 43 | B53: BAJAJELEC | C53: 384.2 | D53: 386.87 | E53: 380.73 | F53: 377.27 | G53: 371.13 | H53: 390.33 | I53: 396.47 | J53: 399.93 | K53: 393 | L53: 383.4 | M53: 1.83655
A54: 44 | B54: BAJAJFINSV | C54: 6149.4 | D54: 6171.90 | E54: 6105.50 | F54: 6061.60 | G54: 5995.20 | H54: 6215.80 | I54: 6282.20 | J54: 6326.10 | K54: 6238.3 | L54: 6128 | M54: 8.33077
A55: 45 | B55: BAJAJHLDNG | C55: 2546.5 | D55: 2566.82 | E55: 2515.68 | F55: 2484.87 | G55: 2433.73 | H55: 2597.63 | I55: 2648.77 | J55: 2679.58 | K55: 2617.95 | L55: 2536 | M55: 0.64135
A56: 46 | B56: BAJFINANCE | C56: 2931.5 | D56: 2947.32 | E56: 2905.18 | F56: 2878.87 | G56: 2836.73 | H56: 2973.63 | I56: 3015.77 | J56: 3042.08 | K56: 2989.45 | L56: 2921 | M56: 85.43799
A57: 47 | B57: BALKRISIND | C57: 1314.1 | D57: 1301.52 | E57: 1284.13 | F57: 1254.17 | G57: 1236.78 | H57: 1331.48 | I57: 1348.87 | J57: 1378.83 | K57: 1318.9 | L57: 1271.55 | M57: 8.60881
A58: 48 | B58: BALMLAWRIE | C58: 113.7 | D58: 114.32 | E58: 110.63 | F58: 107.57 | G58: 103.88 | H58: 117.38 | I58: 121.07 | J58: 124.13 | K58: 118 | L58: 111.25 | M58: 6.96603
A59: 49 | B59: BALRAMCHIN | C59: 131.65 | D59: 131.05 | E59: 129.60 | F59: 127.55 | G59: 126.10 | H59: 133.10 | I59: 134.55 | J59: 136.60 | K59: 132.5 | L59: 129 | M59: 15.38068
A60: 50 | B60: BANDHANBNK | C60: 347.15 | D60: 345.13 | E60: 338.52 | F60: 329.88 | G60: 323.27 | H60: 353.77 | I60: 360.38 | J60: 369.02 | K60: 351.75 | L60: 336.5 | M60: 151.32955
A61: 51 | B61: BANKBARODA | C61: 50.75 | D61: 51.05 | E61: 50.25 | F61: 49.75 | G61: 48.95 | H61: 51.55 | I61: 52.35 | J61: 52.85 | K61: 51.85 | L61: 50.55 | M61: 266.26325
A62: 52 | B62: BANKINDIA | C62: 50.55 | D62: 50.82 | E62: 48.93 | F62: 47.32 | G62: 45.43 | H62: 52.43 | I62: 54.32 | J62: 55.93 | K62: 52.7 | L62: 49.2 | M62: 48.85261
A63: 53 | B63: BASF | C63: 1241.05 | D63: 1241.30 | E63: 1222.60 | F63: 1204.15 | G63: 1185.45 | H63: 1259.75 | I63: 1278.45 | J63: 1296.90 | K63: 1260 | L63: 1222.85 | M63: 1.12496
A64: 54 | B64: BATAINDIA | C64: 1298.65 | D64: 1295.75 | E64: 1286.50 | F64: 1274.35 | G64: 1265.10 | H64: 1307.90 | I64: 1317.15 | J64: 1329.30 | K64: 1305 | L64: 1283.6 | M64: 20.70221
A65: 55 | B65: BAYERCROP | C65: 6065 | D65: 6149.65 | E65: 5955.35 | F65: 5845.70 | G65: 5651.40 | H65: 6259.30 | I65: 6453.60 | J65: 6563.25 | K65: 6343.95 | L65: 6040 | M65: 0.43363
A66: 56 | B66: BBTC | C66: 1029.9 | D66: 1031.00 | E66: 1019.00 | F66: 1008.10 | G66: 996.10 | H66: 1041.90 | I66: 1053.90 | J66: 1064.80 | K66: 1043 | L66: 1020.1 | M66: 0.48425
A67: 57 | B67: BDL | C67: 374.3 | D67: 366.13 | E67: 351.27 | F67: 328.23 | G67: 313.37 | H67: 389.17 | I67: 404.03 | J67: 427.07 | K67: 381 | L67: 343.1 | M67: 87.64894
A68: 58 | B68: BEL | C68: 97.2 | D68: 95.22 | E68: 92.48 | F68: 87.77 | G68: 85.03 | H68: 99.93 | I68: 102.67 | J68: 107.38 | K68: 97.95 | L68: 90.5 | M68: 684.46245
A69: 59 | B69: BEML | C69: 660.1 | D69: 658.13 | E69: 644.27 | F69: 628.43 | G69: 614.57 | H69: 673.97 | I69: 687.83 | J69: 703.67 | K69: 672 | L69: 642.3 | M69: 22.12911
A70: 60 | B70: BERGEPAINT | C70: 503.6 | D70: 501.77 | E70: 496.53 | F70: 489.47 | G70: 484.23 | H70: 508.83 | I70: 514.07 | J70: 521.13 | K70: 507 | L70: 494.7 | M70: 16.6233
A71: 61 | B71: BHARATFORG | C71: 358.8 | D71: 352.75 | E71: 344.10 | F71: 329.40 | G71: 320.75 | H71: 367.45 | I71: 376.10 | J71: 390.80 | K71: 361.4 | L71: 338.05 | M71: 85.21915
A72: 62 | B72: BHARTIARTL | C72: 581.45 | D72: 575.17 | E72: 566.88 | F72: 552.32 | G72: 544.03 | H72: 589.73 | I72: 598.02 | J72: 612.58 | K72: 583.45 | L72: 560.6 | M72: 206.20014
A73: 63 | B73: BHEL | C73: 38.65 | D73: 38.10 | E73: 37.20 | F73: 35.75 | G73: 34.85 | H73: 39.55 | I73: 40.45 | J73: 41.90 | K73: 39 | L73: 36.65 | M73: 1442.96168
A74: 64 | B74: BIOCON | C74: 395.6 | D74: 394.60 | E74: 391.30 | F74: 387.00 | G74: 383.70 | H74: 398.90 | I74: 402.20 | J74: 406.50 | K74: 397.9 | L74: 390.3 | M74: 30.47932
A75: 65 | B75: BIRLACORPN | C75: 611.05 | D75: 607.88 | E75: 598.77 | F75: 586.48 | G75: 577.37 | H75: 620.17 | I75: 629.28 | J75: 641.57 | K75: 617 | L75: 595.6 | M75: 2.48102
A76: 66 | B76: BLISSGVS | C76: 97.35 | D76: 97.48 | E76: 96.37 | F76: 95.38 | G76: 94.27 | H76: 98.47 | I76: 99.58 | J76: 100.57 | K76: 98.6 | L76: 96.5 | M76: 1.30634
A77: 67 | B77: BLUEDART | C77: 2010 | D77: 2014.17 | E77: 2002.68 | F77: 1995.37 | G77: 1983.88 | H77: 2021.48 | I77: 2032.97 | J77: 2040.28 | K77: 2025.65 | L77: 2006.85 | M77: 0.07919
A78: 68 | B78: BLUESTARCO | C78: 500.15 | D78: 503.87 | E78: 492.83 | F78: 485.52 | G78: 474.48 | H78: 511.18 | I78: 522.22 | J78: 529.53 | K78: 514.9 | L78: 496.55 | M78: 0.78171
A79: 69 | B79: BOMDYEING | C79: 72.55 | D79: 72.82 | E79: 71.73 | F79: 70.92 | G79: 69.83 | H79: 73.63 | I79: 74.72 | J79: 75.53 | K79: 73.9 | L79: 72 | M79: 13.40497
A80: 70 | B80: BOSCHLTD | C80: 11777.05 | D80: 11833.13 | E80: 11592.92 | F80: 11408.78 | G80: 11168.57 | H80: 12017.27 | I80: 12257.48 | J80: 12441.62 | K80: 12073.35 | L80: 11649 | M80: 0.47869
A81: 71 | B81: BPCL | C81: 385.4 | D81: 386.42 | E81: 382.28 | F81: 379.17 | G81: 375.03 | H81: 389.53 | I81: 393.67 | J81: 396.78 | K81: 390.55 | L81: 383.3 | M81: 34.81053
A82: 72 | B82: BRIGADE | C82: 132.15 | D82: 131.75 | E82: 130.15 | F82: 128.15 | G82: 126.55 | H82: 133.75 | I82: 135.35 | J82: 137.35 | K82: 133.35 | L82: 129.75 | M82: 1.5325
A83: 73 | B83: BRITANNIA | C83: 3538.35 | D83: 3544.43 | E83: 3508.92 | F83: 3479.48 | G83: 3443.97 | H83: 3573.87 | I83: 3609.38 | J83: 3638.82 | K83: 3579.95 | L83: 3515 | M83: 3.23231
A84: 74 | B84: BSE | C84: 469.85 | D84: 472.05 | E84: 464.10 | F84: 458.35 | G84: 450.40 | H84: 477.80 | I84: 485.75 | J84: 491.50 | K84: 480 | L84: 466.3 | M84: 1.73539
A85: 75 | B85: BSOFT | C85: 89.9 | D85: 90.27 | E85: 89.13 | F85: 88.37 | G85: 87.23 | H85: 91.03 | I85: 92.17 | J85: 92.93 | K85: 91.4 | L85: 89.5 | M85: 4.7586
A86: 76 | B86: CADILAHC | C86: 366.35 | D86: 369.62 | E86: 359.23 | F86: 352.12 | G86: 341.73 | H86: 376.73 | I86: 387.12 | J86: 394.23 | K86: 380 | L86: 362.5 | M86: 88.34396
A87: 77 | B87: CANBK | C87: 103 | D87: 103.57 | E87: 101.73 | F87: 100.47 | G87: 98.63 | H87: 104.83 | I87: 106.67 | J87: 107.93 | K87: 105.4 | L87: 102.3 | M87: 90.25626
A88: 78 | B88: CANFINHOME | C88: 353.35 | D88: 354.27 | E88: 348.28 | F88: 343.22 | G88: 337.23 | H88: 359.33 | I88: 365.32 | J88: 370.38 | K88: 360.25 | L88: 349.2 | M88: 4.51113
A89: 79 | B89: CAPLIPOINT | C89: 339.05 | D89: 340.58 | E89: 333.67 | F89: 328.28 | G89: 321.37 | H89: 345.97 | I89: 352.88 | J89: 358.27 | K89: 347.5 | L89: 335.2 | M89: 3.72011
A90: 80 | B90: CARBORUNIV | C90: 268.75 | D90: 270.60 | E90: 266.20 | F90: 263.65 | G90: 259.25 | H90: 273.15 | I90: 277.55 | J90: 280.10 | K90: 275 | L90: 268.05 | M90: 0.76495
A91: 81 | B91: CARERATING | C91: 410.8 | D91: 412.10 | E91: 408.70 | F91: 406.60 | G91: 403.20 | H91: 414.20 | I91: 417.60 | J91: 419.70 | K91: 415.5 | L91: 410 | M91: 0.3179
A92: 82 | B92: CASTROLIND | C92: 121.15 | D92: 122.45 | E92: 119.20 | F92: 117.25 | G92: 114.00 | H92: 124.40 | I92: 127.65 | J92: 129.60 | K92: 125.7 | L92: 120.5 | M92: 15.20877
A93: 83 | B93: CCL | C93: 240.75 | D93: 239.20 | E93: 236.25 | F93: 231.75 | G93: 228.80 | H93: 243.70 | I93: 246.65 | J93: 251.15 | K93: 242.15 | L93: 234.7 | M93: 1.32593
A94: 84 | B94: CDSL | C94: 283.65 | D94: 281.60 | E94: 276.45 | F94: 269.25 | G94: 264.10 | H94: 288.80 | I94: 293.95 | J94: 301.15 | K94: 286.75 | L94: 274.4 | M94: 8.46673
A95: 85 | B95: CEATLTD | C95: 921.95 | D95: 925.37 | E95: 912.28 | F95: 902.62 | G95: 889.53 | H95: 935.03 | I95: 948.12 | J95: 957.78 | K95: 938.45 | L95: 915.7 | M95: 1.61411
A96: 86 | B96: CENTRALBK | C96: 17.6 | D96: 17.62 | E96: 17.28 | F96: 16.97 | G96: 16.63 | H96: 17.93 | I96: 18.27 | J96: 18.58 | K96: 17.95 | L96: 17.3 | M96: 19.98011
A97: 87 | B97: CENTURYPLY | C97: 125.05 | D97: 123.43 | E97: 119.62 | F97: 114.18 | G97: 110.37 | H97: 128.87 | I97: 132.68 | J97: 138.12 | K97: 127.25 | L97: 118 | M97: 16.36508
A98: 88 | B98: CERA | C98: 2195.3 | D98: 2188.62 | E98: 2178.23 | F98: 2161.17 | G98: 2150.78 | H98: 2205.68 | I98: 2216.07 | J98: 2233.13 | K98: 2199 | L98: 2171.55 | M98: 0.01876
A99: 89 | B99: CESC | C99: 629.2 | D99: 631.78 | E99: 622.72 | F99: 616.23 | G99: 607.17 | H99: 638.27 | I99: 647.33 | J99: 653.82 | K99: 640.85 | L99: 625.3 | M99: 1.26529
A100: 90 | B100: CGCL | C100: 176.45 | D100: 175.95 | E100: 172.10 | F100: 167.75 | G100: 163.90 | H100: 180.30 | I100: 184.15 | J100: 188.50 | K100: 179.8 | L100: 171.6 | M100: 1.48761
A101: 91 | B101: CHALET | C101: 130.65 | D101: 131.20 | E101: 128.65 | F101: 126.65 | G101: 124.10 | H101: 133.20 | I101: 135.75 | J101: 137.75 | K101: 133.75 | L101: 129.2 | M101: 0.97432
A102: 92 | B102: CHAMBLFERT | C102: 146.6 | D102: 146.92 | E102: 145.03 | F102: 143.47 | G102: 141.58 | H102: 148.48 | I102: 150.37 | J102: 151.93 | K102: 148.8 | L102: 145.35 | M102: 6.92834
A103: 93 | B103: CHENNPETRO | C103: 80.15 | D103: 80.70 | E103: 79.15 | F103: 78.15 | G103: 76.60 | H103: 81.70 | I103: 83.25 | J103: 84.25 | K103: 82.25 | L103: 79.7 | M103: 9.83401
A104: 94 | B104: CHOLAFIN | C104: 196.7 | D104: 198.60 | E104: 192.50 | F104: 188.30 | G104: 182.20 | H104: 202.80 | I104: 208.90 | J104: 213.10 | K104: 204.7 | L104: 194.4 | M104: 230.43297
A105: 95 | B105: CHOLAHLDNG | C105: 300.5 | D105: 302.55 | E105: 297.10 | F105: 293.70 | G105: 288.25 | H105: 305.95 | I105: 311.40 | J105: 314.80 | K105: 308 | L105: 299.15 | M105: 0.16045
A106: 96 | B106: CIPLA | C106: 638.8 | D106: 642.42 | E106: 631.88 | F106: 624.97 | G106: 614.43 | H106: 649.33 | I106: 659.87 | J106: 666.78 | K106: 652.95 | L106: 635.5 | M106: 53.80124
A107: 97 | B107: COALINDIA | C107: 135.25 | D107: 134.73 | E107: 133.57 | F107: 131.88 | G107: 130.72 | H107: 136.42 | I107: 137.58 | J107: 139.27 | K107: 135.9 | L107: 133.05 | M107: 90.93435
A108: 98 | B108: COCHINSHIP | C108: 308.55 | D108: 308.22 | E108: 302.43 | F108: 296.32 | G108: 290.53 | H108: 314.33 | I108: 320.12 | J108: 326.23 | K108: 314 | L108: 302.1 | M108: 11.16904
A109: 99 | B109: COLPAL | C109: 1382.65 | D109: 1385.22 | E109: 1374.43 | F109: 1366.22 | G109: 1355.43 | H109: 1393.43 | I109: 1404.22 | J109: 1412.43 | K109: 1396 | L109: 1377 | M109: 5.04435
A110: 100 | B110: CONCOR | C110: 429.95 | D110: 428.32 | E110: 424.73 | F110: 419.52 | G110: 415.93 | H110: 433.53 | I110: 437.12 | J110: 442.33 | K110: 431.9 | L110: 423.1 | M110: 9.23889
A111: 101 | B111: COROMANDEL | C111: 749.25 | D111: 752.33 | E111: 741.92 | F111: 734.58 | G111: 724.17 | H111: 759.67 | I111: 770.08 | J111: 777.42 | K111: 762.75 | L111: 745 | M111: 3.92553
A112: 102 | B112: CREDITACC | C112: 535.05 | D112: 533.85 | E112: 530.70 | F112: 526.35 | G112: 523.20 | H112: 538.20 | I112: 541.35 | J112: 545.70 | K112: 537 | L112: 529.5 | M112: 0.36642
A113: 103 | B113: CRISIL | C113: 1703.6 | D113: 1709.52 | E113: 1679.08 | F113: 1654.57 | G113: 1624.13 | H113: 1734.03 | I113: 1764.47 | J113: 1788.98 | K113: 1739.95 | L113: 1685 | M113: 0.17888
A114: 104 | B114: CROMPTON | C114: 236.4 | D114: 238.58 | E114: 233.17 | F114: 229.93 | G114: 224.52 | H114: 241.82 | I114: 247.23 | J114: 250.47 | K114: 244 | L114: 235.35 | M114: 2.15062
A115: 105 | B115: CUB | C115: 123.6 | D115: 123.77 | E115: 122.58 | F115: 121.57 | G115: 120.38 | H115: 124.78 | I115: 125.97 | J115: 126.98 | K115: 124.95 | L115: 122.75 | M115: 10.51169
A116: 106 | B116: CUMMINSIND | C116: 410.75 | D116: 407.02 | E116: 401.53 | F116: 392.32 | G116: 386.83 | H116: 416.23 | I116: 421.72 | J116: 430.93 | K116: 412.5 | L116: 397.8 | M116: 9.79346
A117: 107 | B117: CYIENT | C117: 266.95 | D117: 269.17 | E117: 261.78 | F117: 256.62 | G117: 249.23 | H117: 274.33 | I117: 281.72 | J117: 286.88 | K117: 276.55 | L117: 264 | M117: 6.3147
A118: 108 | B118: DABUR | C118: 467.05 | D118: 467.50 | E118: 464.25 | F118: 461.45 | G118: 458.20 | H118: 470.30 | I118: 473.55 | J118: 476.35 | K118: 470.75 | L118: 464.7 | M118: 23.23284
A119: 109 | B119: DALBHARAT | C119: 715.85 | D119: 715.60 | E119: 691.35 | F119: 666.85 | G119: 642.60 | H119: 740.10 | I119: 764.35 | J119: 788.85 | K119: 739.85 | L119: 691.1 | M119: 1.20117
A120: 110 | B120: DBCORP | C120: 77.15 | D120: 76.88 | E120: 75.02 | F120: 72.88 | G120: 71.02 | H120: 79.02 | I120: 80.88 | J120: 83.02 | K120: 78.75 | L120: 74.75 | M120: 5.18077
A121: 111 | B121: DBL | C121: 281.35 | D121: 283.78 | E121: 277.57 | F121: 273.78 | G121: 267.57 | H121: 287.57 | I121: 293.78 | J121: 297.57 | K121: 290 | L121: 280 | M121: 2.25109
A122: 112 | B122: DCAL | C122: 126.95 | D122: 128.05 | E122: 124.95 | F122: 122.95 | G122: 119.85 | H122: 130.05 | I122: 133.15 | J122: 135.15 | K122: 131.15 | L122: 126.05 | M122: 3.08206
A123: 113 | B123: DCBBANK | C123: 79.95 | D123: 80.40 | E123: 78.90 | F123: 77.85 | G123: 76.35 | H123: 81.45 | I123: 82.95 | J123: 84.00 | K123: 81.9 | L123: 79.35 | M123: 19.44955
A124: 114 | B124: DCMSHRIRAM | C124: 316.2 | D124: 317.42 | E124: 312.83 | F124: 309.47 | G124: 304.88 | H124: 320.78 | I124: 325.37 | J124: 328.73 | K124: 322 | L124: 314.05 | M124: 0.77549
A125: 115 | B125: DEEPAKNTR | C125: 478.95 | D125: 479.90 | E125: 473.55 | F125: 468.15 | G125: 461.80 | H125: 485.30 | I125: 491.65 | J125: 497.05 | K125: 486.25 | L125: 474.5 | M125: 4.87823
A126: 116 | B126: DELTACORP | C126: 90.7 | D126: 90.63 | E126: 89.57 | F126: 88.43 | G126: 87.37 | H126: 91.77 | I126: 92.83 | J126: 93.97 | K126: 91.7 | L126: 89.5 | M126: 9.41826
A127: 117 | B127: DHFL | C127: 16.45 | D127: 16.57 | E127: 16.13 | F127: 15.82 | G127: 15.38 | H127: 16.88 | I127: 17.32 | J127: 17.63 | K127: 17 | L127: 16.25 | M127: 27.01242
A128: 118 | B128: DISHTV | C128: 8.6 | D128: 8.53 | E128: 8.17 | F128: 7.73 | G128: 7.37 | H128: 8.97 | I128: 9.33 | J128: 9.77 | K128: 8.9 | L128: 8.1 | M128: 259.72054
A129: 119 | B129: DIVISLAB | C129: 2190.45 | D129: 2206.68 | E129: 2164.87 | F129: 2139.28 | G129: 2097.47 | H129: 2232.27 | I129: 2274.08 | J129: 2299.67 | K129: 2248.5 | L129: 2181.1 | M129: 15.16429
A130: 120 | B130: DIXON | C130: 5983.4 | D130: 5940.47 | E130: 5882.93 | F130: 5782.47 | G130: 5724.93 | H130: 6040.93 | I130: 6098.47 | J130: 6198.93 | K130: 5998 | L130: 5840 | M130: 0.25392
A131: 121 | B131: DLF | C131: 151.25 | D131: 151.83 | E131: 148.92 | F131: 146.58 | G131: 143.67 | H131: 154.17 | I131: 157.08 | J131: 159.42 | K131: 154.75 | L131: 149.5 | M131: 66.98888
A132: 122 | B132: DMART | C132: 2290.15 | D132: 2292.05 | E132: 2274.15 | F132: 2258.15 | G132: 2240.25 | H132: 2308.05 | I132: 2325.95 | J132: 2341.95 | K132: 2309.95 | L132: 2276.05 | M132: 3.69961
A133: 123 | B133: DRREDDY | C133: 3921.45 | D133: 3933.13 | E133: 3898.32 | F133: 3875.18 | G133: 3840.37 | H133: 3956.27 | I133: 3991.08 | J133: 4014.22 | K133: 3967.95 | L133: 3910 | M133: 4.56078
A134: 124 | B134: ECLERX | C134: 476.65 | D134: 474.42 | E134: 465.23 | F134: 453.82 | G134: 444.63 | H134: 485.83 | I134: 495.02 | J134: 506.43 | K134: 483.6 | L134: 463 | M134: 1.44255
A135: 125 | B135: EDELWEISS | C135: 60.6 | D135: 61.03 | E135: 59.57 | F135: 58.53 | G135: 57.07 | H135: 62.07 | I135: 63.53 | J135: 64.57 | K135: 62.5 | L135: 60 | M135: 17.10059
A136: 126 | B136: EICHERMOT | C136: 18983.5 | D136: 18862.03 | E136: 18475.07 | F136: 17966.63 | G136: 17579.67 | H136: 19370.47 | I136: 19757.43 | J136: 20265.87 | K136: 19249 | L136: 18353.6 | M136: 2.50716
A137: 127 | B137: EIDPARRY | C137: 264.1 | D137: 266.63 | E137: 260.47 | F137: 256.83 | G137: 250.67 | H137: 270.27 | I137: 276.43 | J137: 280.07 | K137: 272.8 | L137: 263 | M137: 3.70778
A138: 128 | B138: EIHOTEL | C138: 65.15 | D138: 65.65 | E138: 64.50 | F138: 63.85 | G138: 62.70 | H138: 66.30 | I138: 67.45 | J138: 68.10 | K138: 66.8 | L138: 65 | M138: 5.66067
A139: 129 | B139: ELGIEQUIP | C139: 148.8 | D139: 148.58 | E139: 143.47 | F139: 138.13 | G139: 133.02 | H139: 153.92 | I139: 159.03 | J139: 164.37 | K139: 153.7 | L139: 143.25 | M139: 2.10302
A140: 130 | B140: EMAMILTD | C140: 229.9 | D140: 228.62 | E140: 225.28 | F140: 220.67 | G140: 217.33 | H140: 233.23 | I140: 236.57 | J140: 241.18 | K140: 231.95 | L140: 224 | M140: 22.19574
A141: 131 | B141: ENDURANCE | C141: 877.45 | D141: 874.08 | E141: 868.37 | F141: 859.28 | G141: 853.57 | H141: 883.17 | I141: 888.88 | J141: 897.97 | K141: 879.8 | L141: 865 | M141: 0.5334
A142: 132 | B142: ENGINERSIN | C142: 74.95 | D142: 75.82 | E142: 73.63 | F142: 72.32 | G142: 70.13 | H142: 77.13 | I142: 79.32 | J142: 80.63 | K142: 78 | L142: 74.5 | M142: 28.82429
A143: 133 | B143: EQUITAS | C143: 53.4 | D143: 53.87 | E143: 52.33 | F143: 51.27 | G143: 49.73 | H143: 54.93 | I143: 56.47 | J143: 57.53 | K143: 55.4 | L143: 52.8 | M143: 155.51172
A144: 134 | B144: ERIS | C144: 447.45 | D144: 450.32 | E144: 443.78 | F144: 440.12 | G144: 433.58 | H144: 453.98 | I144: 460.52 | J144: 464.18 | K144: 456.85 | L144: 446.65 | M144: 0.91182
A145: 135 | B145: ESCORTS | C145: 1059.9 | D145: 1054.52 | E145: 1044.53 | F145: 1029.17 | G145: 1019.18 | H145: 1069.88 | I145: 1079.87 | J145: 1095.23 | K145: 1064.5 | L145: 1039.15 | M145: 15.49109
A146: 136 | B146: ESSELPACK | C146: 182.2 | D146: 183.73 | E146: 180.47 | F146: 178.73 | G146: 175.47 | H146: 185.47 | I146: 188.73 | J146: 190.47 | K146: 187 | L146: 182 | M146: 0.47479
A147: 137 | B147: EXIDEIND | C147: 153.3 | D147: 153.85 | E147: 151.80 | F147: 150.30 | G147: 148.25 | H147: 155.35 | I147: 157.40 | J147: 158.90 | K147: 155.9 | L147: 152.35 | M147: 40.14054
A148: 138 | B148: FCONSUMER | C148: 14.3 | D148: 14.30 | E148: 14.30 | F148: 14.30 | G148: 14.30 | H148: 14.30 | I148: 14.30 | J148: 14.30 | K148: 14.3 | L148: 14.3 | M148: 31.56047
A149: 139 | B149: FDC | C149: 266.1 | D149: 266.88 | E149: 261.77 | F149: 257.43 | G149: 252.32 | H149: 271.22 | I149: 276.33 | J149: 280.67 | K149: 272 | L149: 262.55 | M149: 4.39597
A150: 140 | B150: FEDERALBNK | C150: 53 | D150: 53.17 | E150: 52.38 | F150: 51.77 | G150: 50.98 | H150: 53.78 | I150: 54.57 | J150: 55.18 | K150: 53.95 | L150: 52.55 | M150: 163.04999
A151: 141 | B151: FINCABLES | C151: 292.4 | D151: 293.95 | E151: 289.40 | F151: 286.40 | G151: 281.85 | H151: 296.95 | I151: 301.50 | J151: 304.50 | K151: 298.5 | L151: 290.95 | M151: 0.73916
A152: 142 | B152: FINEORG | C152: 1882.55 | D152: 1879.20 | E152: 1864.35 | F152: 1846.15 | G152: 1831.30 | H152: 1897.40 | I152: 1912.25 | J152: 1930.45 | K152: 1894.05 | L152: 1861 | M152: 0.08929
A153: 143 | B153: FINPIPE | C153: 494.65 | D153: 496.55 | E153: 489.10 | F153: 483.55 | G153: 476.10 | H153: 502.10 | I153: 509.55 | J153: 515.10 | K153: 504 | L153: 491 | M153: 0.14952
A154: 144 | B154: FLFL | C154: 155.3 | D154: 160.03 | E154: 150.57 | F154: 145.83 | G154: 136.37 | H154: 164.77 | I154: 174.23 | J154: 178.97 | K154: 169.5 | L154: 155.3 | M154: 8.7832
A155: 145 | B155: FMGOETZE | C155: 381.65 | D155: 385.35 | E155: 376.70 | F155: 371.75 | G155: 363.10 | H155: 390.30 | I155: 398.95 | J155: 403.90 | K155: 394 | L155: 380.4 | M155: 0.01108
A156: 146 | B156: FORTIS | C156: 126.75 | D156: 128.03 | E156: 124.82 | F156: 122.88 | G156: 119.67 | H156: 129.97 | I156: 133.18 | J156: 135.12 | K156: 131.25 | L156: 126.1 | M156: 22.49177
A157: 147 | B157: FRETAIL | C157: 136.6 | D157: 140.40 | E157: 131.70 | F157: 126.80 | G157: 118.10 | H157: 145.30 | I157: 154.00 | J157: 158.90 | K157: 149.1 | L157: 135.5 | M157: 124.35273
A158: 148 | B158: FSL | C158: 36.75 | D158: 36.93 | E158: 36.37 | F158: 35.98 | G158: 35.42 | H158: 37.32 | I158: 37.88 | J158: 38.27 | K158: 37.5 | L158: 36.55 | M158: 14.15333
A159: 149 | B159: GAIL | C159: 104.9 | D159: 104.57 | E159: 103.33 | F159: 101.77 | G159: 100.53 | H159: 106.13 | I159: 107.37 | J159: 108.93 | K159: 105.8 | L159: 103 | M159: 107.04732
A160: 150 | B160: GALAXYSURF | C160: 1601.65 | D160: 1593.38 | E160: 1573.27 | F160: 1544.88 | G160: 1524.77 | H160: 1621.77 | I160: 1641.88 | J160: 1670.27 | K160: 1613.5 | L160: 1565 | M160: 0.50634
A161: 151 | B161: GARFIBRES | C161: 1427.3 | D161: 1434.53 | E161: 1399.07 | F161: 1370.83 | G161: 1335.37 | H161: 1462.77 | I161: 1498.23 | J161: 1526.47 | K161: 1470 | L161: 1406.3 | M161: 0.17112
A162: 152 | B162: GAYAPROJ | C162: 16.1 | D162: 15.90 | E162: 15.70 | F162: 15.30 | G162: 15.10 | H162: 16.30 | I162: 16.50 | J162: 16.90 | K162: 16.1 | L162: 15.5 | M162: 5.92564
A163: 153 | B163: GEPIL | C163: 468.1 | D163: 466.00 | E163: 462.15 | F163: 456.20 | G163: 452.35 | H163: 471.95 | I163: 475.80 | J163: 481.75 | K163: 469.85 | L163: 460.05 | M163: 0.20321
A164: 154 | B164: GESHIP | C164: 212.8 | D164: 212.52 | E164: 209.78 | F164: 206.77 | G164: 204.03 | H164: 215.53 | I164: 218.27 | J164: 221.28 | K164: 215.25 | L164: 209.5 | M164: 2.50038
A165: 155 | B165: GET&D | C165: 80.75 | D165: 79.83 | E165: 78.92 | F165: 77.08 | G165: 76.17 | H165: 81.67 | I165: 82.58 | J165: 84.42 | K165: 80.75 | L165: 78 | M165: 1.52784
A166: 156 | B166: GHCL | C166: 144.5 | D166: 143.25 | E166: 141.30 | F166: 138.10 | G166: 136.15 | H166: 146.45 | I166: 148.40 | J166: 151.60 | K166: 145.2 | L166: 140.05 | M166: 2.08814
A167: 157 | B167: GICRE | C167: 153.75 | D167: 153.57 | E167: 150.68 | F167: 147.62 | G167: 144.73 | H167: 156.63 | I167: 159.52 | J167: 162.58 | K167: 156.45 | L167: 150.5 | M167: 4.39497
A168: 158 | B168: GILLETTE | C168: 5144 | D168: 5187.33 | E168: 5076.67 | F168: 5009.33 | G168: 4898.67 | H168: 5254.67 | I168: 5365.33 | J168: 5432.67 | K168: 5298 | L168: 5120 | M168: 0.13142
A169: 159 | B169: GLAXO | C169: 1466.1 | D169: 1470.92 | E169: 1455.68 | F169: 1445.27 | G169: 1430.03 | H169: 1481.33 | I169: 1496.57 | J169: 1506.98 | K169: 1486.15 | L169: 1460.5 | M169: 0.19597
A170: 160 | B170: GLENMARK | C170: 432.7 | D170: 434.23 | E170: 428.97 | F170: 425.23 | G170: 419.97 | H170: 437.97 | I170: 443.23 | J170: 446.97 | K170: 439.5 | L170: 430.5 | M170: 33.20448
A171: 161 | B171: GMDCLTD | C171: 40.45 | D171: 40.68 | E171: 40.07 | F171: 39.68 | G171: 39.07 | H171: 41.07 | I171: 41.68 | J171: 42.07 | K171: 41.3 | L171: 40.3 | M171: 6.51995
A172: 162 | B172: GMRINFRA | C172: 21.5 | D172: 21.30 | E172: 20.95 | F172: 20.40 | G172: 20.05 | H172: 21.85 | I172: 22.20 | J172: 22.75 | K172: 21.65 | L172: 20.75 | M172: 187.3733
A173: 163 | B173: GNFC | C173: 154.3 | D173: 154.50 | E173: 153.10 | F173: 151.90 | G173: 150.50 | H173: 155.70 | I173: 157.10 | J173: 158.30 | K173: 155.9 | L173: 153.3 | M173: 3.48544
A174: 164 | B174: GODFRYPHLP | C174: 981.75 | D174: 983.25 | E174: 976.50 | F174: 971.25 | G174: 964.50 | H174: 988.50 | I174: 995.25 | J174: 1000.50 | K174: 990 | L174: 978 | M174: 0.28263
A175: 165 | B175: GODREJAGRO | C175: 433.65 | D175: 434.43 | E175: 430.37 | F175: 427.08 | G175: 423.02 | H175: 437.72 | I175: 441.78 | J175: 445.07 | K175: 438.5 | L175: 431.15 | M175: 0.6984
A176: 166 | B176: GODREJCP | C176: 717.3 | D176: 710.45 | E176: 702.00 | F176: 686.70 | G176: 678.25 | H176: 725.75 | I176: 734.20 | J176: 749.50 | K176: 718.9 | L176: 695.15 | M176: 22.86821
A177: 167 | B177: GODREJIND | C177: 393.75 | D177: 396.43 | E177: 388.92 | F177: 384.08 | G177: 376.57 | H177: 401.27 | I177: 408.78 | J177: 413.62 | K177: 403.95 | L177: 391.6 | M177: 0.90651
A178: 168 | B178: GODREJPROP | C178: 894.2 | D178: 886.17 | E178: 874.63 | F178: 855.07 | G178: 843.53 | H178: 905.73 | I178: 917.27 | J178: 936.83 | K178: 897.7 | L178: 866.6 | M178: 6.08015
A179: 169 | B179: GPPL | C179: 77.75 | D179: 78.30 | E179: 77.00 | F179: 76.25 | G179: 74.95 | H179: 79.05 | I179: 80.35 | J179: 81.10 | K179: 79.6 | L179: 77.55 | M179: 1.86186
A180: 170 | B180: GRANULES | C180: 209 | D180: 210.17 | E180: 206.33 | F180: 203.67 | G180: 199.83 | H180: 212.83 | I180: 216.67 | J180: 219.33 | K180: 214 | L180: 207.5 | M180: 24.34422
A181: 171 | B181: GRAPHITE | C181: 189.6 | D181: 190.72 | E181: 187.03 | F181: 184.47 | G181: 180.78 | H181: 193.28 | I181: 196.97 | J181: 199.53 | K181: 194.4 | L181: 188.15 | M181: 5.37831
A182: 172 | B182: GRASIM | C182: 628.15 | D182: 623.88 | E182: 617.77 | F182: 607.38 | G182: 601.27 | H182: 634.27 | I182: 640.38 | J182: 650.77 | K182: 630 | L182: 613.5 | M182: 20.66551
A183: 173 | B183: GREAVESCOT | C183: 86.05 | D183: 86.33 | E183: 85.22 | F183: 84.38 | G183: 83.27 | H183: 87.17 | I183: 88.28 | J183: 89.12 | K183: 87.45 | L183: 85.5 | M183: 12.1504
A184: 174 | B184: GRINDWELL | C184: 487 | D184: 490.53 | E184: 482.47 | F184: 477.93 | G184: 469.87 | H184: 495.07 | I184: 503.13 | J184: 507.67 | K184: 498.6 | L184: 486 | M184: 0.12042
A185: 175 | B185: GSFC | C185: 54.35 | D185: 54.48 | E185: 53.87 | F185: 53.38 | G185: 52.77 | H185: 54.97 | I185: 55.58 | J185: 56.07 | K185: 55.1 | L185: 54 | M185: 4.7161
A186: 176 | B186: GSPL | C186: 221.6 | D186: 222.20 | E186: 218.60 | F186: 215.60 | G186: 212.00 | H186: 225.20 | I186: 228.80 | J186: 231.80 | K186: 225.8 | L186: 219.2 | M186: 6.3326
A187: 177 | B187: GUJALKALI | C187: 330.9 | D187: 331.82 | E187: 327.63 | F187: 324.37 | G187: 320.18 | H187: 335.08 | I187: 339.27 | J187: 342.53 | K187: 336 | L187: 328.55 | M187: 0.6386
A188: 178 | B188: GUJGASLTD | C188: 322.1 | D188: 322.53 | E188: 317.82 | F188: 313.53 | G188: 308.82 | H188: 326.82 | I188: 331.53 | J188: 335.82 | K188: 327.25 | L188: 318.25 | M188: 7.05033
A189: 179 | B189: GULFOILLUB | C189: 582 | D189: 581.35 | E189: 570.75 | F189: 559.50 | G189: 548.90 | H189: 592.60 | I189: 603.20 | J189: 614.45 | K189: 591.95 | L189: 570.1 | M189: 0.09757
A190: 180 | B190: HAL | C190: 852.4 | D190: 840.83 | E190: 816.67 | F190: 780.93 | G190: 756.77 | H190: 876.57 | I190: 900.73 | J190: 936.47 | K190: 865 | L190: 805.1 | M190: 22.35848
A191: 181 | B191: HATSUN | C191: 652.2 | D191: 652.40 | E191: 634.80 | F191: 617.40 | G191: 599.80 | H191: 669.80 | I191: 687.40 | J191: 704.80 | K191: 670 | L191: 635 | M191: 0.10674
A192: 182 | B192: HAVELLS | C192: 580.05 | D192: 582.37 | E192: 575.78 | F192: 571.52 | G192: 564.93 | H192: 586.63 | I192: 593.22 | J192: 597.48 | K192: 588.95 | L192: 578.1 | M192: 12.07054
A193: 183 | B193: HCLTECH | C193: 579.15 | D193: 576.77 | E193: 572.98 | F193: 566.82 | G193: 563.03 | H193: 582.93 | I193: 586.72 | J193: 592.88 | K193: 580.55 | L193: 570.6 | M193: 37.356
A194: 184 | B194: HDFC | C194: 1885.2 | D194: 1886.83 | E194: 1865.67 | F194: 1846.13 | G194: 1824.97 | H194: 1906.37 | I194: 1927.53 | J194: 1947.07 | K194: 1908 | L194: 1867.3 | M194: 44.30264
A195: 185 | B195: HDFCAMC | C195: 2543.95 | D195: 2534.98 | E195: 2508.97 | F195: 2473.98 | G195: 2447.97 | H195: 2569.97 | I195: 2595.98 | J195: 2630.97 | K195: 2561 | L195: 2500 | M195: 4.28028
A196: 186 | B196: HDFCBANK | C196: 1073.95 | D196: 1079.92 | E196: 1064.03 | F196: 1054.12 | G196: 1038.23 | H196: 1089.83 | I196: 1105.72 | J196: 1115.63 | K196: 1095.8 | L196: 1070 | M196: 137.98879
A197: 187 | B197: HDFCLIFE | C197: 572.15 | D197: 573.25 | E197: 556.90 | F197: 541.65 | G197: 525.30 | H197: 588.50 | I197: 604.85 | J197: 620.10 | K197: 589.6 | L197: 558 | M197: 156.63762
A198: 188 | B198: HEG | C198: 856.15 | D198: 860.98 | E198: 843.17 | F198: 830.18 | G198: 812.37 | H198: 873.97 | I198: 891.78 | J198: 904.77 | K198: 878.8 | L198: 848 | M198: 3.49628
A199: 189 | B199: HEIDELBERG | C199: 180.5 | D199: 180.65 | E199: 178.85 | F199: 177.20 | G199: 175.40 | H199: 182.30 | I199: 184.10 | J199: 185.75 | K199: 182.45 | L199: 179 | M199: 3.3514
A200: 190 | B200: HERITGFOOD | C200: 263.35 | D200: 263.37 | E200: 260.98 | F200: 258.62 | G200: 256.23 | H200: 265.73 | I200: 268.12 | J200: 270.48 | K200: 265.75 | L200: 261 | M200: 0.08452
A201: 191 | B201: HEROMOTOCO | C201: 2738.25 | D201: 2721.95 | E201: 2693.90 | F201: 2649.55 | G201: 2621.50 | H201: 2766.30 | I201: 2794.35 | J201: 2838.70 | K201: 2750 | L201: 2677.6 | M201: 26.37811
A202: 192 | B202: HEXAWARE | C202: 334 | D202: 334.37 | E202: 331.73 | F202: 329.47 | G202: 326.83 | H202: 336.63 | I202: 339.27 | J202: 341.53 | K202: 337 | L202: 332.1 | M202: 5.51587
A203: 193 | B203: HFCL | C203: 15.35 | D203: 15.62 | E203: 14.98 | F203: 14.62 | G203: 13.98 | H203: 15.98 | I203: 16.62 | J203: 16.98 | K203: 16.25 | L203: 15.25 | M203: 48.69326
A204: 194 | B204: HIMATSEIDE | C204: 63.9 | D204: 64.30 | E204: 63.05 | F204: 62.20 | G204: 60.95 | H204: 65.15 | I204: 66.40 | J204: 67.25 | K204: 65.55 | L204: 63.45 | M204: 2.34895
A205: 195 | B205: HINDALCO | C205: 146.4 | D205: 146.80 | E205: 144.15 | F205: 141.90 | G205: 139.25 | H205: 149.05 | I205: 151.70 | J205: 153.95 | K205: 149.45 | L205: 144.55 | M205: 107.80269
A206: 196 | B206: HINDCOPPER | C206: 33.1 | D206: 33.23 | E206: 32.42 | F206: 31.73 | G206: 30.92 | H206: 33.92 | I206: 34.73 | J206: 35.42 | K206: 34.05 | L206: 32.55 | M206: 15.66431
... 321 more rows

Sheet Bulk Deals
E6: Back To Main Page
A7: Subject : | B7: BULK DEAL | D7: =Main!B10 -> 2020-07-06
A9: Date | B9: Scrip code | C9: Scrip Name | D9: Client Name | E9: Buy / Sell | F9: Quantity Traded | G9: Trade Price / Wt.Avg.trade price | H9: Exchange
A10: 2020-07-03 | B10: 540615 | C10: 7NR | D10: NAVEEN GUPTA | E10: BUY | F10: 21,230 | G10: 11.51 | H10: BSE
A11: 2020-07-03 | B11: 540615 | C11: 7NR | D11: NAVEEN GUPTA | E11: SELL | F11: 68,629 | G11: 11.81 | H11: BSE
A12: 2020-07-03 | B12: 540615 | C12: 7NR | D12: ASHMITA SHREYASHBHAI KEVAT | E12: BUY | F12: 75,000 | G12: 11.38 | H12: BSE
A13: 2020-07-03 | B13: 539177 | C13: AIIL | D13: NEXPACT LIMITED | E13: BUY | F13: 581,767 | G13: 82.45 | H13: BSE
A14: 2020-07-03 | B14: 539177 | C14: AIIL | D14: ANIL BUCHASIA | E14: SELL | F14: 98,000 | G14: 82.45 | H14: BSE
A15: 2020-07-03 | B15: 539177 | C15: AIIL | D15: KHAZANA TRADELINKS PVT LTD | E15: SELL | F15: 435,000 | G15: 82.45 | H15: BSE
A16: 2020-07-03 | B16: 540697 | C16: AMFL | D16: SAHADEVSINGHROWA | E16: BUY | F16: 308,602 | G16: 5.59 | H16: BSE
A17: 2020-07-03 | B17: 540697 | C17: AMFL | D17: SAHADEVSINGHROWA | E17: SELL | F17: 28,000 | G17: 5.65 | H17: BSE
A18: 2020-07-03 | B18: 540697 | C18: AMFL | D18: ANAL PRATISH SHAH | E18: SELL | F18: 133,071 | G18: 5.71 | H18: BSE
A19: 2020-07-03 | B19: 540697 | C19: AMFL | D19: NAVEEN GUPTA | E19: BUY | F19: 91,360 | G19: 5.68 | H19: BSE
A20: 2020-07-03 | B20: 540697 | C20: AMFL | D20: NAVEEN GUPTA | E20: SELL | F20: 91,360 | G20: 5.64 | H20: BSE
A21: 2020-07-03 | B21: 542934 | C21: CBPL | D21: PRASHANT GHANSHYAMBHAI UKANI | E21: SELL | F21: 70,000 | G21: 48 | H21: BSE
A22: 2020-07-03 | B22: 542934 | C22: CBPL | D22: GOENKA BUSINESS & FINANCE LIMITED | E22: BUY | F22: 70,000 | G22: 48 | H22: BSE
A23: 2020-07-03 | B23: 530309 | C23: CHANDRAP | D23: ABASH JAIN | E23: SELL | F23: 25,000 | G23: 18.5 | H23: BSE
A24: 2020-07-03 | B24: 530309 | C24: CHANDRAP | D24: RICHA ARNEJA | E24: BUY | F24: 25,000 | G24: 18.5 | H24: BSE
A25: 2020-07-03 | B25: 539800 | C25: CHDCHEM | D25: REENA SHARMA | E25: BUY | F25: 89,136 | G25: 63.22 | H25: BSE
A26: 2020-07-03 | B26: 539800 | C26: CHDCHEM | D26: REENA SHARMA | E26: SELL | F26: 21,384 | G26: 63.25 | H26: BSE
A27: 2020-07-03 | B27: 530825 | C27: DAIKAFFI | D27: VIKRAM MOHANDEEP CHANDIRAMANI | E27: BUY | F27: 30,625 | G27: 26.63 | H27: BSE
A28: 2020-07-03 | B28: 539098 | C28: FILTRA | D28: MAHENDRA GIRDHARILAL WADHWANI | E28: BUY | F28: 99,000 | G28: 12.37 | H28: BSE
A29: 2020-07-03 | B29: 540266 | C29: GLCL | D29: RAJESH JOSHI | E29: BUY | F29: 19,580 | G29: 5.5 | H29: BSE
A30: 2020-07-03 | B30: 540266 | C30: GLCL | D30: VENKATA KRUPAKAR RAO GUMMADAPU | E30: SELL | F30: 24,000 | G30: 5.58 | H30: BSE
A31: 2020-07-03 | B31: 542935 | C31: ICLORGANIC | D31: ADITYA SOLANKI | E31: SELL | F31: 60,000 | G31: 21.25 | H31: BSE
A32: 2020-07-03 | B32: 542935 | C32: ICLORGANIC | D32: WEALTH CAPITAL ADVISORS | E32: BUY | F32: 66,000 | G32: 21.26 | H32: BSE
A33: 2020-07-03 | B33: 542446 | C33: JONJUA | D33: MUKTA NARANG | E33: SELL | F33: 31,200 | G33: 28.8 | H33: BSE
A34: 2020-07-03 | B34: 542446 | C34: JONJUA | D34: VISHWADEEP SHARMA | E34: BUY | F34: 41,600 | G34: 32.51 | H34: BSE
A35: 2020-07-03 | B35: 542446 | C35: JONJUA | D35: RAJENDRA BAID | E35: BUY | F35: 130,000 | G35: 33.76 | H35: BSE
A36: 2020-07-03 | B36: 542446 | C36: JONJUA | D36: MAANOR INVESTMENTS PRIVATE LIMITED . | E36: SELL | F36: 36,400 | G36: 33 | H36: BSE
A37: 2020-07-03 | B37: 542650 | C37: METROPOLIS | D37: CA LOTUS INVESTMENTS | E37: SELL | F37: 314,106 | G37: 1341 | H37: BSE
A38: 2020-07-03 | B38: 542650 | C38: METROPOLIS | D38: CA LOTUS INVESTMENTS | E38: SELL | F38: 314,017 | G38: 1341 | H38: BSE
A39: 2020-07-03 | B39: 539673 | C39: RCL | D39: ANURODH INFRASTRUCTURE LIMITED | E39: BUY | F39: 1,053 | G39: 30.8 | H39: BSE
A40: 2020-07-03 | B40: 539673 | C40: RCL | D40: ANURODH INFRASTRUCTURE LIMITED | E40: SELL | F40: 16,825 | G40: 29.1 | H40: BSE
A41: 2020-07-03 | B41: 503162 | C41: RELCHEMQ | D41: SURINDER GURMUKH DHAUL | E41: BUY | F41: 163,637 | G41: 65.78 | H41: BSE
A42: 2020-07-03 | B42: 503162 | C42: RELCHEMQ | D42: SURINDER GURMUKH DHAUL | E42: SELL | F42: 163,637 | G42: 66.19 | H42: BSE
A43: 2020-07-03 | B43: 503162 | C43: RELCHEMQ | D43: KAMLESH KUMAR KATARIA | E43: BUY | F43: 48,749 | G43: 64.75 | H43: BSE
A44: 2020-07-03 | B44: 503162 | C44: RELCHEMQ | D44: KAMLESH KUMAR KATARIA | E44: SELL | F44: 48,749 | G44: 65.22 | H44: BSE
A45: 2020-07-03 | B45: 503162 | C45: RELCHEMQ | D45: GULSHAN SINGH | E45: BUY | F45: 113,898 | G45: 65.29 | H45: BSE
A46: 2020-07-03 | B46: 503162 | C46: RELCHEMQ | D46: DEEPIKA | E46: BUY | F46: 419,992 | G46: 65.38 | H46: BSE
A47: 2020-07-03 | B47: 503162 | C47: RELCHEMQ | D47: GULSHAN SINGH | E47: SELL | F47: 113,952 | G47: 65.85 | H47: BSE
A48: 2020-07-03 | B48: 503162 | C48: RELCHEMQ | D48: DEEPIKA | E48: SELL | F48: 419,992 | G48: 65.86 | H48: BSE
A49: 2020-07-03 | B49: 503162 | C49: RELCHEMQ | D49: SHAIQ HUSSAIN | E49: BUY | F49: 1,113,600 | G49: 65.96 | H49: BSE
A50: 2020-07-03 | B50: 503162 | C50: RELCHEMQ | D50: SHAIQ HUSSAIN | E50: SELL | F50: 1,113,600 | G50: 65.36 | H50: BSE
A51: 2020-07-03 | B51: 503162 | C51: RELCHEMQ | D51: KAMAL KUMAR JALAN SEC. PVT. LTD | E51: BUY | F51: 304,376 | G51: 65.37 | H51: BSE
A52: 2020-07-03 | B52: 503162 | C52: RELCHEMQ | D52: KAMAL KUMAR JALAN SEC. PVT. LTD | E52: SELL | F52: 304,376 | G52: 66.1 | H52: BSE
A53: 2020-07-03 | B53: 542923 | C53: TRANWAY | D53: HITESH MOHANBHAI PATEL | E53: BUY | F53: 150,000 | G53: 9.56 | H53: BSE
A54: 2020-07-03 | B54: 536672 | C54: VCU | D54: SHASHIKANTBHAI JAMNADAS SONI | E54: BUY | F54: 200,000 | G54: 1.87 | H54: BSE
A55: 2020-07-03 | B55: 536672 | C55: VCU | D55: VISHWAMURTE TRAD INVEST PE LTD | E55: SELL | F55: 200,000 | G55: 1.87 | H55: BSE
A56: 2020-07-03 | B56: 539222 | C56: VMV | D56: SANDESH ASHOK NANDODE | E56: BUY | F56: 25,000 | G56: 29.59 | H56: BSE
A57: 2020-07-03 | B57: 539222 | C57: VMV | D57: SANDESH ASHOK NANDODE | E57: SELL | F57: 30,000 | G57: 29.34 | H57: BSE
A58: 2020-07-03 | B58: BGRENERGY | C58: BGR Energy Systems Ltd | D58: MINESH JORMALBHAI MEHTA | E58: BUY | F58: 390,325 | G58: 40.06 | H58: NSE
A59: 2020-07-03 | B59: GICHSGFIN | C59: Gic Housing Finance Ltd | D59: ADROIT FINANCIAL SERVICES PVT LTD | E59: BUY | F59: 333,037 | G59: 96.17 | H59: NSE
A60: 2020-07-03 | B60: IBULHSGFIN | C60: Indiabulls Hsg Fin Ltd | D60: SURJECTIVE RESEARCH CAPITAL LLP | E60: BUY | F60: 2,868,000 | G60: 225.89 | H60: NSE
A61: 2020-07-03 | B61: IBULHSGFIN | C61: Indiabulls Hsg Fin Ltd | D61: GRAVITON RESEARCH CAPITAL LLP | E61: BUY | F61: 2,295,174 | G61: 223.52 | H61: NSE
A62: 2020-07-03 | B62: IBULHSGFIN | C62: Indiabulls Hsg Fin Ltd | D62: TOWER RESEARCH CAPITAL MARKETS INDIA PRIVATE LIMITED | E62: BUY | F62: 5,165,067 | G62: 224.32 | H62: NSE
A63: 2020-07-03 | B63: JUSTDIAL | C63: Justdial Ltd. | D63: DARSHAN LAL | E63: BUY | F63: 511,689 | G63: 388.52 | H63: NSE
A64: 2020-07-03 | B64: LAGNAM | C64: Lagnam Spintex Limited | D64: VALLABHDAS C THAKKAR HUF | E64: BUY | F64: 132,000 | G64: 8.95 | H64: NSE
A65: 2020-07-03 | B65: LIBERTSHOE | C65: Liberty Shoes Ltd | D65: N.K.SECURITIES | E65: BUY | F65: 94,158 | G65: 144.41 | H65: NSE
A66: 2020-07-03 | B66: LIBERTSHOE | C66: Liberty Shoes Ltd | D66: SHREE RAMANUJ FINANCE PVT LTD | E66: BUY | F66: 90,000 | G66: 141.44 | H66: NSE
A67: 2020-07-03 | B67: LOKESHMACH | C67: Lokesh Machines Limited | D67: MONEY GROW INVESTMENT | E67: BUY | F67: 209,625 | G67: 26.4 | H67: NSE
A68: 2020-07-03 | B68: LOKESHMACH | C68: Lokesh Machines Limited | D68: SUDESH SINGH | E68: BUY | F68: 110,000 | G68: 26.35 | H68: NSE
A69: 2020-07-03 | B69: PHILIPCARB | C69: Phillips Carbon Black | D69: GRAVITON RESEARCH CAPITAL LLP | E69: BUY | F69: 899,414 | G69: 109.42 | H69: NSE
A70: 2020-07-03 | B70: RPOWER | C70: Reliance Power Limited | D70: ALPHA LEON ENTERPRISES LLP | E70: BUY | F70: 27,209,310 | G70: 4.61 | H70: NSE
A71: 2020-07-03 | B71: SYNCOM | C71: Syncom Healthcare Ltd | D71: ALPHA LEON ENTERPRISES LLP | E71: BUY | F71: 250,000 | G71: 3.45 | H71: NSE
A72: 2020-07-03 | B72: UJJIVAN | C72: Ujjivan Fin. Servc. Ltd. | D72: HRTI PRIVATE LIMITED | E72: BUY | F72: 1,214,739 | G72: 242.51 | H72: NSE
A73: 2020-07-03 | B73: UJJIVAN | C73: Ujjivan Fin. Servc. Ltd. | D73: GRAVITON RESEARCH CAPITAL LLP | E73: BUY | F73: 950,781 | G73: 242.57 | H73: NSE
A74: 2020-07-03 | B74: UJJIVAN | C74: Ujjivan Fin. Servc. Ltd. | D74: TOWER RESEARCH CAPITAL MARKETS INDIA PRIVATE LIMITED | E74: BUY | F74: 1,060,645 | G74: 242.58 | H74: NSE
A75: 2020-07-03 | B75: UJJIVAN | C75: Ujjivan Fin. Servc. Ltd. | D75: DIVYA PORTFOLIO PRIVATE LIMITED | E75: BUY | F75: 2,371,862 | G75: 241.36 | H75: NSE
A76: 2020-07-03 | B76: UJJIVAN | C76: Ujjivan Fin. Servc. Ltd. | D76: SURJECTIVE RESEARCH CAPITAL LLP | E76: BUY | F76: 919,646 | G76: 242.78 | H76: NSE
A77: 2020-07-03 | B77: UNITEDPOLY | C77: United Polyfab Guj. Ltd. | D77: VISHWAKARMA TRADING HOUSE | E77: BUY | F77: 90,000 | G77: 8.5 | H77: NSE
A78: 2020-07-03 | B78: VERTOZ | C78: Vertoz Advertising Ltd | D78: ASHROJ CREDIT INDIA PRIVATE LIMITED | E78: BUY | F78: 111,885 | G78: 95.53 | H78: NSE
A79: 2020-07-03 | B79: BGRENERGY | C79: BGR Energy Systems Ltd | D79: MINESH JORMALBHAI MEHTA | E79: SELL | F79: 90,325 | G79: 41.15 | H79: NSE
A80: 2020-07-03 | B80: GICHSGFIN | C80: Gic Housing Finance Ltd | D80: ADROIT FINANCIAL SERVICES PVT LTD | E80: SELL | F80: 331,037 | G80: 96.45 | H80: NSE
A81: 2020-07-03 | B81: IBULHSGFIN | C81: Indiabulls Hsg Fin Ltd | D81: SURJECTIVE RESEARCH CAPITAL LLP | E81: SELL | F81: 2,871,135 | G81: 226.06 | H81: NSE
A82: 2020-07-03 | B82: IBULHSGFIN | C82: Indiabulls Hsg Fin Ltd | D82: TOWER RESEARCH CAPITAL MARKETS INDIA PRIVATE LIMITED | E82: SELL | F82: 5,329,071 | G82: 224.53 | H82: NSE
A83: 2020-07-03 | B83: IBULHSGFIN | C83: Indiabulls Hsg Fin Ltd | D83: GRAVITON RESEARCH CAPITAL LLP | E83: SELL | F83: 2,295,174 | G83: 223.73 | H83: NSE
A84: 2020-07-03 | B84: JUSTDIAL | C84: Justdial Ltd. | D84: DARSHAN LAL | E84: SELL | F84: 526,739 | G84: 388.98 | H84: NSE
A85: 2020-07-03 | B85: LAGNAM | C85: Lagnam Spintex Limited | D85: CHL STOCK CONCEPTS PRIVATE LIMITED | E85: SELL | F85: 132,000 | G85: 8.95 | H85: NSE
A86: 2020-07-03 | B86: LIBERTSHOE | C86: Liberty Shoes Ltd | D86: N.K.SECURITIES | E86: SELL | F86: 94,158 | G86: 144.54 | H86: NSE
A87: 2020-07-03 | B87: LIBERTSHOE | C87: Liberty Shoes Ltd | D87: SHREE RAMANUJ FINANCE PVT LTD | E87: SELL | F87: 20,000 | G87: 139 | H87: NSE
A88: 2020-07-03 | B88: LOKESHMACH | C88: Lokesh Machines Limited | D88: MONEY GROW INVESTMENT | E88: SELL | F88: 209,625 | G88: 26.37 | H88: NSE
A89: 2020-07-03 | B89: LOKESHMACH | C89: Lokesh Machines Limited | D89: SUDESH SINGH | E89: SELL | F89: 50,000 | G89: 27.3 | H89: NSE
A90: 2020-07-03 | B90: MCLEODRUSS | C90: McLeod Russel India Ltd. | D90: ALPHA LEON ENTERPRISES LLP | E90: SELL | F90: 854,566 | G90: 8.05 | H90: NSE
A91: 2020-07-03 | B91: PHILIPCARB | C91: Phillips Carbon Black | D91: GRAVITON RESEARCH CAPITAL LLP | E91: SELL | F91: 899,414 | G91: 109.51 | H91: NSE
A92: 2020-07-03 | B92: RHFL | C92: Reliance Home Finance Ltd | D92: SHANKAR B | E92: SELL | F92: 3,209,608 | G92: 2.64 | H92: NSE
A93: 2020-07-03 | B93: RPOWER | C93: Reliance Power Limited | D93: ALPHA LEON ENTERPRISES LLP | E93: SELL | F93: 23,870,633 | G93: 4.62 | H93: NSE
A94: 2020-07-03 | B94: SYNCOM | C94: Syncom Healthcare Ltd | D94: NUPUR ANIL SHAH | E94: SELL | F94: 300,000 | G94: 3.45 | H94: NSE
A95: 2020-07-03 | B95: SYNCOM | C95: Syncom Healthcare Ltd | D95: SAUMIL ARVIND BHAVNAGARI | E95: SELL | F95: 329,538 | G95: 3.45 | H95: NSE
A96: 2020-07-03 | B96: TRANSWIND | C96: Transwind Infra Limited | D96: FALAN TRADING CO. | E96: SELL | F96: 84,000 | G96: 10.2 | H96: NSE
A97: 2020-07-03 | B97: TRANSWIND | C97: Transwind Infra Limited | D97: NADIYA BIPINKUMAR KHODIDAS | E97: SELL | F97: 92,000 | G97: 10.2 | H97: NSE
A98: 2020-07-03 | B98: UJJIVAN | C98: Ujjivan Fin. Servc. Ltd. | D98: DIVYA PORTFOLIO PRIVATE LIMITED | E98: SELL | F98: 2,371,162 | G98: 242.2 | H98: NSE
A99: 2020-07-03 | B99: UJJIVAN | C99: Ujjivan Fin. Servc. Ltd. | D99: TOWER RESEARCH CAPITAL MARKETS INDIA PRIVATE LIMITED | E99: SELL | F99: 1,060,645 | G99: 242.15 | H99: NSE
A100: 2020-07-03 | B100: UJJIVAN | C100: Ujjivan Fin. Servc. Ltd. | D100: SURJECTIVE RESEARCH CAPITAL LLP | E100: SELL | F100: 923,577 | G100: 242.78 | H100: NSE
A101: 2020-07-03 | B101: UJJIVAN | C101: Ujjivan Fin. Servc. Ltd. | D101: GRAVITON RESEARCH CAPITAL LLP | E101: SELL | F101: 950,781 | G101: 242.44 | H101: NSE
A102: 2020-07-03 | B102: UJJIVAN | C102: Ujjivan Fin. Servc. Ltd. | D102: HRTI PRIVATE LIMITED | E102: SELL | F102: 1,214,739 | G102: 242.44 | H102: NSE
A103: 2020-07-03 | B103: VERTOZ | C103: Vertoz Advertising Ltd | D103: ASHROJ CREDIT INDIA PRIVATE LIMITED | E103: SELL | F103: 111,885 | G103: 99.69 | H103: NSE

Sheet Call Tracker (Equity & F&O)
Q1: +
M5: Back To Main Page
A6: Retail Research Technical Calls & Fundamental Performance Report for the month of July-2020
M7: =Main!B10 -> 2020-07-06
B8: Positional Call
A9: Sr.no | B9: Date | D9: Company | E9: Rec | F9: Rec Price | G9: Stop Loss*** | H9: Call Closed At | I9: Target | J9: Remark | K9: Profit / Loss per Share | L9: Gain / Loss % | M9: Status | N9: Closed Date | O9: NSE Closed Price
A10: 1 | B10: 2020-05-29 | D10: PGHH | E10: Buy | F10: 9900 | G10: 9,400.00 | H10: 10,320.00 | I10: 10700-10800 | J10: Part Profit of Rs.420/- | K10: =H10-F10 -> 420 | L10: =K10/F10 -> 4.24% | M10: Successful | N10: 2020-07-02 | R10: H
A11: 2 | B11: 2020-06-08 | D11: CROMPTON | E11: Buy | F11: 229.00 | G11: 217 | H11: 241.50 | I11: 250-255 | J11: Profit of Rs.12.5/- | K11: 12.5 | L11: 5.46% | M11: Successful | N11: 2020-07-03 | R11: N
A12: 3 | B12: 2020-06-19 | D12: EXIDEIND | E12: Buy | F12: 150 | G12: 140.00 | H12: 156.00 | I12: 165-170 | J12: Part Profit of Rs.6/- | K12: =H12-F12 -> 6 | L12: =K12/F12 -> 4.00% | M12: Successful | N12: 2020-06-23 | R12: N
A13: 4 | B13: 2020-06-22 | D13: CADILAHC | E13: Buy | F13: 358.50 | G13: 335 | H13: 378.50 | I13: 400-410 | J13: Profit of Rs.20/- | K13: =H13-F13 -> 20 | L13: =K13/F13 -> 5.58% | M13: Successful | N13: 2020-07-03 | R13: N
A14: 5 | B14: 2020-06-25 | D14: DIVISLAB | E14: Buy | F14: 2,340.00 | G14: 2200 | H14: 2,195.00 | I14: 2500-2550 | J14: Loss of Rs.145/- | K14: =H14-F14 -> -145 | L14: =K14/F14 -> -6.20% | M14: Unsuccessful | N14: 2020-07-02 | R14: N
A15: 6 | B15: 2020-06-25 | D15: ADANIPORTS | E15: Buy | F15: 342.50 | G15: 322 | H15: 365.00 | I15: 380 | J15: Profit of Rs.22.5/- | K15: 22.5 | L15: 6.57% | M15: Successful | N15: 2020-07-03 | R15: N
A16: 7 | B16: 2020-06-26 | D16: BALKRISIND | E16: Sell | F16: 1,245.00 | G16: 1310 | H16: 1,310.00 | I16: 1160-1140 | J16: Loss of Rs.65/- | K16: =F16-H16 -> -65.00 | L16: =K16/F16 -> -5.22% | M16: Unsuccessful | N16: 2020-07-03 | R16: H
A17: 8 | B17: 2020-06-26 | D17: CDSL | E17: Buy | F17: 277 | G17: 261.00 | H17: 286.00 | I17: 310-315 | J17: Part Profit of Rs.9/- | K17: =H17-F17 -> 9 | L17: 3.25% | M17: Successful | N17: 2020-07-03 | R17: N
A18: 9 | B18: 2020-06-26 | D18: GODREJPROP | E18: Buy | F18: 863 | G18: 815.00 | H18: 892.00 | I18: 930-950 | J18: Part Profit of Rs.29/- | K18: =H18-F18 -> 29 | L18: =K18/F18 -> 3.36% | M18: Successful | N18: 2020-07-03 | R18: H
A19: 10 | B19: 2020-06-29 | D19: BATAINDIA | E19: Buy | F19: 1295-1305 | G19: 1235 | I19: 1400-1450 | J19: Open | R19: H
A20: 11 | B20: 2020-06-30 | D20: UPL | E20: Buy | F20: 426.5 | G20: 400.00 | H20: 452.5 | I20: 470-480 | J20: Profit of Rs.26/- | K20: =H20-F20 -> 26.00 | L20: =K20/F20 -> 6.10% | M20: Successful | N20: 2020-07-03 | R20: N
A21: 12 | B21: 2020-07-02 | D21: LT | E21: Buy | F21: 935-945 | G21: 874 | I21: 1030-1070 | J21: Open | R21: H
A22: 13 | B22: 2020-07-03 | D22: NESTLEIND | E22: Buy | F22: 16770-16800 | G22: 15900 | I22: 18000-18500 | J22: Open | R22: N
A24: CLBS = Closing Basis ***
A25: Dividend adjusted <> | F25: Reinitiated $
A26: Part book {} | F26: Revised stoploss #
B28: Momentum Call
A29: Sr.no | B29: Date | D29: Company | E29: Rec | F29: Rec Price | G29: Stop Loss | H29: Call Closed At | I29: Target | J29: Remark | K29: Profit / Loss per Share/Lot | L29: Gain / Loss % | M29: Gain / Loss per Lot | N29: Lot | O29: Status | P29: Closed Date
A30: 1 | B30: 2020-06-24 | D30: CIPLA | E30: Buy | F30: 646 | G30: 629 | H30: 625.5 | I30: 680-690 | J30: Loss of Rs.20.5/- | K30: =H30-F30 -> -20.5 | L30: =K30/F30 -> -3.17% | M30: Unsuccessful | P30: 2020-07-01 | R30: H
A31: 2 | B31: 2020-06-24 | D31: LT | E31: Buy | F31: 957 | G31: 925 | H31: 925.5 | I31: 1025 | J31: Loss of Rs.31.5/- | K31: -31.5 | L31: -3.29% | M31: Unsuccessful | P31: 2020-07-01 | R31: N
A32: 3 | B32: 2020-06-26 | D32: AUROPHARMA | E32: Buy | F32: 780-784 | G32: 758 | I32: 825 | J32: Open | R32: N
A33: 4 | B33: 2020-06-29 | D33: EXIDEIND | E33: Buy | F33: 147 | G33: 142.5 | H33: 151 | I33: 156-158 | J33: Profit of Rs.4/- | K33: =H33-F33 -> 4 | L33: =K33/F33 -> 2.72% | M33: Successful | P33: 2020-07-02 | R33: H
A34: 5 | B34: 2020-06-30 | D34: ACC | E34: Sell | F34: 1305-1315 | G34: 1352 | I34: 1260-1240 | J34: Open | R34: H
A35: 6 | B35: 2020-06-30 | D35: INFY | E35: Buy | F35: 726.5 | G35: 714 | H35: 744.5 | I35: 750-760 | J35: Profit of Rs.18/- | K35: =H35-F35 -> 18 | L35: =K35/F35 -> 2.48% | M35: Successful | P35: 2020-07-02 | R35: H
A36: 7 | B36: 2020-07-01 | D36: DIVISLAB | E36: Buy | F36: 2255 | G36: 2200 | H36: 2195 | I36: 2350 | J36: Loss of Rs.60/- | K36: =H36-F36 -> -60 | L36: =K36/F36 -> -2.66% | M36: Unsuccessful | P36: 2020-07-02 | R36: H
A37: 8 | B37: 2020-07-02 | D37: AMBUJACEM | E37: Sell | F37: 194 | G37: 200 | H37: 194 | I37: 185-182 | J37: Neutral | K37: 0 | L37: 0.00% | M37: Neutral | P37: 2020-07-03 | R37: H
A38: 9 | B38: 2020-07-03 | D38: CIPLA | E38: Buy | F38: 640-643 | G38: 615 | I38: 670-680 | J38: Open
A42: CLBS = Closing Basis ***
A43: Dividend adjusted <> | F43: Reinitiated $
F44: Revised stoploss #
A46: Master Trade High Risk
A47: Sr.no | B47: Date | D47: Company | E47: Rec | F47: Rec Price | G47: Stop Loss | H47: Call Closed At | I47: Target | J47: Remark | K47: Profit / Loss per share | L47: Gain / Loss per Lot | M47: Lot | N47: Status | O47: Closed Date
A48: 1 | B48: 2020-07-01 | D48: NIFTY JUL FUT | E48: Sell | F48: 10395 | G48: 10555 | H48: 10555 | I48: 10200 | J48: Loss of Rs.108/- | K48: -160 | L48: -8100 | M48: 75 | N48: Unsuccessful | O48: 2020-07-02 | R48: H
D49: NIFTY 9-JUL 10200 PE | E49: Sell | F49: 88 | H49: 36 | K49: 52
A55: Master Trade Medium Risk
A56: Sr.no | B56: Date | D56: Company | E56: Rec | F56: Rec Price | G56: Stop Loss | H56: Call Closed At | I56: Target | J56: Remark | K56: Profit/ Loss per lot | L56: Gain / Loss per Lot | M56: Lot | N56: Status | O56: Closed Date
A60: Techno -Funda (positional)
A61: Sr.no | B61: Date | D61: Company | E61: Rec | F61: Rec Price | G61: Stop Loss*** | H61: Call Closed At | I61: Target | J61: Remark | K61: Profit / Loss per Share | L61: Gain / Loss % | M61: Status | N61: Closed Date | O61: NSE Closed Price
A63: CLBS = Closing Basis *** | F63: Reinitiated $
A64: Dividend adjusted <> | F64: Revised stoploss #
B69: Investment Idea
A70: Sr.no | B70: Date | D70: Company | E70: Rec | F70: Rec Price | G70: Point of Review | H70: Close Rate | I70: Target | J70: Remark | K70: Profit / Loss per Share | L70: Gain / Loss % | M70: Status | N70: Closed Date
A71: 1 | B71: 2013-11-01 | D71: L&T Finance Holding | E71: Accu | F71: 82.00 | G71: - | H71: 100 | I71: 100.00 | J71: Target Achieved | K71: =H71-F71 -> 18.00 | L71: =K71/F71 -> 21.95% | M71: Successful | N71: 2016-10-14
A72: 2 | B72: 2014-06-04 | D72: Finolex Inds | E72: Buy | F72: 257.00 | G72: - | H72: 300 | I72: 300.00 | J72: Target Achieved | K72: 43.00 | L72: 16.73% | M72: Successful | N72: 2014-07-02
A73: 3 | B73: 2014-07-08 | D73: JK Cement | E73: Buy | F73: 393.00 | G73: - | H73: 468 | I73: 468.00 | J73: Target Achieved | K73: 75.00 | L73: 19.08% | M73: Successful | N73: 2014-08-12
A74: 4 | B74: 2014-08-06 | D74: Finolex Cables | E74: Buy | F74: 205.00 | G74: - | H74: 275 | I74: 250.00 | J74: Target Achieved | K74: 70.00 | L74: 34.15% | M74: Successful | N74: 2014-11-19
A75: 5 | B75: 2014-09-04 | D75: Exide Inds | E75: Buy | F75: 162.00 | G75: - | H75: 190 | I75: 190.00 | J75: Target Achieved | K75: 28.00 | L75: 17.28% | M75: Successful | N75: 2015-01-02
A76: 6 | B76: 2014-09-04 | D76: Deepak Nitrite | E76: Buy | F76: 75.00 | G76: - | H76: 91.5 | I76: 95-100 | J76: Profit of Rs.16.50/- | K76: 16.50 | L76: 22.00% | M76: Successful | N76: 2014-11-11
A77: 7 | B77: 2014-10-01 | D77: Mercks | E77: Buy | F77: 850.00 | G77: - | H77: 982.5 | I77: 1050.00 | J77: Profit of Rs.132.50/- | K77: 132.50 | L77: 15.59% | M77: Successful | N77: 2015-02-04
A78: 8 | B78: 2014-10-01 | D78: Grindwell Norton | E78: Buy | F78: 475.00 | G78: - | H78: 515 | I78: 600.00 | J78: Profit of Rs.40/- | K78: 40.00 | L78: 8.42% | M78: Successful | N78: 2014-10-27
A79: 9 | B79: 2014-10-01 | D79: Snowman Logistics | E79: Buy | F79: 86.00 | G79: - | H79: 99 | I79: 140.00 | J79: Profit of Rs.13.00/- | K79: 13.00 | L79: 15.12% | M79: Successful | N79: 2014-10-27
A80: 10 | B80: 2014-10-14 | D80: Birla Corp | E80: Buy | F80: 496.60 | G80: - | H80: 621 | I80: 580.00 | J80: Target Achieved | K80: 124.40 | L80: 25.05% | M80: Successful | N80: 2016-08-23
A81: 11 | B81: 2014-10-14 | D81: Ultratech Cem | E81: Buy | F81: 2481.90 | G81: - | H81: 2840 | I81: 2870.00 | J81: Profit of Rs.358.10/- | K81: 358.10 | L81: 14.43% | M81: Successful | N81: 2015-01-13
A82: 12 | B82: 2014-10-16 | D82: Sintex Inds | E82: Buy | F82: 84.50 | G82: - | H82: 93 | I82: 110.00 | J82: Profit of Rs.8.50/- | K82: 8.50 | L82: 10.06% | M82: Successful | N82: 2014-10-27
A83: 13 | B83: 2014-10-16 | D83: HSIL | E83: Buy | F83: 401.00 | G83: - | H83: 428 | I83: 450.00 | J83: Profit of Rs.27.00/- | K83: 27.00 | L83: 6.73% | M83: Successful | N83: 2015-01-16
A84: 14 | B84: 2014-10-16 | D84: Eveready Inds | E84: Buy | F84: 101.00 | G84: - | H84: 112 | I84: 120.00 | J84: Profit of Rs.11.00/- | K84: 11.00 | L84: 10.89% | M84: Successful | N84: 2014-10-27
A85: 15 | B85: 2014-11-11 | D85: Pennar Inds | E85: Buy | F85: 59.00 | G85: - | H85: 76 | I85: 76.00 | J85: Target Achieved | K85: 17.00 | L85: 28.81% | M85: Successful | N85: 2017-10-24
A86: 16 | B86: 2014-11-11 | D86: Snowman Logistics | E86: Buy | F86: 99.00 | G86: - | H86: 120 | I86: 120.00 | J86: Profit of Rs.21/- | K86: 21.00 | L86: 21.21% | M86: Successful | N86: 2014-11-17
A87: 17 | B87: 2014-11-13 | D87: Dharamsi Morarji Chem | E87: Buy | F87: 22.00 | G87: - | H87: 33.55 | I87: 32.00 | J87: Profit of Rs 11.55/- | K87: 11.55 | L87: 52.50% | M87: Successful | N87: 2015-07-03
A88: 18 | B88: 2014-12-03 | D88: Tatachem | E88: Buy | F88: 440.00 | G88: - | H88: 520 | I88: 520.00 | J88: Profit of Rs 80.00/- | K88: 80.00 | L88: 18.18% | M88: Successful | N88: 2015-07-23
A89: 19 | B89: 2014-12-03 | D89: Advanta | E89: Buy | F89: 360.00 | G89: - | H89: 427 | I89: 425.00 | J89: Profit of Rs.67.00/- | K89: 67.00 | L89: 18.61% | M89: Successful | N89: 2015-02-23
A90: 20 | B90: 2015-01-08 | D90: GDL | E90: Buy | F90: 360.00 | G90: - | H90: 455 | I90: 420.00 | J90: Profit of Rs.95.00/- | K90: 95.00 | L90: 26.39% | M90: Successful | N90: 2015-01-20
A91: 21 | B91: 2015-01-08 | D91: NRB Bearing | E91: Buy | F91: 130.00 | H91: 175.5 | I91: 165.00 | J91: Profit of Rs 45.50/- | K91: 45.50 | L91: 35.00% | M91: Successful | N91: 2017-12-19
A92: 22 | B92: 2015-02-05 | D92: GSFC | E92: Accu | F92: 98.00 | H92: 120 | I92: 120.00 | J92: Target Achieved | K92: 22.00 | L92: 22.45% | M92: Successful | N92: 2017-01-18
A93: 23 | B93: 2015-02-05 | D93: Sundrmfast | E93: Accu | F93: 196.00 | H93: 262 | I93: 255.00 | J93: Target Achieved | K93: 66.00 | L93: 33.67% | M93: Successful | N93: 2016-08-17
A94: 24 | B94: 2015-03-04 | D94: GPPL | E94: Accu | F94: 235 | H94: 77.00 | I94: 280-285 | J94: Loss of Rs.158/- | K94: -158.00 | L94: -67.23% | M94: Unsuccessful | N94: 2019-02-26
A95: 25 | B95: 2015-03-04 | D95: ORIENTCEM | E95: Accu | F95: 185.00 | H95: 224 | I95: 220-225 | J95: Target Achieved | K95: 39.00 | L95: 21.08% | M95: Successful | N95: 2016-10-04
A96: 26 | B96: 2015-03-27 | D96: PFS | E96: Accu | F96: 49.5 | H96: 15.85 | I96: 67.00 | J96: Loss of Rs.33.65/- | K96: -33.65 | L96: -68% | M96: Unsuccessful | N96: 2019-06-11
A97: 27 | B97: 2015-03-30 | D97: Walchandnagar Ind Ltd | E97: Accu | F97: 183.50 | H97: 219 | I97: 218.00 | J97: Profit of Rs.35.50/- | K97: 35.50 | L97: 19.35% | M97: Successful | N97: 2015-04-09
A98: 28 | B98: 2015-04-20 | D98: Kalpataru Power Transmission Ltd | E98: Accu | F98: =(227+237)/2 -> 232.00 | H98: 298 | I98: 298.00 | J98: Target Achieved | K98: 66.00 | L98: 28.45% | M98: Successful | N98: 2017-03-29
A99: 29 | B99: 2015-05-04 | D99: Mastek Ltd | E99: Buy | F99: 385.00 | H99: =212.5+331 -> 543.5 | I99: 510.00 | J99: Profit of Rs 158.50/- | K99: 158.50 | L99: 41.17% | M99: Successful | N99: 2015-08-19
A100: 30 | B100: 2015-05-04 | D100: Suprajit Eng | E100: Buy | F100: 115.50 | H100: 146 | I100: 142.00 | J100: Profit of Rs 30.50/- | K100: 30.50 | L100: 26.41% | M100: Successful | N100: 2015-07-17
A101: 31 | B101: 2015-05-27 | D101: TCI | E101: Buy | F101: 237.50 | H101: 279.5 | I101: 278.00 | J101: Target Achieved | K101: 42.00 | L101: 17.68% | M101: Successful | N101: 2015-08-06
A102: 32 | B102: 2015-06-19 | D102: HSIL | E102: Accu | F102: 340.00 | H102: 448 | I102: 448.00 | J102: Target Achieved | K102: 108.00 | L102: 31.76% | M102: Successful | N102: 2017-10-10
A103: 33 | B103: 2015-07-06 | D103: Capital First | E103: Accu | F103: 390.00 | H103: 460 | I103: 460.00 | J103: Target Achieved | K103: =H103-F103 -> 70.00 | L103: =K103/F103 -> 17.95% | M103: Successful | N103: 2016-04-18
A104: 34 | B104: 2015-07-10 | D104: Dolphin OffShore | E104: Accu | F104: 122.5 | H104: 61.00 | I104: 172.00 | J104: Loss of Rs.61.50/- | K104: -61.50 | L104: -50.20% | M104: Unsuccessful | N104: 2018-08-21
A105: 35 | B105: 2015-08-03 | D105: Allcargo logistics | E105: Accu | F105: 297.50 | H105: 350 | I105: 360.00 | J105: Profit of Rs 52.50/- | K105: 52.50 | L105: 17.65% | M105: Successful | N105: 2015-08-16
A106: 36 | B106: 2015-08-03 | D106: Camline Fine | E106: Accu | F106: 115.50 | H106: 149 | I106: 140.00 | J106: Profit of Rs 33.50/- | K106: 33.50 | L106: 29.00% | M106: Successful | N106: 2017-01-05
A107: 37 | B107: 2015-09-04 | D107: TCI | E107: Accu | F107: 226.00 | H107: 292 | I107: 292.00 | J107: Target Achieved | K107: 66.00 | L107: 29.20% | M107: Successful | N107: 2015-10-09
A108: 38 | B108: 2015-09-07 | D108: Kalpataru Power Transmission Ltd | E108: Accu | F108: 232.50 | H108: 312.5 | I108: 310.00 | J108: Target Achieved | K108: 80.00 | L108: 34.41% | M108: Successful | N108: 2017-03-29
A109: 39 | B109: 2015-09-21 | D109: LLOYD ELECTRIC & ENG LTD | E109: Accu | F109: 196.50 | H109: 238 | I109: 238.00 | J109: Target Achieved | K109: 41.50 | L109: 21.12% | M109: Successful | N109: 2015-10-14
A110: 40 | B110: 2015-09-24 | D110: L&T Finance Holding | E110: Accu | F110: 65.00 | H110: 82 | I110: 82.00 | J110: Target Achieved | K110: 17.00 | L110: 26.15% | M110: Successful | N110: 2016-07-27
A111: 41 | B111: 2015-10-14 | D111: KEC International ltd | E111: Accu | F111: 144.00 | H111: 182.5 | I111: 181.00 | J111: Target Achieved | K111: 38.50 | L111: 26.74% | M111: Successful | N111: 2017-03-23
A112: 42 | B112: 2015-10-14 | D112: Gruh Finance | E112: Accu | F112: 264.00 | H112: 311 | I112: 311.00 | J112: Target Achieved | K112: 47.00 | L112: 17.80% | M112: Successful | N112: 2016-08-22
A113: 43 | B113: 2015-11-10 | D113: Pidilitind | E113: Buy | F113: 549.50 | H113: 630 | I113: 630.00 | J113: Target Achieved | K113: 80.50 | L113: 14.65% | M113: Successful | N113: 2016-02-19
A114: 44 | B114: 2015-12-04 | D114: Zensar Technology | E114: Accu | F114: 1027.50 | H114: 1315 | I114: 1250.00 | J114: Target Achieved | K114: 287.50 | L114: 27.98% | M114: Successful | N114: 2018-05-24
A115: 45 | B115: 2015-12-29 | D115: Vinati Organics Ltd | E115: Accu | F115: 465.00 | H115: 540 | I115: 540.00 | J115: Target Achieved | K115: 75.00 | L115: 16.13% | M115: Successful | N115: 2016-06-09
A116: 46 | B116: 2016-01-11 | D116: GSFC | E116: Buy | F116: 81.00 | H116: 110 | I116: 110.00 | J116: Target Achieved | K116: 29.00 | L116: 35.80% | M116: Successful | N116: 2017-01-10
A117: 47 | B117: 2016-01-13 | D117: SSWL | E117: Buy | F117: 417.50 | H117: 547 | I117: 535.00 | J117: Target Achieved | K117: 129.50 | L117: 31.02% | M117: Successful | N117: 2016-07-27
A118: 48 | B118: 2016-02-08 | D118: Persistent System Ltd | E118: Accu | F118: 650.00 | H118: 800 | I118: 800.00 | J118: Target Achieved | K118: 150.00 | L118: 23.08% | M118: Successful | N118: 2018-02-23
A119: 49 | B119: 2016-03-04 | D119: UPL | E119: Accu | F119: 437.50 | H119: 504.5 | I119: 522.00 | J119: Profit of Rs.67/- | K119: 67.00 | L119: 15.31% | M119: Successful | N119: 2016-04-20
A120: 50 | B120: 2016-03-09 | D120: Ashoka Buildcon Ltd | E120: Accu | F120: 189.50 | H120: 218 | I120: 218.00 | J120: Target Achieved | K120: 28.50 | L120: 15.04% | M120: Successful | N120: 2017-10-26
A121: 51 | B121: 2016-04-11 | D121: PTC INDIA FIN SERV LTD | E121: Accu | F121: 36.5 | H121: 15.85 | I121: 60.00 | J121: Loss of Rs.20.65/- | K121: -20.65 | L121: -56.58% | M121: Unsuccessful | N121: 2019-06-11
A122: 52 | B122: 2016-04-12 | D122: CAMLINFINE $ | E122: Accu | F122: 93.00 | H122: 149 | I122: 140.00 | J122: Profit of Rs 56/- | K122: 56.00 | L122: 60.22% | M122: Successful | N122: 2017-01-05
A123: 53 | B123: 2016-04-12 | D123: Greaves Cotton Ltd. | E123: Accu | F123: 130.00 | H123: 150 | I123: 150-155 | J123: Target Achieved | K123: 20.00 | L123: 15.38% | M123: Successful | N123: 2016-07-13
A124: 54 | B124: 2016-04-13 | D124: DHFL | E124: Accu | F124: 196.00 | H124: 299 | I124: 299.00 | J124: Target Achieved | K124: 103.00 | L124: 52.55% | M124: Successful | N124: 2016-09-07
A125: 55 | B125: 2016-04-13 | D125: Magma | E125: Accu | F125: 88.00 | H125: 103 | I125: 103.00 | J125: Target Achieved | K125: 15.00 | L125: 17.05% | M125: Successful | N125: 2016-06-09
A126: 56 | B126: 2016-05-02 | D126: KEC International ltd $ | E126: Accu | F126: 127.50 | H126: 148 | I126: 148-150 | J126: Target Achieved | K126: =H126-F126 -> 20.50 | L126: =K126/F126 -> 16.08% | M126: Successful | N126: 2016-07-13
A127: 57 | B127: 2016-05-03 | D127: Mindtree | E127: Accu | F127: 675.00 | H127: 815 | I127: 790-800 | J127: Target Achieved | K127: =H127-F127 -> 140.00 | L127: =K127/F127 -> 20.74% | M127: Successful | N127: 2018-02-23
A128: 58 | B128: 2016-06-01 | D128: Atulauto | E128: Accu | F128: 500 | H128: 232.50 | I128: 565-570 | J128: Loss of Rs.267.50 /- | K128: =H128-F128 -> -267.50 | L128: =K128/F128 -> -53.50% | M128: Unsuccessful | N128: 2019-09-27
A129: 59 | B129: 2016-06-06 | D129: TRITURBINE | E129: Accu | F129: 110.00 | H129: 126.5 | I129: 125.00 | J129: Profit of Rs.16.50/- | K129: =H129-F129 -> 16.50 | L129: =K129/F129 -> 15.00% | M129: Successful | N129: 2016-07-01
A130: 60 | B130: 2016-06-17 | D130: Pennar Industries Ltd | E130: Accu | F130: 44.00 | H130: 69.5 | I130: 69.50 | J130: Profit of Rs.25.50/- | K130: =H130-F130 -> 25.50 | L130: =K130/F130 -> 57.95% | M130: Successful | N130: 2017-08-30
A131: 61 | B131: 2016-06-28 | D131: EVEREADY | E131: Accu | F131: 262.50 | H131: 340 | I131: 333.00 | J131: Profit of Rs.77.50/- | K131: 77.50 | L131: 29.52% | M131: Successful | N131: 2017-10-09
A132: 62 | B132: 2016-06-28 | D132: FIEMIND | E132: Accu | F132: 840.00 | H132: 1230 | I132: 1230.00 | J132: Target Achieved | K132: 390.00 | L132: 46.43% | M132: Successful | N132: 2016-10-06
A133: 63 | B133: 2016-07-05 | D133: Bajaj Corp Ltd | E133: Accu | F133: 395 | H133: =(468.5+342.5)/2 -> 405.50 | I133: 510.00 | J133: Profit of Rs.10.50/- | K133: =H133-F133 -> 10.50 | L133: =K133/F133 -> 3% | M133: Neutral | N133: 2019-05-21
A134: 64 | B134: 2016-08-02 | D134: GPPL $ | E134: Buy | F134: =169.5-12.8 -> 156.7 | H134: 77.00 | I134: 198-200 | J134: Loss of Rs.79.7/- | K134: -79.70 | L134: -50.86% | M134: Unsuccessful | N134: 2019-02-26
A135: 65 | B135: 2016-08-04 | D135: WONDERLA HOLIDAYS LTD | E135: Accu | F135: 400 | H135: 305.00 | I135: 475.00 | J135: Loss of Rs.95/- | K135: -95.00 | L135: -23.75% | M135: Unsuccessful | N135: 2019-05-21
A136: 66 | B136: 2016-08-11 | D136: CAMLINFINE | E136: Accu | F136: 86.50 | H136: 130 | I136: 130.00 | J136: Profit of Rs.43.50/- | K136: 43.50 | L136: 50.29% | M136: Successful | N136: 2017-12-22
A137: 67 | B137: 2016-08-18 | D137: GRANULES | E137: Accu | F137: 133.5 | H137: 126.50 | I137: 178.00 | J137: Exit | K137: -7.00 | L137: -5.24% | M137: Unsuccessful | N137: 2016-09-02
A138: 68 | B138: 2016-08-31 | D138: VA TECH WABAG | E138: Accu | F138: 560.00 | H138: 725 | I138: 725.00 | J138: Target Achieved | K138: 165.00 | L138: 29.46% | M138: Successful | N138: 2016-03-27
A139: 69 | B139: 2016-09-01 | D139: SKIPPER LIMITED | E139: Accu | F139: 160.50 | H139: 210 | I139: 210.00 | J139: Target Achieved | K139: 49.50 | L139: 30.84% | M139: Successful | N139: 2017-05-16
A140: 70 | B140: 2016-10-03 | D140: IFBIND | E140: Accu | F140: 430.00 | H140: 596 | I140: 575.00 | J140: Profit of Rs.166/- | K140: 166.00 | L140: 38.60% | M140: Successful | N140: 2017-02-03
A141: 71 | B141: 2016-10-14 | D141: ASIANTILES | E141: Accu | F141: 280.00 | H141: 345 | I141: 345.00 | J141: Target Achieved | K141: =H141-F141 -> 65.00 | L141: =K141/F141 -> 23.21% | M141: Successful | N141: 2017-03-20
A142: 72 | B142: 2016-10-14 | D142: DEEPIND | E142: Accu | F142: 245.00 | H142: 325.5 | I142: 330.00 | J142: Profit of Rs.80.5/- | K142: 80.50 | L142: =K142/F142 -> 32.86% | M142: Successful | N142: 2017-02-03
A143: 73 | B143: 2016-10-17 | D143: DCBBANK | E143: Accu | F143: 125.00 | H143: 160 | I143: 160.00 | J143: Target Achieved | K143: 35.00 | L143: 28.00% | M143: Successful | N143: 2017-03-09
A144: 74 | B144: 2016-10-17 | D144: ORIENTREF | E144: Accu | F144: 114.00 | H144: 145 | I144: 145.00 | J144: Target Achieved | K144: 31.00 | L144: =K144/F144 -> 27.19% | M144: Successful | N144: 2017-05-04
A145: 75 | B145: 2016-10-17 | D145: GANECOS | E145: Accu | F145: 212.00 | H145: 280 | I145: 276.00 | J145: Profit of Rs.68/- | K145: 68.00 | L145: =K145/F145 -> 32.08% | M145: Successful | N145: 2017-05-03
A146: 76 | B146: 2016-11-04 | D146: NBCC | E146: Accu | F146: 155.00 | H146: 210 | I146: 210.00 | J146: Profit of Rs.55/- | K146: 55.00 | L146: =K146/F146 -> 35.48% | M146: Successful | N146: 2017-07-28
A147: 77 | B147: 2016-12-06 | D147: PRECAM | E147: Accu | F147: 150.5 | H147: 72.50 | I147: 174.00 | J147: Loss of Rs.78/- | K147: -78.00 | L147: -51.83% | M147: Unsuccessful | N147: 2018-08-21
A148: 78 | B148: 2016-12-08 | D148: INFRATEL | E148: Accu | F148: 380.00 | H148: 478 | I148: 468.00 | J148: Target Achieved | K148: =H148-F148 -> 98.00 | L148: =K148/F148 -> 25.79% | M148: Successful | N148: 2017-10-17
A149: 79 | B149: 2016-12-30 | D149: GODREJPROP | E149: Accu | F149: 305.00 | H149: 375 | I149: 375.00 | J149: Target Achieved | K149: =H149-F149 -> 70.00 | L149: =K149/F149 -> 22.95% | M149: Successful | N149: 2017-02-02
A150: 80 | B150: 2017-01-04 | D150: DEEPAKNTR | E150: Accu | F150: 99.50 | H150: 158 | I150: 158.00 | J150: Target Achieved | K150: =H150-F150 -> 58.50 | L150: =K150/F150 -> 58.79% | M150: Successful | N150: 2017-06-12
A151: 81 | B151: 2017-01-04 | D151: DEEPAKNTR | E151: Accu | F151: 99.50 | H151: 158 | I151: 158.00 | J151: Target Achieved | K151: 58.50 | L151: 58.79% | M151: Successful | N151: 2017-06-12
A152: 82 | B152: 2017-02-20 | D152: RECLTD | E152: Accu | F152: 140.50 | H152: 220 | I152: 220.00 | J152: Target Achieved | K152: =H152-F152 -> 79.50 | L152: =K152/F152 -> 56.58% | M152: Successful | N152: 2017-05-09
A153: 83 | B153: 2017-02-20 | D153: SUBROS | E153: Accu | F153: 202.50 | H153: 234 | I153: 234.00 | J153: Target Achieved | K153: 31.50 | L153: 15.56% | M153: Successful | N153: 2017-04-11
A154: 84 | B154: 2017-03-24 | D154: VRLLOG | E154: Accu | F154: 300.50 | H154: 417.5 | I154: 420.00 | J154: Profit of Rs.117/- | K154: =H154-F154 -> 117.00 | L154: =K154/F154 -> 38.94% | M154: Successful | N154: 2017-12-01
A155: 85 | B155: 2017-03-24 | D155: FIEMIND | E155: Accu | F155: 850.00 | H155: 1042.5 | I155: 1023.00 | J155: Profit of Rs 192.50/- | K155: 192.50 | L155: 22.65% | M155: Successful | N155: 2017-04-05
A156: 86 | B156: 2017-04-05 | D156: RATNAMANI | E156: Accu | F156: 785.00 | H156: 930 | I156: 920.00 | J156: Profit of Rs.145/- | K156: =H156-F156 -> 145.00 | L156: =K156/F156 -> 18.47% | M156: Successful | N156: 2017-08-29
A157: 87 | B157: 2017-04-06 | D157: ZEEMEDIA | E157: Accu | F157: 40 | H157: 13.10 | I157: 60.00 | J157: Loss of Rs.26.9/- | K157: -26.90 | L157: -67.25% | M157: Unsuccessful | N157: 2018-02-07
A158: 88 | B158: 2017-04-12 | D158: DABUR | E158: Accu | F158: 289.50 | H158: 354 | I158: 360.00 | J158: Profit of Rs.64.5/- | K158: =H158-F158 -> 64.50 | L158: =K158/F158 -> 22.28% | M158: Successful | N158: 2017-11-01
A159: 89 | B159: 2017-04-20 | D159: KPRMILL | E159: Accu | F159: 700.00 | H159: 840 | I159: 840.00 | J159: Profit of Rs.140/- | K159: 140.00 | L159: 20.00% | M159: Successful | N159: 2017-06-07
A160: 90 | B160: 2017-06-01 | D160: ESSELPACK | E160: Accu | F160: 130.00 | H160: 144.25 | I160: 170.00 | J160: Profit of Rs.14.25/- | K160: 14.25 | L160: 10.96% | M160: Successful | N160: 2019-07-29
A161: 91 | B161: 2017-06-15 | D161: KEI | E161: Accu | F161: 214.50 | H161: 262 | I161: 262.00 | J161: Profit of Rs.47.5/- | K161: 47.50 | L161: 22.14% | M161: Successful | N161: 2017-08-30
A162: 92 | B162: 2017-07-17 | D162: MAYURUNIQ | E162: Accu | F162: 370.00 | H162: 447.5 | I162: 450.00 | J162: Target Achieved | K162: 77.50 | L162: 20.95% | M162: Successful | N162: 2017-10-27
A163: 93 | B163: 2017-07-27 | D163: RAMCOCEM | E163: Accu | F163: 657.50 | H163: 825 | I163: 820.00 | J163: Target Achieved | K163: 167.50 | L163: 25.48% | M163: Successful | N163: 2017-12-21
A164: 94 | B164: 2017-08-17 | D164: FINPIPE | E164: Accu | F164: 605.00 | H164: 750 | I164: 750.00 | J164: Profit of Rs.145/- | K164: 145.00 | L164: 23.97% | M164: Successful | N164: 2017-10-19
A165: 95 | B165: 2017-09-01 | D165: SHK | E165: Accu | F165: 255 | H165: 217.25 | I165: 320.00 | J165: Loss of Rs.37.75/- | K165: -37.75 | L165: -15% | M165: Unsuccessful | N165: 2019-07-15
A166: 96 | B166: 2017-09-19 | D166: SKIPPER | E166: Accu | F166: 215.00 | H166: 258 | I166: 258.00 | J166: Target Achieved | K166: 43.00 | L166: 20.00% | M166: Successful | N166: 2017-11-01
A167: 97 | B167: 2017-09-19 | D167: SKIPPER | E167: Accu | F167: 215.00 | H167: 258 | I167: 258.00 | J167: Target Achieved | K167: 43.00 | L167: 20.00% | M167: Successful | N167: 2017-11-01
A168: 98 | B168: 2017-09-20 | D168: CAMLINFINE$ | E168: Accu | F168: 75.00 | H168: 90 | I168: 90.00 | J168: Profit of Rs.15.00/- | K168: =H168-F168 -> 15.00 | L168: =K168/F168 -> 20.00% | M168: Successful | N168: 2017-10-11
A169: 99 | B169: 2017-10-03 | D169: GNA | E169: Accu | F169: 315.00 | H169: 392 | I169: 384.00 | J169: Profit of Rs.77/- | K169: 77.00 | L169: 24.44% | M169: Successful | N169: 2017-10-09
A170: 100 | B170: 2017-10-05 | D170: NOCIL | E170: Accu | F170: 145.00 | H170: 179 | I170: 180.00 | J170: Profit of Rs.34/- | K170: 34.00 | L170: 23.45% | M170: Successful | N170: 2017-10-17
A171: 101 | B171: 2017-10-06 | D171: CENTURYPLY | E171: Accu | F171: 256.00 | H171: 323 | I171: 320.00 | J171: Target Achieved | K171: 67.00 | L171: 26.17% | M171: Successful | N171: 2017-11-28
A172: 102 | B172: 2017-10-09 | D172: EIHOTEL | E172: Accu | F172: 137.50 | H172: 184 | I172: 183.00 | J172: Profit of Rs.46.5/- | K172: 46.50 | L172: 33.82% | M172: Successful | N172: 2018-01-08
A173: 103 | B173: 2017-10-10 | D173: NRBBEARING | E173: Accu | F173: 125.50 | H173: 158 | I173: 155.00 | J173: Profit of Rs.32.5/- | K173: 32.50 | L173: 25.90% | M173: Successful | N173: 2017-11-28
A174: 104 | B174: 2017-10-10 | D174: BOROSIL | E174: Accu | F174: 895.00 | H174: 1122.5 | I174: 1078.00 | J174: Profit of Rs.227.5/- | K174: 227.50 | L174: 25.42% | M174: Successful | N174: 2018-01-17
A175: 105 | B175: 2017-10-12 | D175: CYIENT | E175: Accu | F175: 525.00 | H175: 629 | I175: 629.00 | J175: Target Achieved | K175: 104.00 | L175: 19.81% | M175: Successful | N175: 2018-01-19
A176: 106 | B176: 2017-11-07 | D176: HATSUN | E176: Accu | F176: 740.00 | H176: 892.5 | I176: 900.00 | J176: Profit of Rs.152.5/- | K176: =H176-F176 -> 152.50 | L176: =K176/F176 -> 20.61% | M176: Successful | N176: 2017-11-13
A177: 107 | B177: 2017-12-04 | D177: SANGHIIND | E177: Accu | F177: 118.50 | H177: 143.5 | I177: 145.00 | J177: Profit of Rs.25/- | K177: =H177-F177 -> 25.00 | L177: =K177/F177 -> 21.10% | M177: Successful | N177: 2017-12-28
A178: 108 | B178: 2017-12-21 | D178: KAJARIACER | E178: Accu | F178: 715 | H178: 500.00 | I178: 872.00 | J178: Loss of Rs.215/- | K178: =H178-F178 -> -215.00 | L178: =K178/F178 -> -30.07% | M178: Unsuccessful | N178: 2019-07-24
A179: 109 | B179: 2017-12-29 | D179: GNA | E179: Accu | F179: 435.00 | H179: 542.5 | I179: 539.00 | J179: Target Achieved | K179: 107.50 | L179: 24.71% | M179: Successful | N179: 2018-04-16
A180: 110 | B180: 2017-12-29 | D180: ZENSARTECH | E180: Accu | F180: 885.00 | H180: 1090 | I180: 1084.00 | J180: Target Achieved | K180: 205.00 | L180: 23.16% | M180: Successful | N180: 2018-04-23
A181: 111 | B181: 2018-04-02 | D181: EVERESTIND | E181: Accu | F181: 478.50 | H181: 442 | I181: 613.00 | J181: Loss of Rs.36.50 /- | K181: =H181-F181 -> -36.50 | L181: =K181/F181 -> -7.63% | M181: Unsuccessful | N181: 2019-10-24
A182: 112 | B182: 2018-04-04 | D182: GPPL$ | E182: Accu | F182: =141.5-7.3 -> 134.2 | H182: 77.00 | I182: 180.00 | J182: Loss of Rs.57.2/- | K182: =H182-F182 -> -57.20 | L182: =K182/F182 -> -42.62% | M182: Unsuccessful | N182: 2019-02-26
A183: 113 | B183: 2018-04-19 | D183: MANPASAND | E183: Accu | F183: 430 | H183: 220.00 | I183: 537.00 | J183: Loss of Rs.210/- | K183: =H183-F183 -> -210.00 | L183: =K183/F183 -> -48.84% | M183: Unsuccessful | N183: 2018-06-01
A184: 114 | B184: 2018-04-30 | D184: HEIDELBERG | E184: Accu | F184: 153.50 | H184: 196.00 | I184: 196.00 | J184: Profit of Rs.42.50/- | K184: =H184-F184 -> 42.50 | L184: =K184/F184 -> 28% | M184: Successful | N184: 2019-05-20
A185: 115 | B185: 2018-07-25 | D185: ZEEMEDIA | E185: Accu | F185: 27.5 | H185: 13.10 | I185: 60.00 | J185: Loss of Rs.14.40/- | K185: -14.40 | L185: -52.36% | M185: Unsuccessful | N185: 2018-02-07
A186: 116 | B186: 2018-08-06 | D186: GABRIEL | E186: Accu | F186: 148.5 | H186: 102 | I186: 182.00 | J186: Loss of Rs.46.50/- | K186: =H186-F186 -> -46.50 | L186: =K186/F186 -> -31.31% | M186: Unsuccessful | N186: 2019-07-15
A187: 117 | B187: 2018-08-23 | D187: INDIANHUME | E187: Accu | F187: 285 | H187: 355 | I187: 364.00 | J187: Profit of Rs.70/- | K187: 70.00 | L187: 24.56% | M187: Successful | N187: 2018-12-21
A188: 118 | B188: 2018-08-29 | D188: GRINDWELL | E188: Accu | F188: 525 | H188: 585 | I188: 635.00 | J188: Profit of Rs.60- | K188: =H188-F188 -> 60.00 | L188: =K188/F188 -> 11.43% | M188: Successful | N188: 2019-07-16
A189: 119 | B189: 2018-10-22 | D189: FINPIPE | E189: Accu | F189: 475 | H189: 574 | I189: 570.00 | J189: Target Achieved | K189: 99.00 | L189: 20.84% | M189: Successful | N189: 2018-10-30
A190: 120 | B190: 2018-10-24 | D190: GULFOILLUB | E190: Accu | F190: 707.5 | H190: 872 | I190: 872.00 | J190: Target Achieved | K190: 164.50 | L190: 23.25% | M190: Successful | N190: 2019-01-17
A191: 121 | B191: 2018-10-25 | D191: DBCORP | E191: Accu | F191: 162 | H191: 204 | I191: 209.00 | J191: Profit of Rs.42/- | K191: 42.00 | L191: 25.93% | M191: Successful | N191: 2019-03-15
A192: 122 | B192: 2018-10-26 | D192: RITES | E192: Accu | F192: 240 | H192: 297 | I192: 297.00 | J192: Target Achieved | K192: 57.00 | L192: 23.75% | M192: Successful | N192: 2018-11-13
A193: 123 | B193: 2018-12-05 | D193: BRIGADE | E193: Accu | F193: 202.5 | H193: 255 | I193: 252.00 | J193: Target Achieved | K193: 52.50 | L193: 25.93% | M193: Successful | N193: 2019-03-18
A194: 124 | B194: 2018-12-31 | D194: JKCEMENT | E194: Accu | F194: 710 | H194: 866 | I194: 866.00 | J194: Target Achieved | K194: 156.00 | L194: 21.97% | M194: Successful | N194: 2019-03-29
A195: 125 | B195: 2019-02-26 | D195: MARICO | E195: Accu | F195: 337.25 | H195: 398.5 | I195: 411.00 | J195: Profit of Rs.61.25/- | K195: 61.25 | L195: 18.16% | M195: Successful | N195: 2019-10-22
A196: 126 | B196: 2019-04-04 | D196: ITDCEM | E196: Accu | F196: 130 | H196: 65 | I196: 158.00 | J196: Loss of Rs.65 /- | K196: -65.00 | L196: -50.00% | M196: Unsuccessful | N196: 2019-09-18
A197: 127 | B197: 2017-10-09 | D197: RECLTD | E197: Accu | F197: 141.5 | H197: 183.50 | I197: 210.00 | J197: Part Profit of Rs.42/- | K197: 42.00 | L197: 30% | M197: Successful | N197: 2017-11-03 | R197: V
A198: 128 | B198: 2017-12-05 | D198: ALLCARGO | E198: Accu | F198: 172.00 | H198: 155.25 | I198: 230.00 | J198: Loss of Rs.16.75/- | K198: =H198-F198 -> -16.75 | L198: =K198/F198 -> -9.74% | M198: Unsuccessful | N198: 2019-11-18 | R198: V
A199: 129 | B199: 2018-10-25 | D199: GODREJCP | E199: Accu | F199: 698.50 | H199: 850.00 | I199: 890.00 | J199: Part Profit of Rs.151.50/- | K199: 151.50 | L199: 22% | M199: Successful | N199: 2018-12-19 | R199: V
A200: 130 | B200: 2017-05-22 | D200: GREAVESCOT | E200: Accu | F200: 127.6 | H200: 138.00 | I200: 190.00 | J200: Profit of Rs.10.40 | K200: 10.40 | L200: 8% | M200: Successful | N200: 2019-11-05 | R200: K
A201: 131 | B201: 2018-02-27 | D201: MOLDTKPAC | E201: Accu | F201: 317.00 | I201: 398.00 | M201: Open | R201: K
A202: 132 | B202: 2018-03-05 | D202: LICHSGFIN | E202: Accu | F202: =510-14.4 -> 495.60 | H202: 350 | I202: 672.00 | J202: Loss of Rs.145.60/- | K202: =H202-F202 -> -145.60 | L202: =K202/F202 -> -29.38% | M202: Unsuccessful | N202: 2020-02-26 | R202: K
A203: 133 | B203: 2018-05-17 | D203: PHILIPCARB | E203: Accu | F203: 230.30 | H203: 102.5 | I203: 348.00 | J203: Loss of Rs.127.80/- | K203: =H203-F203 -> -127.80 | L203: =K203/F203 -> -55.49% | M203: Unsuccessful | N203: 2020-03-06 | R203: V
A204: 134 | B204: 2018-06-07 | D204: KEC | E204: Accu | F204: =342.5-5.1 -> 337.40 | I204: 439.00 | M204: Open | R204: K
A205: 135 | B205: 2018-07-04 | D205: ASHOKLEY | E205: Accu | F205: =127.5-5.53 -> 121.97 | I205: 170.00 | M205: Open | R205: K
A206: 136 | B206: 2018-07-13 | D206: FCONSUMER | E206: Accu | F206: 46.50 | H206: 17 | I206: 59.00 | J206: Loss of Rs.29.50/- | K206: =H206-F206 -> -29.50 | L206: =K206/F206 -> -63.44% | M206: Unsuccessful | N206: 2020-02-26 | R206: V
A207: 137 | B207: 2018-10-23 | D207: JKPAPER | E207: Accu | F207: 156.50 | I207: 191.00 | M207: Open | R207: V
A208: 138 | B208: 2018-12-05 | D208: CCL | E208: Accu | F208: 259.50 | I208: 321.00 | M208: Open | R208: K
A209: 139 | B209: 2018-12-05 | D209: VARROC | E209: Accu | F209: 715 | H209: 445 | I209: 840.00 | J209: Loss of Rs.270/- | K209: =H209-F209 -> -270.00 | L209: =K209/F209 -> -37.76% | M209: Unsuccessful | N209: 2019-12-01 | R209: V
A210: 140 | B210: 2019-01-04 | D210: MGL | E210: Accu | F210: 875 | H210: 1165 | I210: 1185.00 | J210: Profit of Rs.290/- | K210: 290.00 | L210: 33.14% | M210: Successful | N210: 2020-01-17 | R210: V
A211: 141 | B211: 2019-04-04 | D211: COCHINSHIP | E211: Accu | F211: =387-14.63 -> 372.37 | H211: 490 | I211: 490.00 | J211: Target Achieved | K211: 117.63 | L211: 31.59% | M211: Successful | N211: 2020-01-20 | R211: V
A212: 142 | B212: 2019-04-23 | D212: MAHINDCIE | E212: Buy | F212: 220 | H212: 127.5 | I212: 284.00 | J212: Loss of Rs.92.50/- | K212: -92.50 | L212: -42.05% | M212: Unsuccessful | N212: 2020-03-06 | R212: V
A213: 143 | B213: 2019-06-06 | D213: RADICO | E213: Buy | F213: 332.8 | H213: 405 | I213: 419.00 | J213: Profit of Rs.72.20/- | K213: =H213-F213 -> 72.20 | L213: =K213/F213 -> 21.69% | M213: Successful | N213: 2020-01-30 | R213: V
A214: 144 | B214: 2019-06-25 | D214: M&MFIN | E214: Accu | F214: 386 | H214: 395.00 | I214: 452.00 | J214: Profit of Rs.9/- | K214: =H214-F214 -> 9.00 | L214: =K214/F214 -> 2% | M214: Neutral | N214: 2020-02-07 | R214: V
A215: 145 | B215: 2019-08-30 | D215: INDHOTEL | E215: Accu | F215: 135-140 | I215: 190.00 | M215: Open | R215: V
A216: 146 | B216: 2019-09-23 | D216: KNRCON | E216: Accu | F216: 235 | H216: 295 | I216: 296.00 | J216: Profit of Rs.60/- | K216: =H216-F216 -> 60.00 | L216: =K216/F216 -> 25.53% | M216: Successful | N216: 2020-01-14 | R216: V
A217: 147 | B217: 2019-10-14 | D217: KEC$ | E217: Accu | F217: 277.5 | H217: 333 | I217: 333.00 | J217: Profit of Rs.55.50/- | K217: =H217-F217 -> 55.50 | L217: =K217/F217 -> 20.00% | M217: Successful | N217: 2020-01-16 | R217: K
A218: 148 | B218: 2019-10-14 | D218: MGL$ | E218: Accu | F218: 930 | H218: 1165 | I218: 1200.00 | J218: Profit of Rs.235/- | K218: =H218-F218 -> 235.00 | L218: =K218/F218 -> 25.27% | M218: Successful | N218: 2020-01-17 | R218: K
A219: 149 | B219: 2019-10-15 | D219: JKPAPER$ | E219: Accu | F219: 111.00 | I219: 141.00 | M219: Open | R219: V
A220: 150 | B220: 2019-10-15 | D220: RADICO$ | E220: Accu | F220: 296.00 | H220: 370 | I220: 370.00 | J220: Target Achieved | K220: =H220-F220 -> 74.00 | L220: =K220/F220 -> 25.00% | M220: Successful | N220: 2020-01-23 | R220: K
A221: 151 | B221: 2019-10-16 | D221: MOLDTKPAC$ | E221: Accu | F221: 298-302 | I221: 344.00 | M221: Open | R221: V
A222: 152 | B222: 2020-01-02 | D222: PSPPROJECT | E222: Accu | F222: 490-500 | I222: 590.00 | M222: Open | R222: K
... 2 more rows

Sheet Sheet2 (hidden)
A1: SYMBOL | B1: SERIES | C1: OPEN | D1: HIGH | E1: LOW | F1: CLOSE | G1: LAST | H1: PREVCLOSE | I1: TOTTRDQTY | J1: TOTTRDVAL | K1: TIMESTAMP | L1: TOTALTRADES | M1: ISIN | N1: ISIN
A2: 20MICRONS | B2: EQ | C2: 27.9 | D2: 29 | E2: 25.9 | F2: 26.2 | G2: 25.9 | H2: 27.5 | I2: 80527 | J2: 2193820.55 | K2: 2020-04-08 | L2: 1099 | M2: INE144J01027
A3: 21STCENMGM | B3: EQ | C3: 10.15 | D3: 10.5 | E3: 10.1 | F3: 10.4 | G3: 10.5 | H3: 10.3 | I3: 3205 | J3: 32728.25 | K3: 2020-04-08 | L3: 28 | M3: INE253B01015
A4: 3IINFOTECH | B4: EQ | C4: 1.35 | D4: 1.35 | E4: 1.2 | F4: 1.25 | G4: 1.25 | H4: 1.35 | I4: 2793301 | J4: 3578364.95 | K4: 2020-04-08 | L4: 46535 | M4: INE748C01020
A5: 3MINDIA | B5: EQ | C5: 18950 | D5: 19170 | E5: 18155.05 | F5: 18318.2 | G5: 18270 | H5: 18755.7 | I5: 9926 | J5: 183605811.2 | K5: 2020-04-08 | L5: 4453 | M5: INE470A01017
A6: 3PLAND | B6: EQ | C6: 3.7 | D6: 3.85 | E6: 3.7 | F6: 3.85 | G6: 3.85 | H6: 3.7 | I6: 406 | J6: 1557.85 | K6: 2020-04-08 | L6: 9 | M6: INE105C01023
A7: 5PAISA | B7: EQ | C7: 119.95 | D7: 134 | E7: 115 | F7: 123.35 | G7: 120.5 | H7: 116.4 | I7: 6500 | J7: 793277.05 | K7: 2020-04-08 | L7: 265 | M7: INE618L01018
A8: 63MOONS | B8: EQ | C8: 50.7 | D8: 55.45 | E8: 50.7 | F8: 53.7 | G8: 53.55 | H8: 50.7 | I8: 72221 | J8: 3890984.7 | K8: 2020-04-08 | L8: 3078 | M8: INE111B01023
A9: A2ZINFRA | B9: EQ | C9: 3.15 | D9: 3.25 | E9: 3.1 | F9: 3.15 | G9: 3.15 | H9: 3.15 | I9: 116011 | J9: 367778.85 | K9: 2020-04-08 | L9: 227 | M9: INE619I01012
A10: AARTIDRUGS | B10: EQ | C10: 627 | D10: 669.3 | E10: 605 | F10: 631.6 | G10: 625 | H10: 607.85 | I10: 75970 | J10: 48223549.15 | K10: 2020-04-08 | L10: 5720 | M10: INE767A01016
A11: AARTIIND | B11: EQ | C11: 839.95 | D11: 909.8 | E11: 818 | F11: 854.9 | G11: 864 | H11: 830.7 | I11: 477805 | J11: 419092386.9 | K11: 2020-04-08 | L11: 50045 | M11: INE769A01020
A12: AARVEEDEN | B12: EQ | C12: 8.95 | D12: 9.25 | E12: 7.85 | F12: 8.35 | G12: 8.45 | H12: 8.1 | I12: 9251 | J12: 77100.1 | K12: 2020-04-08 | L12: 94 | M12: INE273D01019
A13: AAVAS | B13: EQ | C13: 1101 | D13: 1183 | E13: 1101 | F13: 1135.2 | G13: 1137 | H13: 1142.35 | I13: 24179 | J13: 28073100.85 | K13: 2020-04-08 | L13: 3631 | M13: INE216P01012
A14: ABAN | B14: EQ | C14: 15.7 | D14: 16.2 | E14: 15.7 | F14: 16.2 | G14: 16.2 | H14: 15.45 | I14: 37609 | J14: 608439.6 | K14: 2020-04-08 | L14: 288 | M14: INE421A01028
A15: ABB | B15: EQ | C15: 935 | D15: 965 | E15: 910 | F15: 930.7 | G15: 928 | H15: 931.35 | I15: 87757 | J15: 82358527.9 | K15: 2020-04-08 | L15: 4699 | M15: INE117A01022
A16: ABBOTINDIA | B16: EQ | C16: 16799.45 | D16: 18250 | E16: 16750 | F16: 17481.1 | G16: 17488 | H16: 16699.7 | I16: 57991 | J16: 1023745502 | K16: 2020-04-08 | L16: 21022 | M16: INE358A01014
A17: ABCAPITAL | B17: EQ | C17: 45 | D17: 47.9 | E17: 44.25 | F17: 45.6 | G17: 45.7 | H17: 45.1 | I17: 1253267 | J17: 57952493.6 | K17: 2020-04-08 | L17: 7317 | M17: INE674K01013
A18: ABFRL | B18: EQ | C18: 148 | D18: 152.8 | E18: 146.75 | F18: 149 | G18: 148 | H18: 149.85 | I18: 416099 | J18: 62371769.1 | K18: 2020-04-08 | L18: 10148 | M18: INE647O01011
A19: ABSLNN50ET | B19: EQ | C19: 244 | D19: 248 | E19: 210 | F19: 235 | G19: 235 | H19: 244 | I19: 56 | J19: 12779.4 | K19: 2020-04-08 | L19: 13 | M19: INF209KB1B87
A20: ACC | B20: EQ | C20: 1000 | D20: 1029.9 | E20: 941.25 | F20: 956.05 | G20: 958 | H20: 1009.95 | I20: 2153627 | J20: 2101320389 | K20: 2020-04-08 | L20: 79728 | M20: INE012A01025
A21: ACCELYA | B21: EQ | C21: 874.3 | D21: 886 | E21: 862 | F21: 880.45 | G21: 879.95 | H21: 874.3 | I21: 10865 | J21: 9557704.55 | K21: 2020-04-08 | L21: 923 | M21: INE793A01012
A22: ACE | B22: EQ | C22: 32.75 | D22: 35.2 | E22: 32.55 | F22: 33.25 | G22: 33.35 | H22: 32.95 | I22: 244708 | J22: 8296578.4 | K22: 2020-04-08 | L22: 2925 | M22: INE731H01025
A23: ADANIENT | B23: EQ | C23: 136.85 | D23: 147.15 | E23: 134.9 | F23: 138.1 | G23: 137.5 | H23: 138.15 | I23: 3237290 | J23: 456492273.1 | K23: 2020-04-08 | L23: 23696 | M23: INE423A01024
A24: ADANIGAS | B24: EQ | C24: 93.9 | D24: 96.35 | E24: 90.5 | F24: 90.8 | G24: 90.65 | H24: 94 | I24: 1888606 | J24: 176837924.4 | K24: 2020-04-08 | L24: 14517 | M24: INE399L01023
A25: ADANIGREEN | B25: EQ | C25: 166.85 | D25: 166.85 | E25: 162 | F25: 166.45 | G25: 166.85 | H25: 158.95 | I25: 702014 | J25: 116248737 | K25: 2020-04-08 | L25: 10187 | M25: INE364U01010
A26: ADANIPORTS | B26: EQ | C26: 248 | D26: 255.85 | E26: 242.75 | F26: 250.85 | G26: 249.7 | H26: 248.1 | I26: 6897883 | J26: 1724830525 | K26: 2020-04-08 | L26: 81499 | M26: INE742F01042
A27: ADANIPOWER | B27: EQ | C27: 28.65 | D27: 31.15 | E27: 27.5 | F27: 28.95 | G27: 28.85 | H27: 28.8 | I27: 12308064 | J27: 361987996.9 | K27: 2020-04-08 | L27: 23153 | M27: INE814H01011
A28: ADANITRANS | B28: EQ | C28: 196.65 | D28: 202 | E28: 190 | F28: 193.65 | G28: 193.5 | H28: 198.3 | I28: 306320 | J28: 59783940.3 | K28: 2020-04-08 | L28: 4236 | M28: INE931S01010
A29: ADFFOODS | B29: EQ | C29: 187.85 | D29: 192.25 | E29: 184 | F29: 187.7 | G29: 187.3 | H29: 183.1 | I29: 22107 | J29: 4185556.05 | K29: 2020-04-08 | L29: 773 | M29: INE982B01019
A30: ADHUNIKIND | B30: EQ | C30: 13.3 | D30: 13.3 | E30: 13.3 | F30: 13.3 | G30: 13.3 | H30: 12.7 | I30: 5518 | J30: 73389.4 | K30: 2020-04-08 | L30: 21 | M30: INE452L01012
A31: ADLABS | B31: EQ | C31: 2.75 | D31: 2.85 | E31: 2.75 | F31: 2.85 | G31: 2.85 | H31: 2.75 | I31: 19360 | J31: 54965.35 | K31: 2020-04-08 | L31: 72 | M31: INE172N01012
A32: ADORWELD | B32: EQ | C32: 195.7 | D32: 201.9 | E32: 193.95 | F32: 195.1 | G32: 194.45 | H32: 196.75 | I32: 1438 | J32: 283768.75 | K32: 2020-04-08 | L32: 94 | M32: INE045A01017
A33: ADROITINFO | B33: EQ | C33: 5.5 | D33: 5.7 | E33: 5.45 | F33: 5.7 | G33: 5.7 | H33: 5.7 | I33: 691 | J33: 3857 | K33: 2020-04-08 | L33: 25 | M33: INE737B01033
A34: ADSL | B34: EQ | C34: 13.05 | D34: 13.2 | E34: 12.4 | F34: 12.5 | G34: 12.45 | H34: 12.7 | I34: 16203 | J34: 205559.25 | K34: 2020-04-08 | L34: 143 | M34: INE102I01027
A35: ADVANIHOTR | B35: EQ | C35: 30.1 | D35: 33 | E35: 30.1 | F35: 31.8 | G35: 31.5 | H35: 30.65 | I35: 5340 | J35: 169948.95 | K35: 2020-04-08 | L35: 193 | M35: INE199C01026
A36: ADVENZYMES | B36: EQ | C36: 140.2 | D36: 146.55 | E36: 137.95 | F36: 139.2 | G36: 139.75 | H36: 136.55 | I36: 77441 | J36: 11046136.15 | K36: 2020-04-08 | L36: 1990 | M36: INE837H01020
A37: AEGISCHEM | B37: EQ | C37: 150 | D37: 158.5 | E37: 147.1 | F37: 156.35 | G37: 156.05 | H37: 144.1 | I37: 175470 | J37: 27041093.9 | K37: 2020-04-08 | L37: 4268 | M37: INE208C01025
A38: AFFLE | B38: BE | C38: 1050 | D38: 1053.45 | E38: 1030 | F38: 1053.45 | G38: 1053.45 | H38: 1003.3 | I38: 8191 | J38: 8619737.5 | K38: 2020-04-08 | L38: 470 | M38: INE00WC01019
A39: AGARIND | B39: EQ | C39: 49.8 | D39: 52.85 | E39: 49.05 | F39: 52.25 | G39: 52.5 | H39: 49.95 | I39: 7826 | J39: 404450.25 | K39: 2020-04-08 | L39: 207 | M39: INE204E01012
A40: AGCNET | B40: BE | C40: 224.35 | D40: 235.55 | E40: 213.25 | F40: 234.7 | G40: 235.55 | H40: 224.35 | I40: 2524 | J40: 573063 | K40: 2020-04-08 | L40: 70 | M40: INE676A01019
A41: AGRITECH | B41: EQ | C41: 23.95 | D41: 23.95 | E41: 23.95 | F41: 23.95 | G41: 23.95 | H41: 22.85 | I41: 504 | J41: 12070.8 | K41: 2020-04-08 | L41: 18 | M41: INE449G01018
A42: AGROPHOS | B42: EQ | C42: 5.7 | D42: 5.7 | E42: 5.2 | F42: 5.7 | G42: 5.7 | H42: 5.45 | I42: 40596 | J42: 227201.55 | K42: 2020-04-08 | L42: 340 | M42: INE740V01019
A43: AHLEAST | B43: EQ | C43: 133.15 | D43: 141.85 | E43: 128.15 | F43: 131.55 | G43: 128.35 | H43: 131.5 | I43: 3303 | J43: 439718.1 | K43: 2020-04-08 | L43: 350 | M43: INE926K01017
A44: AHLUCONT | B44: EQ | C44: 145.95 | D44: 148 | E44: 136 | F44: 146.3 | G44: 148 | H44: 144.1 | I44: 153910 | J44: 21077811.2 | K44: 2020-04-08 | L44: 995 | M44: INE758C01029
A45: AHLWEST | B45: EQ | C45: 289.9 | D45: 289.9 | E45: 270.95 | F45: 275 | G45: 275 | H45: 277 | I45: 238 | J45: 67030 | K45: 2020-04-08 | L45: 91 | M45: INE915K01010
A46: AIAENG | B46: EQ | C46: 1259.45 | D46: 1291 | E46: 1229 | F46: 1255.85 | G46: 1268 | H46: 1249.9 | I46: 73842 | J46: 92756824.05 | K46: 2020-04-08 | L46: 10503 | M46: INE212H01026
A47: AIONJSW | B47: EQ | C47: 10.9 | D47: 11.1 | E47: 10.2 | F47: 11.1 | G47: 11.1 | H47: 10.6 | I47: 90347 | J47: 996144.95 | K47: 2020-04-08 | L47: 180 | M47: INE743C01021
A48: AIRAN | B48: EQ | C48: 9.8 | D48: 10.3 | E48: 9.75 | F48: 9.8 | G48: 9.75 | H48: 9.85 | I48: 1826 | J48: 18127.1 | K48: 2020-04-08 | L48: 25 | M48: INE645W01026
A49: AJANTPHARM | B49: EQ | C49: 1325.75 | D49: 1450 | E49: 1325 | F49: 1367.5 | G49: 1363 | H49: 1340.2 | I49: 166582 | J49: 233126032.5 | K49: 2020-04-08 | L49: 8748 | M49: INE031B01049
A50: AJMERA | B50: EQ | C50: 64.95 | D50: 70.5 | E50: 64.6 | F50: 68.4 | G50: 69.9 | H50: 64.65 | I50: 31766 | J50: 2167947.5 | K50: 2020-04-08 | L50: 909 | M50: INE298G01027
A51: AKASH | B51: BE | C51: 90 | D51: 90 | E51: 90 | F51: 90 | G51: 90 | H51: 90.95 | I51: 500 | J51: 45000 | K51: 2020-04-08 | L51: 1 | M51: INE737W01013
A52: AKSHARCHEM | B52: EQ | C52: 174.75 | D52: 177.6 | E52: 165.3 | F52: 169.7 | G52: 167.15 | H52: 165.25 | I52: 3130 | J52: 531878.25 | K52: 2020-04-08 | L52: 293 | M52: INE542B01011
A53: AKSHOPTFBR | B53: EQ | C53: 3.6 | D53: 3.6 | E53: 3.6 | F53: 3.6 | G53: 3.6 | H53: 3.45 | I53: 27750 | J53: 99900 | K53: 2020-04-08 | L53: 45 | M53: INE523B01011
A54: AKZOINDIA | B54: EQ | C54: 2084.95 | D54: 2133 | E54: 2030 | F54: 2047.9 | G54: 2040 | H54: 2086.75 | I54: 12835 | J54: 26789836.95 | K54: 2020-04-08 | L54: 2242 | M54: INE133A01011
A55: ALANKIT | B55: EQ | C55: 12.9 | D55: 12.9 | E55: 12.9 | F55: 12.9 | G55: 12.9 | H55: 12.3 | I55: 14247 | J55: 183786.3 | K55: 2020-04-08 | L55: 75 | M55: INE914E01040
A56: ALBERTDAVD | B56: EQ | C56: 338.8 | D56: 364.75 | E56: 338.8 | F56: 353.15 | G56: 352 | H56: 341.15 | I56: 24334 | J56: 8579416.55 | K56: 2020-04-08 | L56: 1220 | M56: INE155C01010
A57: ALCHEM | B57: BE | C57: 1.4 | D57: 1.4 | E57: 1.4 | F57: 1.4 | G57: 1.4 | H57: 1.35 | I57: 8608 | J57: 12051.2 | K57: 2020-04-08 | L57: 18 | M57: INE964B01033
A58: ALEMBICLTD | B58: EQ | C58: 43.7 | D58: 48.05 | E58: 39.7 | F58: 45.05 | G58: 45.5 | H58: 42.15 | I58: 695128 | J58: 31779132.75 | K58: 2020-04-08 | L58: 6991 | M58: INE426A01027
A59: ALICON | B59: EQ | C59: 195.95 | D59: 196 | E59: 181.05 | F59: 184.75 | G59: 184 | H59: 189.25 | I59: 3909 | J59: 722322.5 | K59: 2020-04-08 | L59: 123 | M59: INE062D01024
A60: ALKALI | B60: EQ | C60: 29.95 | D60: 31.75 | E60: 29.65 | F60: 31.75 | G60: 31.75 | H60: 28.9 | I60: 9346 | J60: 289594.95 | K60: 2020-04-08 | L60: 349 | M60: INE773I01017
A61: ALKEM | B61: EQ | C61: 2360 | D61: 2736.5 | E61: 2326.2 | F61: 2671.15 | G61: 2639 | H61: 2324.05 | I61: 371259 | J61: 967330461.6 | K61: 2020-04-08 | L61: 44106 | M61: INE540L01014
A62: ALKYLAMINE | B62: EQ | C62: 1236.6 | D62: 1398 | E62: 1222.2 | F62: 1334.05 | G62: 1334 | H62: 1232.45 | I62: 41501 | J62: 55061848.25 | K62: 2020-04-08 | L62: 3832 | M62: INE150B01021
A63: ALLCARGO | B63: EQ | C63: 63.05 | D63: 65.85 | E63: 63 | F63: 65.7 | G63: 65.85 | H63: 59.9 | I63: 300794 | J63: 19569467.05 | K63: 2020-04-08 | L63: 3098 | M63: INE418H01029
A64: ALLSEC | B64: EQ | C64: 131.7 | D64: 131.9 | E64: 129.35 | F64: 131.9 | G64: 131.9 | H64: 125.65 | I64: 1335 | J64: 175836.2 | K64: 2020-04-08 | L64: 37 | M64: INE835G01018
A65: ALOKINDS | B65: EQ | C65: 4.7 | D65: 4.7 | E65: 4.7 | F65: 4.7 | G65: 4.7 | H65: 4.5 | I65: 1698707 | J65: 7983922.9 | K65: 2020-04-08 | L65: 397 | M65: INE270A01029
A66: ALPA | B66: EQ | C66: 18.55 | D66: 20.15 | E66: 17.8 | F66: 20.15 | G66: 20.15 | H66: 16.8 | I66: 131233 | J66: 2593665.9 | K66: 2020-04-08 | L66: 858 | M66: INE385I01010
A67: ALPHAGEO | B67: EQ | C67: 126 | D67: 137.5 | E67: 126 | F67: 134.45 | G67: 133.3 | H67: 129.7 | I67: 22258 | J67: 2986986.5 | K67: 2020-04-08 | L67: 783 | M67: INE137C01018
A68: ALPSINDUS | B68: EQ | C68: 0.65 | D68: 0.75 | E68: 0.65 | F68: 0.75 | G68: 0.7 | H68: 0.7 | I68: 25369 | J68: 18108.8 | K68: 2020-04-08 | L68: 33 | M68: INE093B01015
A69: AMARAJABAT | B69: EQ | C69: 501.1 | D69: 513.65 | E69: 488.45 | F69: 502.05 | G69: 504.9 | H69: 501.1 | I69: 755312 | J69: 378881689.9 | K69: 2020-04-08 | L69: 18162 | M69: INE885A01032
A70: AMBER | B70: EQ | C70: 1189.9 | D70: 1199 | E70: 1072 | F70: 1108.05 | G70: 1109.25 | H70: 1189.9 | I70: 93512 | J70: 105805912.2 | K70: 2020-04-08 | L70: 14252 | M70: INE371P01015
A71: AMBIKCO | B71: EQ | C71: 539.25 | D71: 559 | E71: 531.05 | F71: 545.2 | G71: 536.4 | H71: 537.25 | I71: 3988 | J71: 2168349.4 | K71: 2020-04-08 | L71: 406 | M71: INE540G01014
A72: AMBUJACEM | B72: EQ | C72: 158.5 | D72: 159.5 | E72: 148.2 | F72: 149.7 | G72: 149.55 | H72: 159 | I72: 10421438 | J72: 1597618498 | K72: 2020-04-08 | L72: 84074 | M72: INE079A01024
A73: AMDIND | B73: EQ | C73: 9.9 | D73: 10.5 | E73: 9.5 | F73: 9.8 | G73: 9.55 | H73: 10 | I73: 17757 | J73: 177659.15 | K73: 2020-04-08 | L73: 707 | M73: INE005I01014
A74: AMJLAND | B74: EQ | C74: 14.3 | D74: 14.95 | E74: 13.7 | F74: 14 | G74: 14 | H74: 14.25 | I74: 12523 | J74: 176065.3 | K74: 2020-04-08 | L74: 106 | M74: INE606A01024
A75: AMRUTANJAN | B75: EQ | C75: 326 | D75: 352 | E75: 320.1 | F75: 345.45 | G75: 344.3 | H75: 324 | I75: 278725 | J75: 95586275.35 | K75: 2020-04-08 | L75: 9075 | M75: INE098F01031
A76: ANANTRAJ | B76: EQ | C76: 19.55 | D76: 20.15 | E76: 18.6 | F76: 18.75 | G76: 18.8 | H76: 19.55 | I76: 184694 | J76: 3509270.8 | K76: 2020-04-08 | L76: 1012 | M76: INE242C01024
A77: ANDHRACEMT | B77: EQ | C77: 1.8 | D77: 1.9 | E77: 1.7 | F77: 1.85 | G77: 1.9 | H77: 1.75 | I77: 105618 | J77: 196578.05 | K77: 2020-04-08 | L77: 227 | M77: INE666E01012
A78: ANDHRAPAP | B78: EQ | C78: 148.55 | D78: 148.55 | E78: 147 | F78: 148.55 | G78: 148.55 | H78: 141.5 | I78: 2622 | J78: 389210.05 | K78: 2020-04-08 | L78: 70 | M78: INE435A01028
A79: ANDHRSUGAR | B79: EQ | C79: 206.95 | D79: 212 | E79: 195 | F79: 206.05 | G79: 205.85 | H79: 203.55 | I79: 35494 | J79: 7286675.25 | K79: 2020-04-08 | L79: 1328 | M79: INE715B01013
A80: ANIKINDS | B80: EQ | C80: 7.25 | D80: 7.25 | E80: 6.65 | F80: 6.8 | G80: 6.8 | H80: 6.95 | I80: 4994 | J80: 34701.65 | K80: 2020-04-08 | L80: 35 | M80: INE087B01017
A81: ANKITMETAL | B81: EQ | C81: 0.4 | D81: 0.45 | E81: 0.35 | F81: 0.45 | G81: 0.45 | H81: 0.4 | I81: 64810 | J81: 27213.05 | K81: 2020-04-08 | L81: 29 | M81: INE106I01010
A82: ANSALAPI | B82: EQ | C82: 3.65 | D82: 3.8 | E82: 3.65 | F82: 3.8 | G82: 3.8 | H82: 3.65 | I82: 3974 | J82: 15023.75 | K82: 2020-04-08 | L82: 28 | M82: INE436A01026
A83: ANSALHSG | B83: EQ | C83: 3 | D83: 3 | E83: 2.8 | F83: 2.9 | G83: 2.9 | H83: 2.9 | I83: 31510 | J83: 91846.6 | K83: 2020-04-08 | L83: 64 | M83: INE880B01015
A84: ANUP | B84: EQ | C84: 304.75 | D84: 323.7 | E84: 303.1 | F84: 313.2 | G84: 313.05 | H84: 312.75 | I84: 11786 | J84: 3732090.6 | K84: 2020-04-08 | L84: 460 | M84: INE294Z01018
A85: APARINDS | B85: EQ | C85: 296.95 | D85: 300.35 | E85: 290.6 | F85: 295.85 | G85: 295.5 | H85: 296.05 | I85: 6051 | J85: 1806443.45 | K85: 2020-04-08 | L85: 427 | M85: INE372A01015
A86: APCL | B86: EQ | C86: 102.4 | D86: 102.4 | E86: 95.2 | F86: 97.35 | G86: 97 | H86: 98.5 | I86: 3739 | J86: 362867.6 | K86: 2020-04-08 | L86: 79 | M86: INE071F01012
A87: APCOTEXIND | B87: EQ | C87: 87.55 | D87: 94.85 | E87: 86 | F87: 87.5 | G87: 86.1 | H87: 87.45 | I87: 13115 | J87: 1175575.25 | K87: 2020-04-08 | L87: 323 | M87: INE116A01032
A88: APEX | B88: EQ | C88: 190 | D88: 201.65 | E88: 185.1 | F88: 201.65 | G88: 201.65 | H88: 183.35 | I88: 141806 | J88: 27768799.35 | K88: 2020-04-08 | L88: 3293 | M88: INE346W01013
A89: APLAPOLLO | B89: EQ | C89: 1245 | D89: 1274 | E89: 1220 | F89: 1259.5 | G89: 1258 | H89: 1231.75 | I89: 21152 | J89: 26442272.1 | K89: 2020-04-08 | L89: 3032 | M89: INE702C01019
A90: APLLTD | B90: EQ | C90: 630 | D90: 702.65 | E90: 615.5 | F90: 640.85 | G90: 626 | H90: 610.2 | I90: 540272 | J90: 353935242.1 | K90: 2020-04-08 | L90: 30323 | M90: INE901L01018
A91: APOLLO | B91: EQ | C91: 45.5 | D91: 56 | E91: 45.25 | F91: 54.3 | G91: 53.55 | H91: 46.7 | I91: 68951 | J91: 3631629.4 | K91: 2020-04-08 | L91: 1694 | M91: INE713T01010
A92: APOLLOHOSP | B92: EQ | C92: 1225.9 | D92: 1338.4 | E92: 1211 | F92: 1263.95 | G92: 1261 | H92: 1225.95 | I92: 2070270 | J92: 2654141027 | K92: 2020-04-08 | L92: 156926 | M92: INE437A01024
A93: APOLLOPIPE | B93: EQ | C93: 279.5 | D93: 304 | E93: 262.95 | F93: 281.3 | G93: 281 | H93: 280.1 | I93: 12940 | J93: 3607793.25 | K93: 2020-04-08 | L93: 543 | M93: INE126J01016
A94: APOLLOTYRE | B94: EQ | C94: 83.5 | D94: 87.15 | E94: 82 | F94: 83.4 | G94: 83.15 | H94: 83.5 | I94: 2950752 | J94: 248872037.1 | K94: 2020-04-08 | L94: 19408 | M94: INE438A01022
A95: APOLSINHOT | B95: EQ | C95: 460.35 | D95: 460.4 | E95: 421.1 | F95: 439.8 | G95: 436 | H95: 438.6 | I95: 694 | J95: 306874.65 | K95: 2020-04-08 | L95: 84 | M95: INE451F01024
A96: APTECHT | B96: EQ | C96: 85.3 | D96: 87.7 | E96: 83.55 | F96: 84.6 | G96: 84.3 | H96: 85.3 | I96: 106721 | J96: 9133416.7 | K96: 2020-04-08 | L96: 2385 | M96: INE266F01018
A97: ARCHIDPLY | B97: EQ | C97: 16.55 | D97: 17 | E97: 16.45 | F97: 16.85 | G97: 16.95 | H97: 16.75 | I97: 4083 | J97: 68300.2 | K97: 2020-04-08 | L97: 63 | M97: INE877I01016
A98: ARCHIES | B98: EQ | C98: 9.4 | D98: 9.5 | E98: 9 | F98: 9.05 | G98: 9.15 | H98: 9.45 | I98: 24343 | J98: 224667.6 | K98: 2020-04-08 | L98: 150 | M98: INE731A01020
A99: ARCOTECH | B99: EQ | C99: 0.9 | D99: 0.95 | E99: 0.85 | F99: 0.9 | G99: 0.9 | H99: 0.9 | I99: 51482 | J99: 47500.05 | K99: 2020-04-08 | L99: 77 | M99: INE574I01035
A100: ARENTERP | B100: EQ | C100: 12.65 | D100: 12.65 | E100: 12.05 | F100: 12.05 | G100: 12.05 | H100: 12.65 | I100: 63 | J100: 765.15 | K100: 2020-04-08 | L100: 4 | M100: INE610C01014
A101: ARIES | B101: EQ | C101: 44.4 | D101: 47.6 | E101: 42.65 | F101: 43.6 | G101: 44 | H101: 44.4 | I101: 50875 | J101: 2250478.25 | K101: 2020-04-08 | L101: 1080 | M101: INE298I01015
A102: ARIHANT | B102: EQ | C102: 12.05 | D102: 12.55 | E102: 11.6 | F102: 12.15 | G102: 12.5 | H102: 12.05 | I102: 964 | J102: 11418.15 | K102: 2020-04-08 | L102: 27 | M102: INE413D01011
A103: ARIHANTSUP | B103: EQ | C103: 21.4 | D103: 21.45 | E103: 19.45 | F103: 19.5 | G103: 21 | H103: 20.45 | I103: 4362 | J103: 85414.05 | K103: 2020-04-08 | L103: 80 | M103: INE643K01018
A104: ARMANFIN | B104: EQ | C104: 340 | D104: 373.2 | E104: 337.7 | F104: 373.05 | G104: 373.2 | H104: 355.45 | I104: 50867 | J104: 18465582.65 | K104: 2020-04-08 | L104: 911 | M104: INE109C01017
A105: AROGRANITE | B105: EQ | C105: 21.95 | D105: 24.5 | E105: 20.85 | F105: 24.2 | G105: 24.5 | H105: 22.35 | I105: 26052 | J105: 602565.3 | K105: 2020-04-08 | L105: 183 | M105: INE210C01013
A106: ARROWGREEN | B106: BE | C106: 33.55 | D106: 35 | E106: 33.45 | F106: 33.45 | G106: 33.45 | H106: 33.85 | I106: 5735 | J106: 195198.5 | K106: 2020-04-08 | L106: 32 | M106: INE570D01018
A107: ARSHIYA | B107: EQ | C107: 7.1 | D107: 7.6 | E107: 7.1 | F107: 7.6 | G107: 7.6 | H107: 7.25 | I107: 23178 | J107: 175819.45 | K107: 2020-04-08 | L107: 63 | M107: INE968D01022
A108: ARSSINFRA | B108: EQ | C108: 11.25 | D108: 12.3 | E108: 10.9 | F108: 11.8 | G108: 11.85 | H108: 11.15 | I108: 16388 | J108: 189874.85 | K108: 2020-04-08 | L108: 107 | M108: INE267I01010
A109: ARTEMISMED | B109: EQ | C109: 140 | D109: 147 | E109: 136.3 | F109: 138 | G109: 137 | H109: 139.15 | I109: 1729 | J109: 245138.4 | K109: 2020-04-08 | L109: 31 | M109: INE025R01013
A110: ARVIND | B110: EQ | C110: 23.5 | D110: 24.4 | E110: 22.45 | F110: 23.75 | G110: 23.75 | H110: 22.2 | I110: 2137547 | J110: 50521243.45 | K110: 2020-04-08 | L110: 7057 | M110: INE034A01011
A111: ARVINDFASN | B111: EQ | C111: 139.8 | D111: 141.9 | E111: 132.2 | F111: 133.8 | G111: 134.75 | H111: 139.85 | I111: 46445 | J111: 6387304.5 | K111: 2020-04-08 | L111: 1243 | M111: INE955V01021
A112: ARVSMART | B112: EQ | C112: 64.05 | D112: 67 | E112: 64 | F112: 65.4 | G112: 65.5 | H112: 65 | I112: 10000 | J112: 656036.65 | K112: 2020-04-08 | L112: 320 | M112: INE034S01021
A113: ASAHIINDIA | B113: EQ | C113: 152 | D113: 158 | E113: 147.05 | F113: 155.5 | G113: 152.35 | H113: 153.2 | I113: 5605 | J113: 858978.65 | K113: 2020-04-08 | L113: 218 | M113: INE439A01020
A114: ASAHISONG | B114: EQ | C114: 80.8 | D114: 88.95 | E114: 80.05 | F114: 85.25 | G114: 86 | H114: 80.9 | I114: 8055 | J114: 692533.2 | K114: 2020-04-08 | L114: 314 | M114: INE228I01012
A115: ASAL | B115: EQ | C115: 14.8 | D115: 14.9 | E115: 14.5 | F115: 14.5 | G115: 14.5 | H115: 14.25 | I115: 8037 | J115: 118819.3 | K115: 2020-04-08 | L115: 36 | M115: INE900C01027
A116: ASALCBR | B116: EQ | C116: 164.9 | D116: 175 | E116: 158 | F116: 165.7 | G116: 165 | H116: 162.9 | I116: 31033 | J116: 5116102.05 | K116: 2020-04-08 | L116: 970 | M116: INE073G01016
A117: ASHAPURMIN | B117: EQ | C117: 22.1 | D117: 22.1 | E117: 22.05 | F117: 22.1 | G117: 22.1 | H117: 21.05 | I117: 8770 | J117: 193792 | K117: 2020-04-08 | L117: 43 | M117: INE348A01023
A118: ASHIANA | B118: EQ | C118: 52.9 | D118: 52.9 | E118: 49.1 | F118: 49.95 | G118: 50 | H118: 50 | I118: 69042 | J118: 3480534.3 | K118: 2020-04-08 | L118: 621 | M118: INE365D01021
A119: ASHIMASYN | B119: EQ | C119: 3.9 | D119: 3.9 | E119: 3.9 | F119: 3.9 | G119: 3.9 | H119: 3.55 | I119: 28914 | J119: 112764.6 | K119: 2020-04-08 | L119: 46 | M119: INE440A01010
A120: ASHOKA | B120: EQ | C120: 38.35 | D120: 42.7 | E120: 37.8 | F120: 42.7 | G120: 42.7 | H120: 38.85 | I120: 1577514 | J120: 65134101.3 | K120: 2020-04-08 | L120: 8475 | M120: INE442H01029
A121: ASHOKLEY | B121: EQ | C121: 39.85 | D121: 47.8 | E121: 38.75 | F121: 43.85 | G121: 43.6 | H121: 39.85 | I121: 76817768 | J121: 3355417806 | K121: 2020-04-08 | L121: 169889 | M121: INE208A01029
A122: ASIANHOTNR | B122: EQ | C122: 70 | D122: 71.8 | E122: 66 | F122: 71.55 | G122: 71.5 | H122: 65.4 | I122: 4982 | J122: 349215.55 | K122: 2020-04-08 | L122: 198 | M122: INE363A01022
A123: ASIANPAINT | B123: EQ | C123: 1623.8 | D123: 1687.8 | E123: 1600 | F123: 1608.95 | G123: 1608 | H123: 1623.8 | I123: 2382216 | J123: 3911658954 | K123: 2020-04-08 | L123: 101146 | M123: INE021A01026
A124: ASIANTILES | B124: EQ | C124: 156 | D124: 162.9 | E124: 155 | F124: 157.6 | G124: 156.5 | H124: 157.65 | I124: 19917 | J124: 3151924.4 | K124: 2020-04-08 | L124: 431 | M124: INE022I01019
A125: ASPINWALL | B125: EQ | C125: 93 | D125: 98.7 | E125: 83.55 | F125: 93 | G125: 93 | H125: 90 | I125: 413 | J125: 38837.15 | K125: 2020-04-08 | L125: 20 | M125: INE991I01015
A126: ASTEC | B126: EQ | C126: 450.65 | D126: 465.05 | E126: 440 | F126: 460.05 | G126: 460.3 | H126: 443.9 | I126: 5283 | J126: 2392645.5 | K126: 2020-04-08 | L126: 494 | M126: INE563J01010
A127: ASTERDM | B127: EQ | C127: 96 | D127: 103.5 | E127: 93.8 | F127: 99.25 | G127: 99 | H127: 94.55 | I127: 996205 | J127: 98978623.7 | K127: 2020-04-08 | L127: 4570 | M127: INE914M01019
A128: ASTRAL | B128: EQ | C128: 962 | D128: 986 | E128: 952 | F128: 955.45 | G128: 954 | H128: 973.85 | I128: 59212 | J128: 57381672.65 | K128: 2020-04-08 | L128: 7623 | M128: INE006I01046
A129: ASTRAMICRO | B129: EQ | C129: 56.9 | D129: 62.55 | E129: 55.85 | F129: 61.7 | G129: 62.55 | H129: 56.9 | I129: 253097 | J129: 15146656.55 | K129: 2020-04-08 | L129: 1961 | M129: INE386C01029
A130: ASTRAZEN | B130: EQ | C130: 2700 | D130: 2830 | E130: 2544 | F130: 2561.6 | G130: 2549 | H130: 2693.65 | I130: 38510 | J130: 104113109 | K130: 2020-04-08 | L130: 6647 | M130: INE203A01020
A131: ASTRON | B131: EQ | C131: 26.15 | D131: 29.9 | E131: 25.3 | F131: 27.5 | G131: 27.8 | H131: 27.65 | I131: 61618 | J131: 1693449.45 | K131: 2020-04-08 | L131: 1743 | M131: INE646X01014
A132: ATFL | B132: EQ | C132: 479.65 | D132: 499 | E132: 475 | F132: 481.55 | G132: 475 | H132: 479.65 | I132: 6104 | J132: 2975754.9 | K132: 2020-04-08 | L132: 411 | M132: INE209A01019
A133: ATLANTA | B133: EQ | C133: 3 | D133: 3.15 | E133: 3 | F133: 3.15 | G133: 3.15 | H133: 3 | I133: 8624 | J133: 26936.35 | K133: 2020-04-08 | L133: 28 | M133: INE285H01022
A134: ATLASCYCLE | B134: BE | C134: 30 | D134: 31.5 | E134: 29.5 | F134: 30.7 | G134: 30.7 | H134: 30 | I134: 2000 | J134: 60118.65 | K134: 2020-04-08 | L134: 42 | M134: INE446A01025
A135: ATNINTER | B135: BE | C135: 0.1 | D135: 0.1 | E135: 0.1 | F135: 0.1 | G135: 0.1 | H135: 0.1 | I135: 12716 | J135: 1271.6 | K135: 2020-04-08 | L135: 5 | M135: INE803A01027
A136: ATUL | B136: EQ | C136: 3930 | D136: 4005 | E136: 3908.35 | F136: 3951.85 | G136: 3954.95 | H136: 3927.1 | I136: 76768 | J136: 304824820.4 | K136: 2020-04-08 | L136: 11635 | M136: INE100A01010
A137: ATULAUTO | B137: EQ | C137: 151.35 | D137: 154.05 | E137: 146.8 | F137: 153.45 | G137: 153.95 | H137: 146.75 | I137: 13699 | J137: 2093863.3 | K137: 2020-04-08 | L137: 810 | M137: INE951D01028
A138: AUBANK | B138: EQ | C138: 461.2 | D138: 490 | E138: 457 | F138: 480.3 | G138: 473 | H138: 478.4 | I138: 1791057 | J138: 837589012.6 | K138: 2020-04-08 | L138: 59410 | M138: INE949L01017
A139: AURIONPRO | B139: EQ | C139: 41.75 | D139: 43.7 | E139: 40 | F139: 42.9 | G139: 42.9 | H139: 40.95 | I139: 8828 | J139: 376649.05 | K139: 2020-04-08 | L139: 213 | M139: INE132H01018
A140: AUROPHARMA | B140: EQ | C140: 432.5 | D140: 476.3 | E140: 426.3 | F140: 438.15 | G140: 438.9 | H140: 445.7 | I140: 13186213 | J140: 5925576015 | K140: 2020-04-08 | L140: 205238 | M140: INE406A01037
A141: AUSOMENT | B141: EQ | C141: 26.1 | D141: 26.1 | E141: 26.1 | F141: 26.1 | G141: 26.1 | H141: 25 | I141: 100 | J141: 2610 | K141: 2020-04-08 | L141: 1 | M141: INE218C01016
A142: AUTOAXLES | B142: EQ | C142: 413 | D142: 423.5 | E142: 398.05 | F142: 413.45 | G142: 416 | H142: 399.3 | I142: 5448 | J142: 2244823.45 | K142: 2020-04-08 | L142: 638 | M142: INE449A01011
A143: AUTOIND | B143: EQ | C143: 11.3 | D143: 11.35 | E143: 11.1 | F143: 11.35 | G143: 11.35 | H143: 10.85 | I143: 9358 | J143: 105383.05 | K143: 2020-04-08 | L143: 68 | M143: INE718H01014
A144: AUTOLITIND | B144: EQ | C144: 13.2 | D144: 14.4 | E144: 13.2 | F144: 13.8 | G144: 13.9 | H144: 13.75 | I144: 4699 | J144: 65525.8 | K144: 2020-04-08 | L144: 68 | M144: INE448A01013
A145: AVADHSUGAR | B145: EQ | C145: 143.55 | D145: 143.55 | E145: 143.55 | F145: 143.55 | G145: 143.55 | H145: 136.75 | I145: 13174 | J145: 1891127.7 | K145: 2020-04-08 | L145: 157 | M145: INE349W01017
A146: AVANTIFEED | B146: EQ | C146: 311 | D146: 341.55 | E146: 310.5 | F146: 341.35 | G146: 341.55 | H146: 310.5 | I146: 748404 | J146: 246839085.1 | K146: 2020-04-08 | L146: 23272 | M146: INE871C01038
A147: AVTNPL | B147: EQ | C147: 25.45 | D147: 27.8 | E147: 24.25 | F147: 27.25 | G147: 27 | H147: 25.05 | I147: 213540 | J147: 5643644.4 | K147: 2020-04-08 | L147: 1601 | M147: INE488D01021
A148: AXISBANK | B148: EQ | C148: 383.75 | D148: 427.7 | E148: 373.5 | F148: 391.35 | G148: 391.4 | H148: 388.85 | I148: 64930772 | J148: 2.575974593e+10 | K148: 2020-04-08 | L148: 769506 | M148: INE238A01034
A149: AXISCADES | B149: EQ | C149: 30.9 | D149: 31.5 | E149: 28.65 | F149: 31.4 | G149: 31.5 | H149: 30 | I149: 39670 | J149: 1232336.75 | K149: 2020-04-08 | L149: 621 | M149: INE555B01013
A150: AXISGOLD | B150: EQ | C150: 3969.9 | D150: 3989 | E150: 3925 | F150: 3973.3 | G150: 3983 | H150: 3919.55 | I150: 701 | J150: 2769851.6 | K150: 2020-04-08 | L150: 206 | M150: INF846K01347
A151: AXISNIFTY | B151: EQ | C151: 1000.01 | D151: 1000.01 | E151: 1000.01 | F151: 1000.01 | G151: 1000.01 | H151: 1007 | I151: 2 | J151: 2000.02 | K151: 2020-04-08 | L151: 1 | M151: INF846K01ZL0
A152: AYMSYNTEX | B152: EQ | C152: 15.5 | D152: 16.8 | E152: 15.5 | F152: 16.5 | G152: 16.5 | H152: 16.1 | I152: 2637 | J152: 43548.55 | K152: 2020-04-08 | L152: 26 | M152: INE193B01039
A153: BAFNAPH | B153: EQ | C153: 16.05 | D153: 16.05 | E153: 16.05 | F153: 16.05 | G153: 16.05 | H153: 15.3 | I153: 272 | J153: 4365.6 | K153: 2020-04-08 | L153: 8 | M153: INE878I01022
A154: BAGFILMS | B154: BE | C154: 1.75 | D154: 1.8 | E154: 1.75 | F154: 1.8 | G154: 1.8 | H154: 1.75 | I154: 3861 | J154: 6912.3 | K154: 2020-04-08 | L154: 20 | M154: INE116D01028
A155: BAJAJ-AUTO | B155: EQ | C155: 2180 | D155: 2383.45 | E155: 2168.55 | F155: 2241.7 | G155: 2260 | H155: 2280.05 | I155: 840875 | J155: 1933266167 | K155: 2020-04-08 | L155: 59866 | M155: INE917I01010
A156: BAJAJCON | B156: EQ | C156: 136 | D156: 148.65 | E156: 135.1 | F156: 137.95 | G156: 138 | H156: 138.15 | I156: 1031633 | J156: 145711259.1 | K156: 2020-04-08 | L156: 26102 | M156: INE933K01021
A157: BAJAJELEC | B157: EQ | C157: 277.3 | D157: 294.5 | E157: 277.3 | F157: 287.8 | G157: 289 | H157: 277.3 | I157: 58251 | J157: 16797537.55 | K157: 2020-04-08 | L157: 3821 | M157: INE193E01025
A158: BAJAJFINSV | B158: EQ | C158: 4575 | D158: 4950 | E158: 4537.8 | F158: 4608.5 | G158: 4604 | H158: 4724.9 | I158: 1113057 | J158: 5259493342 | K158: 2020-04-08 | L158: 158158 | M158: INE918I01018
A159: BAJAJHIND | B159: EQ | C159: 3.05 | D159: 3.05 | E159: 3.05 | F159: 3.05 | G159: 3.05 | H159: 2.95 | I159: 80900 | J159: 246745 | K159: 2020-04-08 | L159: 110 | M159: INE306A01021
A160: BAJAJHLDNG | B160: EQ | C160: 2027.95 | D160: 2073.85 | E160: 1925 | F160: 2024.75 | G160: 2025 | H160: 1978.9 | I160: 25453 | J160: 51363834.45 | K160: 2020-04-08 | L160: 6198 | M160: INE118A01012
A161: BAJFINANCE | B161: EQ | C161: 2184 | D161: 2374 | E161: 2144.15 | F161: 2332.9 | G161: 2329 | H161: 2253.35 | I161: 9109346 | J161: 2.088826331e+10 | K161: 2020-04-08 | L161: 516967 | M161: INE296A01024
A162: BALAJITELE | B162: EQ | C162: 43 | D162: 45 | E162: 40.8 | F162: 41.9 | G162: 42.15 | H162: 43.75 | I162: 194912 | J162: 8414452.4 | K162: 2020-04-08 | L162: 1677 | M162: INE794B01026
A163: BALAMINES | B163: EQ | C163: 277 | D163: 296 | E163: 260.4 | F163: 283.65 | G163: 284.45 | H163: 271.2 | I163: 70594 | J163: 20058887.5 | K163: 2020-04-08 | L163: 2337 | M163: INE050E01027
A164: BALAXI | B164: BE | C164: 82.7 | D164: 82.7 | E164: 75.05 | F164: 79.9 | G164: 79.9 | H164: 79 | I164: 1047 | J164: 78761.9 | K164: 2020-04-08 | L164: 24 | M164: INE618N01014
A165: BALKRISHNA | B165: EQ | C165: 8.6 | D165: 8.8 | E165: 8.35 | F165: 8.8 | G165: 8.8 | H165: 8.4 | I165: 7860 | J165: 67624.35 | K165: 2020-04-08 | L165: 49 | M165: INE875R01011
A166: BALKRISIND | B166: EQ | C166: 822 | D166: 862 | E166: 815 | F166: 821.35 | G166: 818.3 | H166: 823.55 | I166: 444079 | J166: 371870250.3 | K166: 2020-04-08 | L166: 24462 | M166: INE787D01026
A167: BALLARPUR | B167: EQ | C167: 0.4 | D167: 0.4 | E167: 0.3 | F167: 0.35 | G167: 0.35 | H167: 0.35 | I167: 9769871 | J167: 3419941.15 | K167: 2020-04-08 | L167: 514 | M167: INE294A01037
A168: BALMLAWRIE | B168: EQ | C168: 84 | D168: 87.9 | E168: 81 | F168: 84.75 | G168: 85.65 | H168: 85.5 | I168: 202053 | J168: 17357055.25 | K168: 2020-04-08 | L168: 3105 | M168: INE164A01016
A169: BALPHARMA | B169: EQ | C169: 38.9 | D169: 41.7 | E169: 38.9 | F169: 41.7 | G169: 41.7 | H169: 37.95 | I169: 40933 | J169: 1688199.5 | K169: 2020-04-08 | L169: 518 | M169: INE083D01012
A170: BALRAMCHIN | B170: EQ | C170: 123.85 | D170: 126.4 | E170: 123 | F170: 126.4 | G170: 126.4 | H170: 120.4 | I170: 642515 | J170: 80884980.2 | K170: 2020-04-08 | L170: 7125 | M170: INE119A01028
A171: BANARBEADS | B171: EQ | C171: 30.25 | D171: 32.5 | E171: 29.6 | F171: 29.75 | G171: 29.75 | H171: 31.5 | I171: 160 | J171: 4873.85 | K171: 2020-04-08 | L171: 26 | M171: INE655B01011
A172: BANARISUG | B172: EQ | C172: 900 | D172: 925 | E172: 880 | F172: 886.1 | G172: 880 | H172: 893.1 | I172: 410 | J172: 368979.1 | K172: 2020-04-08 | L172: 94 | M172: INE459A01010
A173: BANCOINDIA | B173: EQ | C173: 65.45 | D173: 67.5 | E173: 64.1 | F173: 65.95 | G173: 66 | H173: 65.45 | I173: 40062 | J173: 2654130.6 | K173: 2020-04-08 | L173: 1013 | M173: INE213C01025
A174: BANDHANBNK | B174: EQ | C174: 167.95 | D174: 209.05 | E174: 167.5 | F174: 193.75 | G174: 195.25 | H174: 167.25 | I174: 30692919 | J174: 5833285762 | K174: 2020-04-08 | L174: 332020 | M174: INE545U01014
A175: BANG | B175: EQ | C175: 12.05 | D175: 13.1 | E175: 11.9 | F175: 13.1 | G175: 13.1 | H175: 12.5 | I175: 1590 | J175: 20489 | K175: 2020-04-08 | L175: 31 | M175: INE863I01016
A176: BANKBARODA | B176: EQ | C176: 48 | D176: 51.5 | E176: 47.3 | F176: 48.35 | G176: 48.45 | H176: 48.15 | I176: 27159204 | J176: 1340103716 | K176: 2020-04-08 | L176: 77070 | M176: INE028A01039
A177: BANKBEES | B177: EQ | C177: 190 | D177: 205.4 | E177: 186.06 | F177: 191.28 | G177: 191.4 | H177: 192.12 | I177: 676832 | J177: 131368353.2 | K177: 2020-04-08 | L177: 10023 | M177: INF204KB15I9
A178: BANKINDIA | B178: EQ | C178: 32.7 | D178: 34.75 | E178: 32.5 | F178: 33.35 | G178: 33.25 | H178: 32.95 | I178: 1236627 | J178: 41574499.75 | K178: 2020-04-08 | L178: 6257 | M178: INE084A01016
A179: BANSWRAS | B179: EQ | C179: 77.4 | D179: 77.4 | E179: 70.2 | F179: 71.15 | G179: 70.2 | H179: 73.75 | I179: 22922 | J179: 1667255.55 | K179: 2020-04-08 | L179: 137 | M179: INE629D01012
A180: BASF | B180: EQ | C180: 1154 | D180: 1154 | E180: 1105 | F180: 1119.95 | G180: 1120.5 | H180: 1138.25 | I180: 26139 | J180: 29425244.35 | K180: 2020-04-08 | L180: 2640 | M180: INE373A01013
A181: BASML | B181: EQ | C181: 74.05 | D181: 84 | E181: 74.05 | F181: 80 | G181: 80 | H181: 78.7 | I181: 1648 | J181: 135366.45 | K181: 2020-04-08 | L181: 154 | M181: INE186H01014
A182: BATAINDIA | B182: EQ | C182: 1246.5 | D182: 1339 | E182: 1228 | F182: 1240.05 | G182: 1238.95 | H182: 1246.4 | I182: 1346088 | J182: 1726485633 | K182: 2020-04-08 | L182: 66274 | M182: INE176A01028
A183: BAYERCROP | B183: EQ | C183: 3500 | D183: 3946.6 | E183: 3499.3 | F183: 3818.15 | G183: 3772.15 | H183: 3510 | I183: 32833 | J183: 125437264 | K183: 2020-04-08 | L183: 6737 | M183: INE462A01022
A184: BBL | B184: EQ | C184: 590 | D184: 621.25 | E184: 590 | F184: 613.05 | G184: 621.25 | H184: 589.55 | I184: 9335 | J184: 5684085.45 | K184: 2020-04-08 | L184: 804 | M184: INE464A01028
A185: BBTC | B185: EQ | C185: 810 | D185: 854.3 | E185: 774 | F185: 784.2 | G185: 787.95 | H185: 788.4 | I185: 76612 | J185: 62014517.65 | K185: 2020-04-08 | L185: 5281 | M185: INE050A01025
A186: BCG | B186: EQ | C186: 3.6 | D186: 3.65 | E186: 3.55 | F186: 3.65 | G186: 3.65 | H186: 3.5 | I186: 305718 | J186: 1113234.95 | K186: 2020-04-08 | L186: 149 | M186: INE425B01027
A187: BCP | B187: EQ | C187: 10.75 | D187: 10.75 | E187: 10.5 | F187: 10.75 | G187: 10.75 | H187: 10.25 | I187: 8192 | J187: 87934.6 | K187: 2020-04-08 | L187: 28 | M187: INE905P01028
A188: BDL | B188: EQ | C188: 191 | D188: 229 | E188: 188.2 | F188: 218.2 | G188: 216.4 | H188: 191.4 | I188: 448405 | J188: 97968192.25 | K188: 2020-04-08 | L188: 13672 | M188: INE171Z01018
A189: BEARDSELL | B189: EQ | C189: 6.7 | D189: 7.3 | E189: 6.7 | F189: 7.3 | G189: 7.3 | H189: 7.05 | I189: 1250 | J189: 8417 | K189: 2020-04-08 | L189: 4 | M189: INE520H01022
A190: BEDMUTHA | B190: EQ | C190: 12.8 | D190: 13.05 | E190: 12.45 | F190: 12.45 | G190: 12.45 | H190: 13.1 | I190: 19584 | J190: 245429.15 | K190: 2020-04-08 | L190: 32 | M190: INE844K01012
A191: BEL | B191: EQ | C191: 69 | D191: 71.3 | E191: 65.1 | F191: 66.4 | G191: 66.5 | H191: 69 | I191: 16699885 | J191: 1138705070 | K191: 2020-04-08 | L191: 69587 | M191: INE263A01024
A192: BEML | B192: EQ | C192: 492 | D192: 523.5 | E192: 492 | F192: 503.6 | G192: 503 | H192: 475.95 | I192: 890527 | J192: 458689246.6 | K192: 2020-04-08 | L192: 23670 | M192: INE258A01016
A193: BEPL | B193: EQ | C193: 31 | D193: 32.75 | E193: 30.3 | F193: 31.25 | G193: 31.6 | H193: 30.25 | I193: 333595 | J193: 10578641.1 | K193: 2020-04-08 | L193: 3321 | M193: INE922A01025
A194: BERGEPAINT | B194: EQ | C194: 479.9 | D194: 487.65 | E194: 460 | F194: 463.5 | G194: 462 | H194: 479.2 | I194: 1729062 | J194: 817908730.6 | K194: 2020-04-08 | L194: 32950 | M194: INE463A01038
A195: BFINVEST | B195: EQ | C195: 258 | D195: 268.8 | E195: 244.6 | F195: 246.3 | G195: 248.95 | H195: 257.45 | I195: 4938 | J195: 1236639.95 | K195: 2020-04-08 | L195: 244 | M195: INE878K01010
A196: BFUTILITIE | B196: EQ | C196: 158.35 | D196: 158.35 | E196: 151.05 | F196: 154.05 | G196: 153.7 | H196: 150.85 | I196: 138134 | J196: 21700813.75 | K196: 2020-04-08 | L196: 1649 | M196: INE243D01012
A197: BGRENERGY | B197: EQ | C197: 22.1 | D197: 22.85 | E197: 20.95 | F197: 21.1 | G197: 21.15 | H197: 22.2 | I197: 172282 | J197: 3763089.75 | K197: 2020-04-08 | L197: 1108 | M197: INE661I01014
A198: BHAGERIA | B198: EQ | C198: 85 | D198: 91.05 | E198: 80.65 | F198: 81.6 | G198: 82.3 | H198: 84.2 | I198: 34795 | J198: 2944870.7 | K198: 2020-04-08 | L198: 925 | M198: INE354C01027
A199: BHAGYANGR | B199: EQ | C199: 14.05 | D199: 15.2 | E199: 14 | F199: 14.4 | G199: 14.4 | H199: 14.4 | I199: 1338 | J199: 19622.25 | K199: 2020-04-08 | L199: 50 | M199: INE458B01036
A200: BHAGYAPROP | B200: EQ | C200: 18 | D200: 20 | E200: 18 | F200: 20 | G200: 20 | H200: 19 | I200: 999 | J200: 19011 | K200: 2020-04-08 | L200: 5 | M200: INE363W01018
... 1470 more rows

Sheet Sheet1 (hidden)

Sheet Sheet3 (hidden)

Sheet Sheet4 (hidden)

Sheet Sheet5 (hidden)
